{"text_format":"3","workbook":"xlsx","n_sheets":16,"sheets":["Obsah"," Část 1","Část 1a","Část 1b","Část 2","Část 3","Část 3a","Část 3b","Část 4","Část 5","Část 5a","Část 6","Část 7","Číselník 1","Číselník 2","Úvěry a vklady"],"not_rendered":{"images":2,"defined_names":30},"read":"whole","date_system":"1900"}

{"sheet":"Obsah","index":0,"n_rows":21,"n_cols":4,"rows_kept":21,"merged":[[0,0,0,3],[1,3,3,3],[4,0,4,2],[17,1,17,2],[18,1,18,2],[19,0,19,3],[20,0,20,3]]}
["Vzory pro uveřejňování informací podle §11b odst. 1 zákona  o bankách* \n a podle §7b odst. 1 zákona o spořitelních a úvěrních družstvech** \n\nPříloha č. 10 vyhlášky č. 163/2014 Sb.\n"]
["List","Název šablony\n","četnost uveřejňování","Povinná osoba výkaz vyplňuje: ANO/NE"]
["Datum uveřejnění informace",null,"2025-08-12"]
["Informace platné k datu",null,"2025-06-30"]
["Seznam údajů o povinné osobě, složení společníků nebo členů, struktuře skupiny, jejíž je součástí, \no činnosti a finanční situaci podle přílohy č. 10 k vyhlášce 163/2014 Sb., v platném znění."]
["Část 1","Údaje o povinné osobě ","čtvrtletně","ANO"]
["   Část 1a","Organizační struktura povinné osoby","čtvrtletně","ANO"]
["   Část 1b","Údaje o výborech zřízených povinnou osobou","čtvrtletně","ANO"]
["Část 2","Údaje o složení společníků nebo členů povinné osoby","čtvrtletně","ANO"]
["Část 3","Údaje o struktuře skupiny, jejíž je povinná osoba součástí","čtvrtletně","ANO"]
["   Část 3a","Grafické znázornění skupiny, jejíž členem je povinná osoba, z hlediska vlastnického uspořádání ","čtvrtletně","ANO"]
["   Část 3b","Grafické znázornění skupiny, jejímž členem je povinná osoba, z hlediska řízení","čtvrtletně","ANO"]
["Část 4","Údaje o činnosti povinné osoby","čtvrtletně","ANO"]
["Část 5","Údaje o finanční situaci povinné osoby - poměrové ukazatele","čtvrtletně","ANO"]
["   Část 5a","Údaje o finanční situaci povinné osoby - deriváty ","čtvrtletně","ANO"]
["Část 6","Rozvaha povinné osoby podle výkazů předkládaných České národní bance","čtvrtletně","ANO"]
["Část 7","Výkaz zisku nebo ztráty povinné osoby podle výkazů předkládaných České národní bance","čtvrtletně","ANO"]
["Číselník 1","CZ-NACE (OKEČ) číselník"]
["Číselník 2","Kódy zemí"]
["*  zákon č. 21/1992 Sb., o bankách, ve znění pozdějších předpisů\n**  zákon č. 87/1995 Sb., o spořitelních a úvěrních družstvech a některých opatřeních s tím souvisejících\n       a o doplnění  zákona České národní rady č. 586/1992 Sb., o daních z příjmů,  ve znění pozdějších předpisů,\n       ve znění pozdějších předpisů"]
["Pozn.: Není-li uvedeno jinak, vyhláškou se v této příloze rozumí vyhláška č. 163/2014 Sb., v platném znění.\n\nObsah údajů, které povinná osoba uveřejňuje o sobě, o složení společníků nebo členů, o struktuře skupiny, jejíž je součástí,  o své činnosti a finanční situaci na individuálním základě je uveden v příloze č. 10 k vyhlášce 163/2014 Sb., v platném znění.\n\n"]

{"sheet":" Část 1","index":1,"n_rows":202,"n_cols":5,"rows_kept":202,"merged":[[0,0,0,3],[1,0,1,3],[2,0,2,4],[3,0,4,3],[3,4,4,4],[5,0,5,2],[6,0,6,2],[6,4,9,4],[7,0,7,2],[8,0,8,2],[9,0,9,2],[10,0,10,2],[10,4,12,4],[11,0,11,2],[12,0,12,2],[13,0,13,2],[14,0,14,2],[15,0,18,0],[15,1,15,2],[15,3,18,3],[15,4,17,4],[16,1,16,2],[17,1,17,2],[18,1,18,2],[19,0,28,0],[19,1,19,2],[20,1,20,2],[21,1,25,1],[21,4,25,4],[26,1,28,1],[26,4,28,4],[29,0,30,0],[29,1,29,2],[30,1,30,2],[31,0,31,2],[32,0,32,2],[33,0,35,1],[33,4,35,4],[36,0,36,3],[36,4,37,4],[38,0,38,2],[38,4,41,4],[39,0,41,1],[43,0,43,2],[44,0,46,1],[44,4,46,4],[47,0,47,3],[47,4,48,4],[49,0,49,2],[49,4,60,4],[50,0,52,1],[54,0,56,1],[58,0,60,1],[62,0,62,2],[63,0,65,1],[63,4,65,4],[66,0,66,3],[66,4,67,4],[68,0,68,2],[68,4,75,4],[69,0,71,1],[73,0,75,1],[77,0,77,2],[78,0,80,1],[78,4,80,4],[81,0,81,3],[81,4,82,4],[83,0,83,2],[83,4,86,4],[84,0,86,1],[88,0,88,2],[89,0,91,1],[89,4,91,4],[92,0,92,3],[92,4,93,4],[94,0,94,2],[94,4,101,4],[95,0,97,1],[99,0,101,1],[103,0,103,2],[104,0,106,1],[104,4,106,4],[107,0,107,3],[107,4,108,4],[109,0,109,2],[109,4,112,4],[110,0,112,1],[114,0,114,2],[115,0,117,1],[115,4,117,4],[118,0,118,3],[118,4,119,4],[120,0,120,2],[122,0,122,2],[123,0,125,1],[123,4,125,4],[126,0,126,3],[126,4,127,4],[128,0,128,2],[129,0,131,1],[133,0,133,2],[134,0,136,1],[134,4,136,4],[137,0,137,3],[137,4,138,4],[139,0,139,2],[141,0,141,2],[142,0,144,1],[142,4,144,4],[145,0,145,3],[145,4,146,4],[147,0,147,2],[149,0,149,2],[150,0,152,1],[150,4,152,4],[153,0,153,3],[153,4,154,4],[154,0,154,3],[155,0,155,2],[155,4,158,4],[156,0,158,1],[160,0,160,2],[161,0,163,1],[161,4,163,4],[164,0,164,3],[164,4,165,4],[166,0,166,2],[168,0,168,2],[169,0,171,1],[169,4,171,4],[172,0,172,3],[172,4,173,4],[174,0,174,2],[176,0,176,2],[177,0,179,1],[177,4,179,4],[180,0,180,3],[180,4,181,4],[182,0,182,2],[184,0,184,2],[185,0,187,1],[185,4,187,4],[188,0,188,3],[188,4,189,4],[190,0,190,2],[190,4,193,4],[191,0,193,1],[195,0,195,2],[196,0,198,1],[196,4,198,4],[199,0,199,3],[199,4,200,4],[201,0,201,2]]}
["Část 1"]
["Údaje o povinné osobě"]
[]
["Údaje o povinné osobě",{"$nulls":3},"Vyhláška č. 163/2014 Sb.\n Příloha č. 10"]
[]
["Informace platné k datu:",null,null,{"$f":"Obsah!C4","v":"2025-06-30"}]
["Obchodní firma",null,null,"Raiffeisen stavební spořitelna a.s.","Bod 1 písm. a)"]
["Právní forma",null,null,"akciová společnost"]
["Adresa sídla",null,null,"Hvězdova 1716/2b, Nusle, 140 78 Praha 4"]
["Identifikační číslo povinné osoby podle zápisu v obchodním rejstříku",null,null,"49241257"]
["Datum zápisu do obchodního rejstříku",null,null,"4. září 1993 u Městského soudu v Praze, oddíl B, vložka 2102","Bod 1 písm. b)"]
["Datum zápisu poslední změny do obchodního rejstříku",null,null,"27. srpna 2024"]
["Účel poslední změny zápisu do obchodního rejstříku",null,null,"změny v představenstvu"]
["Výše základního kapitálu zapsaného v obchodním rejstříku",null,null,{"v":650000000,"d":"650,000,000"},"Bod 1 písm. c)"]
["Výše splaceného základního kapitálu",null,null,{"v":650000000,"d":"650,000,000"},"Bod 1 písm. d)"]
["Akciová společnost","Druh, forma, podoba emitovaných akcií ",null,"6 500 kusů zaknihovaných akcií na jméno ve jmenovité hodnotě 100 000 Kč za jednu akcii","Bod 1 písm. e)"]
[null,"Počet emitovaných akcií "]
[null,"Jmenovitá hodnota akcií"]
[null,"Údaje o nabytí vlastních akcií a zatímních listů a jiných kapitálových nástrojů,",null,null,"Bod 1 písm. f)"]
["Údaje o zvýšení základního kapitálu, pokud základní kapitál byl zvýšen od posledního uveřejnění","Navýšení základního kapitálu od posledního uveřejnění",null,"ne","Bod 1 písm. g)"]
[null,"Způsob a rozsah zvýšení základního kapitálu",null,null,"Bod 1 písm. g) bod 1"]
[null,"Způsob a rozsah zvýšení základního kapitálu, jsou-li vydávány nové akcie","Druh emitovaných akcií ",null,"Bod 1 písm. g) bod 2"]
[null,null,"Počet emitovaných akcií "]
[null,null,"Jmenovitá hodnota akcií"]
[null,null,"Rozsah splacení nově upsaných akcií "]
[null,null,"Lhůta pro splacení nově upsaných akcií"]
[null,"Způsob a rozsah zvýšení základního kapitálu z vlastních zdrojů","Částka o níž se základní kapitál zvyšuje",null,"Bod 1 písm. g) bod 3"]
[null,null,"Vlastní zdroje, z nichž se základní kapitál zvyšuje"]
[null,null,"Akciová společnost uvede, zda se zvyšuje jmenovitá hodnota akcií a o jakou částku"]
["Údaje o členech vedoucího orgánu a o osobách ve vrcholném vedení povinné osoby ","Souhrnná výše úvěrů poskytnutých povinnou osobou členům vedoucího orgánu, osobám ve vrcholném vedení povinné osoby",null,"1 139 tis.","Bod 1 písm. i) bod 5"]
[null,"Souhrnná výše záruk vydaných povinnou osobou za členy vedoucího orgánu, osoby ve vrcholném vedení povinné osoby",null,null,"Bod 1 písm. i) bod 6"]
["Údaje o členech vedoucího orgánu a o osobách ve vrcholném vedení povinné osoby\n(uveďte počet osob, o nichž budete uvádět informace dle bodu 1 písm. i) body 1 až 4, níže pro každou z těchto osob tyto údaje uveďte jednotlivě v následující struktuře) ",null,null,16,"Bod 1 písm. i)"]
["Jméno a příjmení, včetně titulů",null,null,"PhDr. Vladimír Kreidl, MSc.","Bod 1 písm. i)\n bod 1"]
["Označení orgánu a v něm vykonávané funkce nebo označení pozice ve vrcholném vedení, a datum, od kdy osoba vykonává příslušnou funkci nebo zastává danou pozici",null,"Orgán","dozorčí rada","Bod 1 písm. i)\n bod 2"]
[null,null,"Funkce/pozice","předseda dozorčí rady"]
[null,null,"Datum počátku výkonu funkce/pozice","22. června 2020, člen dozorčí rady od 17. června 2020"]
["Dosavadní zkušenosti a kvalifikační předpoklady pro výkon dané funkce nebo zastávané pozice",{"$nulls":3},"Bod 1 písm. i)\n bod 3"]
[{"$nulls":3},"Univerzita Karlova, Praha, Fakulta sociálních věd"]
["Členství  v orgánech jiných právnických osob ",null,null,"ano","Bod 1 písm. i)\n bod 4"]
["Označení právnické osoby, orgánu a v něm vykonávané funkce ",null,"Označení právnické osoby","Raiffeisenbank a.s."]
[null,null,"Orgán","představenstvo"]
[null,null,"Funkce","člen"]
[]
["Jméno a příjmení, včetně titulů",null,null,"Ing. Igor Vida","Bod 1 písm. i)\n bod 1"]
["Označení orgánu a v něm vykonávané funkce nebo označení pozice ve vrcholném vedení, a datum, od kdy osoba vykonává příslušnou funkci nebo zastává danou pozici",null,"Orgán","dozorčí rada","Bod 1 písm. i)\n bod 2"]
[null,null,"Funkce/pozice","místopředseda dozorčí rady"]
[null,null,"Datum počátku výkonu funkce/pozice","21. března 2022, člen dozorčí rady od 21. prosince 2021"]
["Dosavadní zkušenosti a kvalifikační předpoklady pro výkon dané funkce nebo zastávané pozice",{"$nulls":3},"Bod 1 písm. i)\n bod 3"]
[{"$nulls":3},"Slovenská technická univerzita, Bratislava, Elektrotechnická fakulta"]
["Členství  v orgánech jiných právnických osob ",null,null,"ano","Bod 1 písm. i)\n bod 4"]
["Označení právnické osoby, orgánu a v něm vykonávané funkce ",null,"Označení právnické osoby","Raiffeisenbank a.s."]
[null,null,"Orgán","představenstvo"]
[null,null,"Funkce","předseda"]
[]
["Označení právnické osoby, orgánu a v něm vykonávané funkce ",null,"Označení právnické osoby","Česká bankovní asociace "]
[null,null,"Orgán","prezidium"]
[null,null,"Funkce","člen"]
[]
["Označení právnické osoby, orgánu a v něm vykonávané funkce ",null,"Označení právnické osoby","Raiffeisen - Leasing, s.r.o."]
[null,null,"Orgán","dozorčí rada"]
[null,null,"Funkce","člen"]
[]
["Jméno a příjmení, včetně titulů",null,null,"Mag. Dr. Martin Stotter","Bod 1 písm. i)\n bod 1"]
["Označení orgánu a v něm vykonávané funkce nebo označení pozice ve vrcholném vedení, a datum, od kdy osoba vykonává příslušnou funkci nebo zastává danou pozici",null,"Orgán","dozorčí rada","Bod 1 písm. i)\n bod 2"]
[null,null,"Funkce/pozice","člen dozorčí rady"]
[null,null,"Datum počátku výkonu funkce/pozice","1. října 2020"]
["Dosavadní zkušenosti a kvalifikační předpoklady pro výkon dané funkce nebo zastávané pozice",{"$nulls":3},"Bod 1 písm. i)\n bod 3"]
[{"$nulls":3},"Univerzita Graz, Právnická fakulta"]
["Členství  v orgánech jiných právnických osob ",null,null,"ano","Bod 1 písm. i)\n bod 4"]
["Označení právnické osoby, orgánu a v něm vykonávané funkce ",null,"Označení právnické osoby","Raiffeisenbank a.s."]
[null,null,"Orgán","představenstvo"]
[null,null,"Funkce","člen"]
[]
["Označení právnické osoby, orgánu a v něm vykonávané funkce ",null,"Označení právnické osoby","Raiffeisen - Leasing, s.r.o."]
[null,null,"Orgán","dozorčí rada"]
[null,null,"Funkce","člen"]
[]
["Jméno a příjmení, včetně titulů",null,null,"Kamila Makhmudova, LL.M, MBA","Bod 1 písm. i)\n bod 1"]
["Označení orgánu a v něm vykonávané funkce nebo označení pozice ve vrcholném vedení, a datum, od kdy osoba vykonává příslušnou funkci nebo zastává danou pozici",null,"Orgán","dozorčí rada","Bod 1 písm. i)\n bod 2"]
[null,null,"Funkce/pozice","členka dozorčí rady"]
[null,null,"Datum počátku výkonu funkce/pozice","20. prosince 2022"]
["Dosavadní zkušenosti a kvalifikační předpoklady pro výkon dané funkce nebo zastávané pozice",{"$nulls":3},"Bod 1 písm. i)\n bod 3"]
[null,"University of World Economy and Diplomacy - Taškent, University of Economics and Business Administration - Vídeň, University of Minnesota - USA "]
["Členství  v orgánech jiných právnických osob ",null,null,"ano","Bod 1 písm. i)\n bod 4"]
["Označení právnické osoby, orgánu a v něm vykonávané funkce ",null,"Označení právnické osoby","Raiffeisenbank a.s."]
[null,null,"Orgán","představenstvo"]
[null,null,"Funkce","členka"]
[]
["Jméno a příjmení, včetně titulů",null,null,"Ing. Ondřej Hák","Bod 1 písm. i)\n bod 1"]
["Označení orgánu a v něm vykonávané funkce nebo označení pozice ve vrcholném vedení, a datum, od kdy osoba vykonává příslušnou funkci nebo zastává danou pozici",null,"Orgán","dozorčí rada","Bod 1 písm. i)\n bod 2"]
[null,null,"Funkce/pozice","člen dozorčí rady"]
[null,null,"Datum počátku výkonu funkce/pozice","20. prosince 2022"]
["Dosavadní zkušenosti a kvalifikační předpoklady pro výkon dané funkce nebo zastávané pozice",{"$nulls":3},"Bod 1 písm. i)\n bod 3"]
[null,null,"Masarykova univerzita Brno - ekonomika a finance"]
["Členství  v orgánech jiných právnických osob ",null,null,"ano","Bod 1 písm. i)\n bod 4"]
["Označení právnické osoby, orgánu a v něm vykonávané funkce ",null,"Označení právnické osoby","Visto clinic s.r.o."]
[null,null,"Orgán","statutární orgán"]
[null,null,"Funkce","jednatel"]
[]
["Označení právnické osoby, orgánu a v něm vykonávané funkce ",null,"Označení právnické osoby","Kladenská 19-21-23, bytové družstvo"]
[null,null,"Orgán","statutární orgán"]
[null,null,"Funkce","předseda představenstva"]
[]
["Jméno a příjmení, včetně titulů",null,null,"Ing. Pavel Čejka, MBA","Bod 1 písm. i)\n bod 1"]
["Označení orgánu a v něm vykonávané funkce nebo označení pozice ve vrcholném vedení, a datum, od kdy osoba vykonává příslušnou funkci nebo zastává danou pozici",null,"Orgán","představenstvo","Bod 1 písm. i)\n bod 2"]
[null,null,"Funkce/pozice","předseda představenstva"]
[null,null,"Datum počátku výkonu funkce/pozice","7. července 2020/člen představenstva od 1. července 2020"]
["Dosavadní zkušenosti a kvalifikační předpoklady pro výkon dané funkce nebo zastávané pozice",{"$nulls":3},"Bod 1 písm. i)\n bod 3"]
[{"$nulls":3},"České vysoké učení technické, Praha, Fakulta dopravní"]
["Členství  v orgánech jiných právnických osob ",null,null,"ano","Bod 1 písm. i)\n bod 4"]
["Označení právnické osoby, orgánu a v něm vykonávané funkce ",null,"Označení právnické osoby","Asociace českých stavebních spořitelen"]
[null,null,"Orgán","prezidium"]
[null,null,"Funkce","místopředseda "]
[]
["Jméno a příjmení, včetně titulů",null,null,"Bc. Jiří Antoš","Bod 1 písm. i)\n bod 1"]
["Označení orgánu a v něm vykonávané funkce nebo označení pozice ve vrcholném vedení, a datum, od kdy osoba vykonává příslušnou funkci nebo zastává danou pozici",null,"Orgán","představenstvo","Bod 1 písm. i)\n bod 2"]
[null,null,"Funkce/pozice","místopředseda představenstva"]
[null,null,"Datum počátku výkonu funkce/pozice","1. června 2021"]
["Dosavadní zkušenosti a kvalifikační předpoklady pro výkon dané funkce nebo zastávané pozice",{"$nulls":3},"Bod 1 písm. i)\n bod 3"]
[{"$nulls":3},"Bankovní institut vysoká škola Praha "]
["Členství  v orgánech jiných právnických osob ",null,null,"ne","Bod 1 písm. i)\n bod 4"]
[]
["Jméno a příjmení, včetně titulů",null,null,"Ing. Yvona Tošnerová","Bod 1 písm. i)\n bod 1"]
["Označení orgánu a v něm vykonávané funkce nebo označení pozice ve vrcholném vedení, a datum, od kdy osoba vykonává příslušnou funkci nebo zastává danou pozici",null,"Orgán","představenstvo","Bod 1 písm. i)\n bod 2"]
[null,null,"Funkce/pozice","místopředseda představenstva"]
[null,null,"Datum počátku výkonu funkce/pozice","1. července 2021"]
["Dosavadní zkušenosti a kvalifikační předpoklady pro výkon dané funkce nebo zastávané pozice",{"$nulls":3},"Bod 1 písm. i)\n bod 3"]
[{"$nulls":3},"Vysoká škola ekonomická v Praze"]
["Členství  v orgánech jiných právnických osob ",null,null,"ano","Bod 1 písm. i)\n bod 4"]
["Označení právnické osoby, orgánu a v něm vykonávané funkce ",null,"Označení právnické osoby","Společenství vlastníků domu Někrasova 3"]
[null,null,"Orgán","statutární orgán"]
[null,null,"Funkce","člen výboru"]
[]
["Jméno a příjmení, včetně titulů",null,null,"Eva Bártová, DiS.","Bod 1 písm. i)\n bod 1"]
["Označení orgánu a v něm vykonávané funkce nebo označení pozice ve vrcholném vedení, a datum, od kdy osoba vykonává příslušnou funkci nebo zastává danou pozici",null,"Orgán","vrcholné vedení","Bod 1 písm. i)\n bod 2"]
[null,null,"Funkce/pozice","ředitelka odboru procesního rozvoje a státní podpory"]
[null,null,"Datum počátku výkonu funkce/pozice","1. května 2021"]
["Dosavadní zkušenosti a kvalifikační předpoklady pro výkon dané funkce nebo zastávané pozice",{"$nulls":3},"Bod 1 písm. i)\n bod 3"]
[{"$nulls":3},"Bankovní akademie – vyšší odborná škola, Praha"]
["Členství  v orgánech jiných právnických osob ",null,null,"ne","Bod 1 písm. i)\n bod 4"]
[]
["Jméno a příjmení, včetně titulů",null,null,"Mgr. Michaela Fingerová","Bod 1 písm. i)\n bod 1"]
["Označení orgánu a v něm vykonávané funkce nebo označení pozice ve vrcholném vedení, a datum, od kdy osoba vykonává příslušnou funkci nebo zastává danou pozici",null,"Orgán","vrcholné vedení","Bod 1 písm. i)\n bod 2"]
[null,null,"Funkce/pozice","ředitelka odboru právního"]
[null,null,"Datum počátku výkonu funkce/pozice","1. června 2018"]
["Dosavadní zkušenosti a kvalifikační předpoklady pro výkon dané funkce nebo zastávané pozice",{"$nulls":3},"Bod 1 písm. i)\n bod 3"]
[{"$nulls":3},"Univerzita Karlova, Praha, Právnická fakulta"]
["Členství  v orgánech jiných právnických osob ",null,null,"ne","Bod 1 písm. i)\n bod 4"]
[]
["Jméno a příjmení, včetně titulů",null,null,"Mgr. Lukáš Fremut","Bod 1 písm. i)\n bod 1"]
["Označení orgánu a v něm vykonávané funkce nebo označení pozice ve vrcholném vedení, a datum, od kdy osoba vykonává příslušnou funkci nebo zastává danou pozici",null,"Orgán","vrcholné vedení","Bod 1 písm. i)\n bod 2"]
[null,null,"Funkce/pozice","ředitel odboru IT"]
[null,null,"Datum počátku výkonu funkce/pozice","2025-05-01"]
["Dosavadní zkušenosti a kvalifikační předpoklady pro výkon dané funkce nebo zastávané pozice",{"$nulls":3},"Bod 1 písm. i)\n bod 3"]
["Policejní akademie ČR v Praze, fakulta Bezpečnostního managementu, více jak 5 let zkušeností v bance v oblasti vedení IT projektů "]
["Členství  v orgánech jiných právnických osob ",null,null,"ne","Bod 1 písm. i)\n bod 4"]
["Označení právnické osoby, orgánu a v něm vykonávané funkce ",null,"Označení právnické osoby"]
[null,null,"Orgán"]
[null,null,"Funkce"]
[]
["Jméno a příjmení, včetně titulů",null,null,"Ing. Michal Noha","Bod 1 písm. i)\n bod 1"]
["Označení orgánu a v něm vykonávané funkce nebo označení pozice ve vrcholném vedení, a datum, od kdy osoba vykonává příslušnou funkci nebo zastává danou pozici",null,"Orgán","vrcholné vedení","Bod 1 písm. i)\n bod 2"]
[null,null,"Funkce/pozice","ředitel odboru produktového managementu"]
[null,null,"Datum počátku výkonu funkce/pozice","2015-09-01"]
["Dosavadní zkušenosti a kvalifikační předpoklady pro výkon dané funkce nebo zastávané pozice",{"$nulls":3},"Bod 1 písm. i)\n bod 3"]
[{"$nulls":3},"Vysoká škola báňská - Technická univerzita Ostrava, Ekonomická fakulta"]
["Členství  v orgánech jiných právnických osob ",null,null,"ne","Bod 1 písm. i)\n bod 4"]
[]
["Jméno a příjmení, včetně titulů",null,null,"Ing. Hana Klír","Bod 1 písm. i)\n bod 1"]
["Označení orgánu a v něm vykonávané funkce nebo označení pozice ve vrcholném vedení, a datum, od kdy osoba vykonává příslušnou funkci nebo zastává danou pozici",null,"Orgán","vrcholné vedení","Bod 1 písm. i)\n bod 2"]
[null,null,"Funkce/pozice","ředitelka odboru externích obchodních sítí"]
[null,null,"Datum počátku výkonu funkce/pozice","9. ledna 2017"]
["Dosavadní zkušenosti a kvalifikační předpoklady pro výkon dané funkce nebo zastávané pozice",{"$nulls":3},"Bod 1 písm. i)\n bod 3"]
[{"$nulls":3},"Bankovní institut vysoká škola Praha "]
["Členství  v orgánech jiných právnických osob ",null,null,"ne","Bod 1 písm. i)\n bod 4"]
[]
["Jméno a příjmení, včetně titulů",null,null,"Ing. Stanislav Novotný","Bod 1 písm. i)\n bod 1"]
["Označení orgánu a v něm vykonávané funkce nebo označení pozice ve vrcholném vedení, a datum, od kdy osoba vykonává příslušnou funkci nebo zastává danou pozici",null,"Orgán","vrcholné vedení","Bod 1 písm. i)\n bod 2"]
[null,null,"Funkce/pozice","ředitel odboru podpory obchodu"]
[null,null,"Datum počátku výkonu funkce/pozice","2021-09-01"]
["Dosavadní zkušenosti a kvalifikační předpoklady pro výkon dané funkce nebo zastávané pozice",{"$nulls":3},"Bod 1 písm. i)\n bod 3"]
[{"$nulls":3},"Bankovní institut vysoká škola Praha "]
["Členství  v orgánech jiných právnických osob ",null,null,"ne","Bod 1 písm. i)\n bod 4"]
[]
["Jméno a příjmení, včetně titulů",null,null,"Ing. Eva Ďurčanová ","Bod 1 písm. i)\n bod 1"]
["Označení orgánu a v něm vykonávané funkce nebo označení pozice ve vrcholném vedení, a datum, od kdy osoba vykonává příslušnou funkci nebo zastává danou pozici",null,"Orgán","vrcholné vedení","Bod 1 písm. i)\n bod 2"]
[null,null,"Funkce/pozice","ředitel odboru péče o obchodní síť"]
[null,null,"Datum počátku výkonu funkce/pozice","15. ledna 2025"]
["Dosavadní zkušenosti a kvalifikační předpoklady pro výkon dané funkce nebo zastávané pozice",{"$nulls":3},"Bod 1 písm. i)\n bod 3"]
[null,null,"Ekonomická univerzita Bratislava, fakulta podnikového manažmentu"]
["Členství  v orgánech jiných právnických osob ",null,null,"ne","Bod 1 písm. i)\n bod 4"]
["Označení právnické osoby, orgánu a v něm vykonávané funkce ",null,"Označení právnické osoby"]
[null,null,"Orgán"]
[null,null,"Funkce"]
[]
["Jméno a příjmení, včetně titulů",null,null,"Ing. Petr Zaremba","Bod 1 písm. i)\n bod 1"]
["Označení orgánu a v něm vykonávané funkce nebo označení pozice ve vrcholném vedení, a datum, od kdy osoba vykonává příslušnou funkci nebo zastává danou pozici",null,"Orgán","vrcholné vedení","Bod 1 písm. i)\n bod 2"]
[null,null,"Funkce/pozice","ředitel odboru finančního"]
[null,null,"Datum počátku výkonu funkce/pozice","17. prosince 2010"]
["Dosavadní zkušenosti a kvalifikační předpoklady pro výkon dané funkce nebo zastávané pozice",{"$nulls":3},"Bod 1 písm. i)\n bod 3"]
[{"$nulls":3},"Vysoká škola ekonomická, Praha, Fakulta mezinárodních vztahů"]
["Členství  v orgánech jiných právnických osob ",null,null,"ne","Bod 1 písm. i)\n bod 4"]

{"sheet":"Část 1a","index":2,"n_rows":12,"n_cols":5,"rows_kept":12,"merged":[[2,0,2,4],[3,0,4,3],[3,4,4,4],[5,0,5,2],[6,0,6,2],[6,4,8,4],[7,0,7,2],[8,0,8,3]]}
["Část 1a"]
["Údaje o povinné osobě - Organizační struktura povinné osoby"]
[]
["Údaje o povinné osobě - Organizační struktura povinné osoby",{"$nulls":3},"Vyhláška č. 163/2014 Sb.\n\nPříloha č. 10"]
[]
["Informace platné k datu:",null,null,{"$f":"Obsah!C4","v":"2025-06-30"}]
["Počet obchodních míst ",null,null,158,"Bod 1 písm. h)"]
["Počet pracovníků (přepočtený stav)",null,null,61]
["Organizační struktura povinné osoby (znázorní se níže)"]
[]
[]
[null,null,"Organizační struktura platná k 30.6.2025"]

{"sheet":"Část 1b","index":3,"n_rows":1137,"n_cols":5,"rows_kept":1137,"merged":[[81,4,90,4],[85,0,87,1],[88,0,90,1],[94,0,94,2],[94,4,97,4],[95,1,95,3],[96,0,96,3],[97,1,97,2],[98,0,98,1],[99,1,99,3],[101,1,101,3],[101,4,103,4],[102,0,102,3],[103,1,103,2],[104,0,105,1],[104,4,105,4],[106,4,109,4],[107,0,109,1],[110,0,110,1],[111,1,111,3],[111,4,112,4],[112,0,112,3],[113,1,113,3],[113,4,114,4],[114,0,114,3],[115,1,115,2],[115,4,117,4],[116,0,117,1],[132,0,132,3],[133,1,133,2],[133,4,135,4],[134,0,135,1],[136,1,136,2],[136,4,139,4],[137,0,139,1],[140,0,140,1],[141,1,141,3],[141,4,142,4],[142,0,142,3],[143,1,143,3],[143,4,144,4],[144,0,144,3],[145,1,145,2],[145,4,147,4],[146,0,147,1],[148,1,148,2],[148,4,154,4],[149,0,151,1],[152,0,154,1],[155,0,155,2],[156,0,161,0],[156,1,156,2],[156,4,161,4],[157,1,157,2],[158,1,158,2],[159,1,159,2],[161,1,161,2],[162,0,162,1],[163,0,164,1],[163,4,164,4],[165,1,165,3],[165,4,169,4],[166,0,166,3],[167,1,167,3],[168,0,168,3],[169,1,169,2],[170,0,171,1],[170,4,171,4],[172,1,172,2],[172,4,175,4],[173,0,175,1],[176,0,176,1],[177,0,178,1],[177,4,178,4],[179,1,179,3],[179,4,183,4],[180,0,180,3],[181,1,181,3],[182,0,182,3],[183,1,183,2],[184,0,185,1],[184,4,185,4],[186,1,186,2],[186,4,201,4],[187,0,189,1],[190,0,192,1],[193,0,195,1],[196,0,198,1],[199,0,201,1],[202,0,202,1],[203,0,204,1],[203,4,204,4],[205,1,205,3],[205,4,209,4],[206,0,206,3],[207,1,207,3],[208,0,208,3],[209,1,209,2],[210,0,211,1],[210,4,211,4],[212,1,212,2],[212,4,215,4],[213,0,215,1],[216,0,216,1],[217,0,218,1],[217,4,218,4],[219,1,219,3],[219,4,222,4],[220,0,220,3],[221,1,221,3],[222,0,222,3],[223,1,223,2],[223,4,225,4],[224,0,225,1],[226,1,226,2],[226,4,229,4],[227,0,229,1],[230,0,230,1],[231,0,232,1],[231,4,232,4],[233,1,233,3],[233,4,237,4],[234,0,234,3],[235,1,235,3],[236,0,236,3],[237,1,237,2],[238,0,239,1],[238,4,239,4],[240,1,240,2],[240,4,243,4],[241,0,243,1],[244,0,244,2],[245,0,250,0],[245,1,245,2],[245,4,250,4],[246,1,246,2],[247,1,247,2],[248,1,248,2],[250,1,250,2],[251,0,251,1],[252,0,253,1],[252,4,253,4],[254,1,254,3],[254,4,258,4],[255,0,255,3],[256,1,256,3],[257,0,257,3],[258,1,258,2],[259,0,260,1],[259,4,260,4],[261,1,261,2],[261,4,264,4],[262,0,264,1],[265,0,265,1],[266,0,267,1],[266,4,267,4],[268,1,268,3],[268,4,271,4],[269,0,269,3],[270,1,270,3],[271,0,271,3],[272,1,272,2],[272,4,274,4],[273,0,274,1],[275,1,275,2],[275,4,278,4],[276,0,278,1],[279,0,279,1],[280,0,281,1],[280,4,281,4],[282,1,282,3],[282,4,285,4],[283,0,283,3],[284,1,284,3],[285,0,285,3],[286,1,286,2],[286,4,288,4],[287,0,288,1],[289,1,289,2],[289,4,292,4],[290,0,292,1],[293,0,293,1],[294,0,295,1],[294,4,295,4],[296,1,296,3],[296,4,300,4],[297,0,297,3],[298,1,298,3],[299,0,299,3],[300,1,300,2],[301,0,302,1],[301,4,302,4],[303,1,303,2],[303,4,306,4],[304,0,306,1],[307,0,307,1],[308,0,309,1],[308,4,309,4],[310,1,310,3],[310,4,314,4],[311,0,311,3],[312,1,312,3],[313,0,313,3],[314,1,314,2],[315,0,316,1],[315,4,316,4],[317,1,317,2],[317,4,332,4],[318,0,320,1],[321,0,323,1],[324,0,326,1],[327,0,329,1],[330,0,332,1],[333,0,333,1],[334,0,335,1],[334,4,335,4],[336,1,336,3],[336,4,340,4],[337,0,337,3],[338,1,338,3],[339,0,339,3],[340,1,340,2],[341,0,342,1],[341,4,342,4],[343,1,343,2],[343,4,346,4],[344,0,346,1],[347,0,347,1],[348,0,349,1],[348,4,349,4],[350,1,350,3],[350,4,354,4],[351,0,351,3],[352,1,352,3],[353,0,353,3],[354,1,354,2],[355,0,356,1],[355,4,356,4],[357,1,357,2],[357,4,360,4],[358,0,360,1],[361,0,361,2],[362,0,367,0],[362,1,362,2],[362,4,367,4],[363,1,363,2],[364,1,364,2],[365,1,365,2],[367,1,367,2],[368,0,368,1],[369,0,370,1],[369,4,370,4],[371,1,371,3],[371,4,374,4],[372,0,372,3],[373,1,373,3],[374,0,374,3],[375,1,375,2],[375,4,377,4],[376,0,377,1],[378,1,378,2],[378,4,381,4],[379,0,381,1],[382,0,382,1],[383,0,384,1],[383,4,384,4],[385,1,385,3],[385,4,388,4],[386,0,386,3],[387,1,387,3],[388,0,388,3],[389,1,389,2],[389,4,391,4],[390,0,391,1],[392,1,392,2],[392,4,395,4],[393,0,395,1],[396,0,396,1],[397,0,398,1],[397,4,398,4],[399,1,399,3],[399,4,402,4],[400,0,400,3],[401,1,401,3],[402,0,402,3],[403,1,403,2],[403,4,405,4],[404,0,405,1],[406,1,406,2],[406,4,409,4],[407,0,409,1],[410,0,410,1],[411,0,412,1],[411,4,412,4],[413,1,413,3],[413,4,416,4],[414,0,414,3],[415,1,415,3],[416,0,416,3],[417,1,417,2],[417,4,419,4],[418,0,419,1],[420,1,420,2],[420,4,423,4],[421,0,423,1],[424,0,424,1],[425,0,426,1],[425,4,426,4],[427,1,427,3],[427,4,430,4],[428,0,428,3],[429,1,429,3],[430,0,430,3],[431,1,431,2],[431,4,433,4],[432,0,433,1],[434,1,434,2],[434,4,437,4],[435,0,437,1],[438,0,438,1],[439,0,440,1],[439,4,440,4],[441,1,441,3],[441,4,444,4],[442,0,442,3],[443,1,443,3],[444,0,444,3],[445,1,445,2],[445,4,447,4],[446,0,447,1],[448,1,448,2],[448,4,451,4],[449,0,451,1],[452,0,452,2],[453,0,458,0],[453,1,453,2],[453,4,458,4],[454,1,454,2],[455,1,455,2],[456,1,456,2],[458,1,458,2],[459,0,459,1],[460,0,461,1],[460,4,461,4],[462,1,462,3],[462,4,465,4],[463,0,463,3],[464,1,464,3],[465,0,465,3],[466,1,466,2],[466,4,468,4],[467,0,468,1],[469,1,469,2],[469,4,472,4],[470,0,472,1],[473,0,473,1],[474,0,475,1],[474,4,475,4],[476,1,476,3],[476,4,479,4],[477,0,477,3],[478,1,478,3],[479,0,479,3],[480,1,480,2],[480,4,482,4],[481,0,482,1],[483,1,483,2],[483,4,486,4],[484,0,486,1],[487,0,487,1],[488,0,489,1],[488,4,489,4],[490,1,490,3],[490,4,493,4],[491,0,491,3],[492,1,492,3],[493,0,493,3],[494,1,494,2],[494,4,496,4],[495,0,496,1],[497,1,497,2],[497,4,500,4],[498,0,500,1],[501,0,501,1],[502,0,503,1],[502,4,503,4],[504,1,504,3],[505,0,505,3],[506,1,506,3],[507,0,507,3],[508,1,508,2],[509,0,510,1],[511,1,511,2],[511,4,514,4],[512,0,514,1],[515,0,515,1],[516,0,517,1],[516,4,517,4],[518,1,518,3],[518,4,521,4],[519,0,519,3],[520,1,520,3],[521,0,521,3],[522,1,522,2],[522,4,524,4],[523,0,524,1],[525,1,525,2],[525,4,528,4],[526,0,528,1],[529,0,529,1],[530,0,531,1],[530,4,531,4],[532,1,532,3],[532,4,535,4],[533,0,533,3],[534,1,534,3],[535,0,535,3],[536,1,536,2],[536,4,538,4],[537,0,538,1],[539,1,539,2],[539,4,542,4],[540,0,542,1],[543,0,543,1],[544,0,545,1],[544,4,545,4],[546,1,546,3],[546,4,549,4],[547,0,547,3],[548,1,548,3],[549,0,549,3],[550,1,550,2],[550,4,552,4],[551,0,552,1],[553,1,553,2],[553,4,556,4],[554,0,556,1],[557,0,557,1],[558,0,559,1],[558,4,559,4],[560,1,560,3],[560,4,563,4],[561,0,561,3],[562,1,562,3],[563,0,563,3],[564,1,564,2],[564,4,566,4],[565,0,566,1],[567,1,567,2],[567,4,570,4],[568,0,570,1],[571,0,571,2],[572,0,577,0],[572,1,572,2],[572,4,577,4],[573,1,573,2],[574,1,574,2],[575,1,575,2],[577,1,577,2],[578,0,578,1],[579,0,580,1],[579,4,580,4],[581,1,581,3],[581,4,584,4],[582,0,582,3],[583,1,583,3],[584,0,584,3],[585,1,585,2],[585,4,587,4],[586,0,587,1],[588,1,588,2],[588,4,591,4],[589,0,591,1],[592,0,592,1],[593,0,594,1],[593,4,594,4],[595,1,595,3],[595,4,598,4],[596,0,596,3],[597,1,597,3],[598,0,598,3],[599,1,599,2],[599,4,601,4],[600,0,601,1],[602,1,602,2],[602,4,605,4],[603,0,605,1],[606,0,606,1],[607,0,608,1],[607,4,608,4],[609,1,609,3],[609,4,612,4],[610,0,610,3],[611,1,611,3],[612,0,612,3],[613,1,613,2],[613,4,615,4],[614,0,615,1],[616,1,616,2],[616,4,619,4],[617,0,619,1],[620,0,620,1],[621,0,622,1],[621,4,622,4],[623,1,623,3],[623,4,626,4],[624,0,624,3],[625,1,625,3],[626,0,626,3],[627,1,627,2],[627,4,629,4],[628,0,629,1],[630,1,630,2],[630,4,633,4],[631,0,633,1],[634,0,634,1],[635,0,636,1],[635,4,636,4],[637,1,637,3],[637,4,640,4],[638,0,638,3],[639,1,639,3],[640,0,640,3],[641,1,641,2],[641,4,643,4],[642,0,643,1],[644,1,644,2],[644,4,647,4],[645,0,647,1],[648,0,648,2],[649,0,654,0],[649,1,649,2],[649,4,654,4],[650,1,650,2],[651,1,651,2],[652,1,652,2],[654,1,654,2],[655,0,655,1],[656,0,657,1],[656,4,657,4],[658,1,658,3],[658,4,662,4],[659,0,659,3],[660,1,660,3],[661,0,661,3],[662,1,662,2],[663,0,664,1],[663,4,664,4],[665,1,665,2],[665,4,680,4],[666,0,668,1],[669,0,671,1],[672,0,674,1],[675,0,677,1],[678,0,680,1],[681,0,681,1],[682,0,683,1],[682,4,683,4],[684,1,684,3],[684,4,687,4],[685,0,685,3],[686,1,686,3],[687,0,687,3],[688,1,688,2],[688,4,690,4],[689,0,690,1],[691,1,691,2],[691,4,694,4],[692,0,694,1],[695,0,695,1],[696,0,697,1],[696,4,697,4],[698,1,698,3],[698,4,701,4],[699,0,699,3],[700,1,700,3],[701,0,701,3],[702,1,702,2],[702,4,704,4],[703,0,704,1],[705,1,705,2],[705,4,708,4],[706,0,708,1],[709,0,709,1],[710,0,711,1],[710,4,711,4],[712,1,712,3],[712,4,715,4],[713,0,713,3],[714,1,714,3],[715,0,715,3],[716,1,716,2],[716,4,718,4],[717,0,718,1],[719,1,719,2],[719,4,722,4],[720,0,722,1],[723,0,723,1],[724,0,725,1],[724,4,725,4],[726,1,726,3],[726,4,729,4],[727,0,727,3],[728,1,728,3],[729,0,729,3],[730,1,730,2],[730,4,732,4],[731,0,732,1],[733,1,733,2],[733,4,736,4],[734,0,736,1],[737,0,737,1],[738,0,739,1],[738,4,739,4],[740,1,740,3],[740,4,743,4],[741,0,741,3],[742,1,742,3],[743,0,743,3],[744,1,744,2],[744,4,746,4],[745,0,746,1],[747,1,747,2],[747,4,750,4],[748,0,750,1],[751,0,751,1],[752,0,753,1],[752,4,753,4],[754,1,754,3],[754,4,757,4],[755,0,755,3],[756,1,756,3],[757,0,757,3],[758,1,758,2],[758,4,760,4],[759,0,760,1],[761,1,761,2],[761,4,764,4],[762,0,764,1],[765,0,765,2],[766,0,771,0],[766,1,766,2],[766,4,771,4],[767,1,767,2],[768,1,768,2],[769,1,769,2],[771,1,771,2],[772,0,772,1],[773,0,774,1],[773,4,774,4],[775,1,775,3],[775,4,778,4],[776,0,776,3],[777,1,777,3],[778,0,778,3],[779,1,779,2],[779,4,781,4],[780,0,781,1],[782,1,782,2],[782,4,785,4],[783,0,785,1],[786,0,786,1],[787,0,788,1],[787,4,788,4],[789,1,789,3],[789,4,792,4],[790,0,790,3],[791,1,791,3],[792,0,792,3],[793,1,793,2],[793,4,795,4],[794,0,795,1],[796,1,796,2],[796,4,799,4],[797,0,799,1],[800,0,800,1],[801,0,802,1],[803,1,803,3],[804,0,804,3],[805,1,805,3],[806,0,806,3],[807,1,807,2],[808,0,809,1],[810,1,810,2],[811,0,813,1],[814,0,814,1],[815,0,816,1],[815,4,816,4],[817,1,817,3],[817,4,820,4],[818,0,818,3],[819,1,819,3],[820,0,820,3],[821,1,821,2],[821,4,823,4],[822,0,823,1],[824,1,824,2],[824,4,827,4],[825,0,827,1],[828,0,828,1],[829,0,830,1],[829,4,830,4],[831,1,831,3],[831,4,834,4],[832,0,832,3],[833,1,833,3],[834,0,834,3],[835,1,835,2],[835,4,837,4],[836,0,837,1],[838,1,838,2],[838,4,841,4],[839,0,841,1],[842,0,842,2],[843,0,848,0],[843,1,843,2],[843,4,848,4],[844,1,844,2],[845,1,845,2],[846,1,846,2],[848,1,848,2],[849,0,849,1],[850,0,851,1],[850,4,851,4],[852,1,852,3],[852,4,855,4],[853,0,853,3],[854,1,854,3],[855,0,855,3],[856,1,856,2],[856,4,858,4],[857,0,858,1],[859,1,859,2],[859,4,862,4],[860,0,862,1],[863,0,863,1],[864,0,865,1],[864,4,865,4],[866,1,866,3],[866,4,869,4],[867,0,867,3],[868,1,868,3],[869,0,869,3],[870,1,870,2],[870,4,872,4],[871,0,872,1],[873,1,873,2],[873,4,876,4],[874,0,876,1],[877,0,877,1],[878,0,879,1],[878,4,879,4],[880,1,880,3],[880,4,883,4],[881,0,881,3],[882,1,882,3],[883,0,883,3],[884,1,884,2],[884,4,886,4],[885,0,886,1],[887,1,887,2],[887,4,890,4],[888,0,890,1],[891,0,891,1],[892,0,893,1],[892,4,893,4],[894,1,894,3],[894,4,897,4],[895,0,895,3],[896,1,896,3],[897,0,897,3],[898,1,898,2],[898,4,900,4],[899,0,900,1],[901,1,901,2],[901,4,904,4],[902,0,904,1],[905,0,905,1],[906,0,907,1],[906,4,907,4],[908,1,908,3],[908,4,911,4],[909,0,909,3],[910,1,910,3],[911,0,911,3],[912,1,912,2],[912,4,914,4],[913,0,914,1],[915,1,915,2],[915,4,918,4],[916,0,918,1],[919,0,919,1],[920,0,921,1],[920,4,921,4],[922,1,922,3],[922,4,925,4],[923,0,923,3],[924,1,924,3],[925,0,925,3],[926,1,926,2],[926,4,928,4],[927,0,928,1],[929,1,929,2],[929,4,932,4],[930,0,932,1],[933,0,933,1],[934,0,935,1],[934,4,935,4],[936,1,936,3],[936,4,939,4],[937,0,937,3],[938,1,938,3],[939,0,939,3],[940,1,940,2],[940,4,942,4],[941,0,942,1],[943,1,943,2],[943,4,946,4],[944,0,946,1],[947,0,947,1],[948,0,949,1],[948,4,949,4],[950,1,950,3],[950,4,953,4],[951,0,951,3],[952,1,952,3],[953,0,953,3],[954,1,954,2],[954,4,956,4],[955,0,956,1],[957,1,957,2],[957,4,960,4],[958,0,960,1],[961,0,961,1],[962,0,963,1],[962,4,963,4],[964,1,964,3],[964,4,967,4],[965,0,965,3],[966,1,966,3],[967,0,967,3],[968,1,968,2],[968,4,970,4],[969,0,970,1],[971,1,971,2],[971,4,974,4],[972,0,974,1],[975,0,975,2],[976,0,981,0],[976,1,976,2],[976,4,981,4],[977,1,977,2],[978,1,978,2],[979,1,979,2],[981,1,981,2],[982,0,982,1],[983,0,984,1],[983,4,984,4],[985,1,985,3],[985,4,988,4],[986,0,986,3],[987,1,987,3],[988,0,988,3],[989,1,989,2],[989,4,991,4],[990,0,991,1],[992,1,992,2],[992,4,995,4],[993,0,995,1],[996,0,996,1],[997,0,998,1],[997,4,998,4],[999,1,999,3],[999,4,1002,4],[1000,0,1000,3],[1001,1,1001,3],[1002,0,1002,3],[1003,1,1003,2],[1003,4,1005,4],[1004,0,1005,1],[1006,1,1006,2],[1006,4,1009,4],[1007,0,1009,1],[1010,0,1010,1],[1011,0,1012,1],[1011,4,1012,4],[1013,1,1013,3],[1013,4,1016,4],[1014,0,1014,3],[1015,1,1015,3],[1016,0,1016,3],[1017,1,1017,2],[1017,4,1019,4],[1018,0,1019,1],[1020,1,1020,2],[1020,4,1023,4],[1021,0,1023,1],[1024,0,1024,1],[1025,0,1026,1],[1025,4,1026,4],[1027,1,1027,3],[1027,4,1030,4],[1028,0,1028,3],[1029,1,1029,3],[1030,0,1030,3],[1031,1,1031,2],[1031,4,1033,4],[1032,0,1033,1],[1034,1,1034,2],[1034,4,1037,4],[1035,0,1037,1],[1038,0,1038,1],[1039,0,1040,1],[1039,4,1040,4],[1041,1,1041,3],[1041,4,1044,4],[1042,0,1042,3],[1043,1,1043,3],[1044,0,1044,3],[1045,1,1045,2],[1045,4,1047,4],[1046,0,1047,1],[1048,1,1048,2],[1048,4,1051,4],[1049,0,1051,1],[1052,0,1052,1],[1053,0,1054,1],[1053,4,1054,4],[1055,1,1055,3],[1055,4,1059,4],[1056,0,1056,3],[1057,1,1057,3],[1058,0,1058,3],[1059,1,1059,2],[1060,0,1061,1],[1060,4,1061,4],[1062,1,1062,2],[1062,4,1080,4],[1063,0,1065,1],[1066,0,1068,1],[1069,0,1071,1],[1072,0,1074,1],[1075,0,1077,1],[1078,0,1080,1],[1081,0,1081,1],[1082,0,1083,1],[1082,4,1083,4],[1084,1,1084,3],[1084,4,1087,4],[1085,0,1085,3],[1086,1,1086,3],[1087,0,1087,3],[1088,1,1088,2],[1088,4,1090,4],[1089,0,1090,1],[1091,1,1091,2],[1091,4,1094,4],[1092,0,1094,1],[1095,0,1095,1],[1096,0,1097,1],[1096,4,1097,4],[1098,1,1098,3],[1098,4,1101,4],[1099,0,1099,3],[1100,1,1100,3],[1101,0,1101,3],[1102,1,1102,2],[1102,4,1104,4],[1103,0,1104,1],[1105,1,1105,2],[1105,4,1108,4],[1106,0,1108,1],[1109,0,1109,1],[1110,0,1111,1],[1110,4,1111,4],[1112,1,1112,3],[1112,4,1115,4],[1113,0,1113,3],[1114,1,1114,3],[1115,0,1115,3],[1116,1,1116,2],[1116,4,1118,4],[1117,0,1118,1],[1119,1,1119,2],[1119,4,1122,4],[1120,0,1122,1],[1123,0,1123,1],[1124,0,1125,1],[1124,4,1125,4],[1126,1,1126,3],[1126,4,1129,4],[1127,0,1127,3],[1128,1,1128,3],[1129,0,1129,3],[1130,1,1130,2],[1130,4,1132,4],[1131,0,1132,1],[1133,1,1133,2],[1133,4,1136,4],[1134,0,1136,1]],"merged_total":1088,"flags":["merged_cut"]}
["Část 1b"]
["Údaje o povinné osobě -  Údaje o výborech zřízených povinnou osobou"]
[]
["Údaje o povinné osobě - Údaje o výborech zřízených povinnou osobou",{"$nulls":3},"Vyhláška č. 163/2014 Sb.\n\nPříloha č. 10"]
[]
["Informace platné k datu:",null,null,{"$f":"' Část 1'!D6","v":"2025-06-30"}]
["Označení výboru:",null,null,"Povinná osoba výbor zřizuje","Bod 1 písm. j)"]
[null,"Výbor pro odměňování",null,"ne"]
[null,"Výbor pro rizika",null,"ne"]
[null,"Výbor pro jmenování",null,"ne"]
[null,"Výbor pro audit",null,"ano"]
[null,"Výbor pro řízení aktiv a pasiv (ALCO)",null,"ano"]
[null,"Výbor pro řízení úvěrových rizik (CRCO)",null,"ano"]
[null,"Výbor pro marketing a PR (MAR)",null,"ano "]
[null,"Obchodní výbor (COMCO)",null,"ano"]
[null,"Výbor pro bezpečnost (LSC)",null,"ano"]
[null,"Výbor pro řízení operačního rizika a ŘKS (ORMCC)",null,"ano"]
[null,"Výbor pro řízení IT (ITCO)",null,"ano"]
[null,"Výbor pro řízení změn (CMCO)",null,"ano"]
[null,"Výbor pro řízení outsourcingu (OMCO)",null,"ano"]
["Údaje o výborech zřízených povinnou osobou samostatně za každý jednotlivý výbor v rozsahu:"]
["Označení výboru:",null,null,"Výbor pro audit","Bod 1 písm. j) bod 1"]
[null,"Působnost výboru",null,"dle zákona o auditorech","Bod 1 písm. j) bod 2"]
[null,"Pravomoci výboru",null,"kontrolní činnost"]
[null,"Způsob jednání a rozhodování výboru",null,"tři členové, jednání zpravidla třikrát za rok"]
[null,"Začlenění výboru do organizačního uspořádání  povinné osoby",null,"orgán společnosti"]
[null,"Začlenění výboru do  informačních toků povinné osoby"]
[null,"Údaje  o jednotlivých členech výboru v rozsahu:"]
[null,null,"Jméno a příjmení, včetně titulů","Ing. Stanislav Staněk","Bod 1 písm. j) bod 3 písm. a)"]
["Označení funkce vykonávané ve výboru, datum, od kdy osoba příslušnou funkci ve výboru vykonává",null,"Funkce/pozice","předseda","Bod 1 písm. j) bod 3 písm. b)"]
[null,null,"Datum počátku výkonu funkce/pozice","19.01.2022 (člen od 01.12.2021)"]
[null,"Dosavadní zkušenosti a kvalifikační předpoklady pro výkon funkce ve výboru",null,null,"Bod 1 písm. j) bod 3 písm. c)"]
["více než 30 let zkušeností s auditorskou činností, 25 let statutárním auditorem, člen pracovních skupin Komory auditorů a MF, od roku 2016 aktivním členem výborů pro audit."]
["                                 ","Skutečnost, zda povinná osoba považuje člena výboru za nezávislého"]
["ano"]
[null,"Členství a vykonávaná funkce v orgánech povinné osoby ",null,"ne"]
["Označení orgánu povinné osoby, jehož je člen výboru členem, a funkce v něm vykonávané  ",null,"Orgán",null,"Bod 1 písm. j) bod 3 písm. d)"]
[null,null,"Funkce/pozice"]
[null,"Členství a vykonávané funkce v orgánech jiných právnických osob",null,"ano","Bod 1 písm. j) bod 3 písm. e)"]
["Označení právnické osoby, v níž  je člen výboru členem orgánu, označení tohoto orgánu a v něm vykonávané funkce",null,"Označení právnické osoby","Raiffeisenbank a.s."]
[null,null,"Orgán","Výbor pro audit"]
[null,null,"Funkce","člen"]
["Označení právnické osoby, v níž  je člen výboru členem orgánu, označení tohoto orgánu a v něm vykonávané funkce",null,"Označení právnické osoby","NET4GAS, s.r.o."]
[null,null,"Orgán","Výbor pro audit"]
[null,null,"Funkce","předseda"]
["Označení právnické osoby, v níž  je člen výboru členem orgánu, označení tohoto orgánu a v něm vykonávané funkce",null,"Označení právnické osoby","Česká exportní banka, a.s."]
[null,null,"Orgán","Výbor pro audit"]
[null,null,"Funkce","člen"]
["Označení právnické osoby, v níž  je člen výboru členem orgánu, označení tohoto orgánu a v něm vykonávané funkce",null,"Označení právnické osoby","Společenství vlastníků jednotek pro dům č.p. 2372 v ulici Nad Okrouhlíkem, Praha 8"]
[null,null,"Orgán","výbor"]
[null,null,"Funkce","místopředseda výboru"]
["Označení právnické osoby, v níž  je člen výboru členem orgánu, označení tohoto orgánu a v něm vykonávané funkce",null,"Označení právnické osoby","Dopravní podnik hl. m. Prahy, akciová společnost"]
[null,null,"Orgán","Výbor pro audit"]
[null,null,"Funkce","místopředseda"]
[null,null,"Jméno a příjmení, včetně titulů","Mag. Dr. Martin Stotter","Bod 1 písm. j) bod 3 písm. a)"]
["Označení funkce vykonávané ve výboru, datum, od kdy osoba příslušnou funkci ve výboru vykonává",null,"Funkce/pozice","místopředseda","Bod 1 písm. j) bod 3 písm. b)"]
[null,null,"Datum počátku výkonu funkce/pozice","19. 1. 2022 (člen od 1. 10. 2020)"]
[null,"Dosavadní zkušenosti a kvalifikační předpoklady pro výkon funkce ve výboru",null,null,"Bod 1 písm. j) bod 3 písm. c)"]
["Univerzita Graz, Právnická fakulta; dlouholetá praxe v bankovnictví"]
["                                 ","Skutečnost, zda povinná osoba považuje člena výboru za nezávislého"]
["ano"]
[null,"Členství a vykonávaná funkce v orgánech povinné osoby ",null,"ano"]
["Označení orgánu povinné osoby, jehož je člen výboru členem, a funkce v něm vykonávané  ",null,"Orgán","dozorčí rada","Bod 1 písm. j) bod 3 písm. d)"]
[null,null,"Funkce/pozice","člen"]
[null,"Členství a vykonávané funkce v orgánech jiných právnických osob",null,"ano","Bod 1 písm. j) bod 3 písm. e)"]
["Označení právnické osoby, v níž  je člen výboru členem orgánu, označení tohoto orgánu a v něm vykonávané funkce",null,"Označení právnické osoby","Raiffeisenbank a.s."]
[null,null,"Orgán","představenstvo"]
[null,null,"Funkce","člen"]
["Označení právnické osoby, v níž  je člen výboru členem orgánu, označení tohoto orgánu a v něm vykonávané funkce",null,"Označení právnické osoby","Raiffeisen - Leasing, s.r.o."]
[null,null,"Orgán","dozorčí rada"]
[null,null,"Funkce","člen"]
[null,null,"Jméno a příjmení, včetně titulů","Ing. Martin Smekal","Bod 1 písm. j) bod 3 písm. a)"]
["Označení funkce vykonávané ve výboru, datum, od kdy osoba příslušnou funkci ve výboru vykonává",null,"Funkce/pozice","člen","Bod 1 písm. j) bod 3 písm. b)"]
[null,null,"Datum počátku výkonu funkce/pozice","2021-12-01"]
[null,"Dosavadní zkušenosti a kvalifikační předpoklady pro výkon funkce ve výboru",null,null,"Bod 1 písm. j) bod 3 písm. c)"]
["Dlouholeté zkušenosti v oblasti finančního řízení, externího a interního auditu, řízení rizik, SOX a dalších souvisejících oblastech. Partnerem ve společnostech EY a Delloitte. Členem a výkonným ředitelem Institutu členů správních orgánů."]
["                                 ","Skutečnost, zda povinná osoba považuje člena výboru za nezávislého"]
["ano"]
[null,"Členství a vykonávaná funkce v orgánech povinné osoby ",null,"ne"]
["Označení orgánu povinné osoby, jehož je člen výboru členem, a funkce v něm vykonávané  ",null,"Orgán",null,"Bod 1 písm. j) bod 3 písm. d)"]
[null,null,"Funkce/pozice"]
[null,"Členství a vykonávané funkce v orgánech jiných právnických osob",null,"ne","Bod 1 písm. j) bod 3 písm. e)"]
["Označení právnické osoby, v níž  je člen výboru členem orgánu, označení tohoto orgánu a v něm vykonávané funkce",null,"Označení právnické osoby","Inovum, agentura pro podporu a rozvoj inovací, o.p.s."]
[null,null,"Orgán","statutární orgán"]
[null,null,"Funkce","ředitel"]
["Označení právnické osoby, v níž  je člen výboru členem orgánu, označení tohoto orgánu a v něm vykonávané funkce",null,"Označení právnické osoby","Transfera.cz, spolek"]
[null,null,"Orgán","představenstvo"]
[null,null,"Funkce","člen"]
["Označení právnické osoby, v níž  je člen výboru členem orgánu, označení tohoto orgánu a v něm vykonávané funkce",null,"Označení právnické osoby","SciCare - Innovations, s.r.o."]
[null,null,"Orgán","dozorčí rada"]
[null,null,"Funkce","člen"]
["Označení právnické osoby, v níž  je člen výboru členem orgánu, označení tohoto orgánu a v něm vykonávané funkce",null,"Označení právnické osoby","AffiPro s.r.o."]
[null,null,"Orgán","dozorčí rada"]
[null,null,"Funkce","předseda"]
["Označení výboru, který nebyl povinnou osobou zřízen:",null,null,"výbor pro rizika\nvýbor pro jmenování\nvýbor pro odměňování","Bod 1 písm. j) bod 3 písm. a)"]
[null,"Důvody pro nezřízení výborů"]
["Společnost nemá s ohledem na velikost (postavení na trhu) povinnost výbory zřizovat, funkci výborů plní dozorčí rada."]
[null,"Údaje  o jednotlivých členech kontrolního orgánu  v rozsahu:"]
[null,null,"Jméno a příjmení, včetně titulů","PhDr. Vladimír Kreidl, MSc.","Bod 1 písm. j) bod 3 písm. a)"]
[null,"Dosavadní zkušenosti a kvalifikační předpoklady pro výkon funkce v kontrolním orgánu",null,null,"Bod 1 písm. j) bod 3 písm. b)"]
["Univerzita Karlova, Praha, Fakulta sociálních věd"]
["                                 ","Skutečnost, zda povinná osoba považuje člena kontrolního orgánu za nezávislého",null,null,"Bod 1 písm. j) bod 3 písm. c)"]
["ano"]
[null,"Členství a vykonávaná funkce v orgánech povinné osoby ",null,"ano"]
["Označení orgánu povinné osoby, jehož je člen kontrolního orgánu členem, a funkce v něm vykonávané  ",null,"Orgán","dozorčí rada","Bod 1 písm. j) bod 3 písm. d)"]
[null,null,"Funkce/pozice","předseda"]
[null,"Členství a vykonávané funkce v orgánech jiných právnických osob",null,"ano","Bod 1 písm. j) bod 3 písm. e)"]
["Označení právnické osoby, v níž  je člen kontrolního orgánu členem orgánu, označení tohoto orgánu a v něm vykonávané funkce",null,"Označení právnické osoby","Raiffeisenbank a.s."]
[null,null,"Orgán","představenstvo"]
[null,null,"Funkce","člen"]
[null,null,"Jméno a příjmení, včetně titulů","Ing. Igor Vida","Bod 1 písm. j) bod 3 písm. a)"]
[null,"Dosavadní zkušenosti a kvalifikační předpoklady pro výkon funkce v kontrolním orgánu",null,null,"Bod 1 písm. j) bod 3 písm. b)"]
["Slovenská technická univerzita, Bratislava, Elektrotechnická fakulta"]
["                                 ","Skutečnost, zda povinná osoba považuje člena kontrolního orgánu za nezávislého",null,null,"Bod 1 písm. j) bod 3 písm. c)"]
["ano"]
[null,"Členství a vykonávaná funkce v orgánech povinné osoby ",null,"ano","Bod 1 písm. j) bod 3 písm. d)"]
["Označení orgánu povinné osoby, jehož je člen kontrolního orgánu členem, a funkce v něm vykonávané  ",null,"Orgán","dozorčí rada"]
[null,null,"Funkce/pozice","člen"]
[null,"Členství a vykonávané funkce v orgánech jiných právnických osob",null,"ano","Bod 1 písm. j) bod 3 písm. e)"]
["Označení právnické osoby, v níž  je člen kontrolního orgánu členem orgánu, označení tohoto orgánu a v něm vykonávané funkce",null,"Označení právnické osoby","Raiffeisenbank a.s."]
[null,null,"Orgán","představenstvo"]
[null,null,"Funkce","předseda"]
["Označení právnické osoby, v níž  je člen kontrolního orgánu členem orgánu, označení tohoto orgánu a v něm vykonávané funkce",null,"Označení právnické osoby","Česká bankovní asociace "]
[null,null,"Orgán","prezidium"]
[null,null,"Funkce","člen"]
["Označení právnické osoby, v níž  je člen kontrolního orgánu členem orgánu, označení tohoto orgánu a v něm vykonávané funkce",null,"Označení právnické osoby","Raiffeisen - Leasing, s.r.o."]
[null,null,"Orgán","dozorčí rada"]
[null,null,"Funkce","člen"]
[null,null,"Jméno a příjmení, včetně titulů","Kamila Makhmudova, LL.M, MBA","Bod 1 písm. j) bod 3 písm. a)"]
[null,"Dosavadní zkušenosti a kvalifikační předpoklady pro výkon funkce v kontrolním orgánu",null,null,"Bod 1 písm. j) bod 3 písm. b)"]
["University of World Economy and Diplomacy - Taškent, University of Economics and Business Administration - Vídeň, University of Minnesota - USA "]
["                                 ","Skutečnost, zda povinná osoba považuje člena kontrolního orgánu za nezávislého",null,null,"Bod 1 písm. j) bod 3 písm. c)"]
["ano"]
[null,"Členství a vykonávaná funkce v orgánech povinné osoby ",null,"ano","Bod 1 písm. j) bod 3 písm. d)"]
["Označení orgánu povinné osoby, jehož je člen kontrolního orgánu členem, a funkce v něm vykonávané  ",null,"Orgán","dozorčí rada"]
[null,null,"Funkce/pozice","členka"]
[null,"Členství a vykonávané funkce v orgánech jiných právnických osob",null,"ano","Bod 1 písm. j) bod 3 písm. e)"]
["Označení právnické osoby, v níž  je člen kontrolního orgánu členem orgánu, označení tohoto orgánu a v něm vykonávané funkce",null,"Označení právnické osoby","Raiffeisenbank a.s."]
[null,null,"Orgán","představenstvo"]
[null,null,"Funkce","členka"]
[null,null,"Jméno a příjmení, včetně titulů","Ing. Ondřej Hák","Bod 1 písm. j) bod 3 písm. a)"]
[null,"Dosavadní zkušenosti a kvalifikační předpoklady pro výkon funkce v kontrolním orgánu",null,null,"Bod 1 písm. j) bod 3 písm. b)"]
["                                                                     Masarykova univerzita Brno - ekonomika a finance"]
["                                 ","Skutečnost, zda povinná osoba považuje člena kontrolního orgánu za nezávislého",null,null,"Bod 1 písm. j) bod 3 písm. c)"]
["ano"]
[null,"Členství a vykonávaná funkce v orgánech povinné osoby ",null,"ano","Bod 1 písm. j) bod 3 písm. d)"]
["Označení orgánu povinné osoby, jehož je člen kontrolního orgánu členem, a funkce v něm vykonávané  ",null,"Orgán","dozorčí rada"]
[null,null,"Funkce/pozice","člen"]
[null,"Členství a vykonávané funkce v orgánech jiných právnických osob",null,"ano","Bod 1 písm. j) bod 3 písm. e)"]
["Označení právnické osoby, v níž  je člen kontrolního orgánu členem orgánu, označení tohoto orgánu a v něm vykonávané funkce",null,"Označení právnické osoby","Visto clinic s.r.o."]
[null,null,"Orgán","statutární orgán"]
[null,null,"Funkce","jednatel"]
["Označení právnické osoby, v níž  je člen kontrolního orgánu členem orgánu, označení tohoto orgánu a v něm vykonávané funkce",null,"Označení právnické osoby","Kladenská 19-21-23, bytové družstvo"]
[null,null,"Orgán","statutární orgán"]
[null,null,"Funkce","předseda představenstva"]
["Označení výboru:",null,null,"Výbor pro řízení aktiv a pasiv","Bod 1 písm. j) bod 1"]
[null,"Působnost výboru",null,"vymezena jeho statutem - výbor zodpovídá za koordinaci rozvahových a podrozvahových položek pro maximální zisk a pro řízení tržních a jiných rizik ","Bod 1 písm. j) bod 2"]
[null,"Pravomoci výboru",null,"rozhodovací a výkonná pravomoc"]
[null,"Způsob jednání a rozhodování výboru",null,"sedm členů, jednání alespoň jednou  měsíčně"]
[null,"Začlenění výboru do organizačního uspořádání  povinné osoby",null,"výkonný orgán představenstva"]
[null,"Začlenění výboru do  informačních toků povinné osoby",null,"kolektivní posuzování, projednávání, rozhodování a schvalování zásadních a odborných otázek řízení a činnosti společnosti v rozsahu stanoveném představenstvem ve statutu výboru, o rozhodnutích je informováno představenstvo společnosti, které má právo rozhodnutí korigovat, popř. zamítnout "]
[null,"Údaje  o jednotlivých členech výboru v rozsahu:"]
[null,null,"Jméno a příjmení, včetně titulů","Ing. Petr Zaremba","Bod 1 písm. j) bod 3 písm. a)"]
["Označení funkce vykonávané ve výboru, datum, od kdy osoba příslušnou funkci ve výboru vykonává",null,"Funkce/pozice","předseda","Bod 1 písm. j) bod 3 písm. b)"]
[null,null,"Datum počátku výkonu funkce/pozice","01.07.2022 (člen od 01.09.2021)"]
[null,"Dosavadní zkušenosti a kvalifikační předpoklady pro výkon funkce ve výboru",null,null,"Bod 1 písm. j) bod 3 písm. c)"]
["Vysoká škola ekonomická v Praze"]
["                                 ","Skutečnost, zda povinná osoba považuje člena výboru za nezávislého"]
["ano"]
[null,"Členství a vykonávaná funkce v orgánech povinné osoby ",null,"ne"]
["Označení orgánu povinné osoby, jehož je člen výboru členem, a funkce v něm vykonávané  ",null,"Orgán",null,"Bod 1 písm. j) bod 3 písm. d)"]
[null,null,"Funkce/pozice"]
[null,"Členství a vykonávané funkce v orgánech jiných právnických osob",null,"ne","Bod 1 písm. j) bod 3 písm. e)"]
["Označení právnické osoby, v níž  je člen výboru členem orgánu, označení tohoto orgánu a v něm vykonávané funkce",null,"Označení právnické osoby"]
[null,null,"Orgán"]
[null,null,"Funkce"]
[null,null,"Jméno a příjmení, včetně titulů","Mgr. Pavel Hruška","Bod 1 písm. j) bod 3 písm. a)"]
["Označení funkce vykonávané ve výboru, datum, od kdy osoba příslušnou funkci ve výboru vykonává",null,"Funkce/pozice","Místopředseda","Bod 1 písm. j) bod 3 písm. b)"]
[null,null,"Datum počátku výkonu funkce/pozice","2022-07-01"]
[null,"Dosavadní zkušenosti a kvalifikační předpoklady pro výkon funkce ve výboru",null,null,"Bod 1 písm. j) bod 3 písm. c)"]
["Matemeticko-fyzikální fakulta UK, 16 let praxe v bankovnictví, 13 let praxe v oblasti risku"]
["                                 ","Skutečnost, zda povinná osoba považuje člena výboru za nezávislého"]
["ano"]
[null,"Členství a vykonávaná funkce v orgánech povinné osoby ",null,"ne"]
["Označení orgánu povinné osoby, jehož je člen výboru členem, a funkce v něm vykonávané  ",null,"Orgán",null,"Bod 1 písm. j) bod 3 písm. d)"]
[null,null,"Funkce/pozice"]
[null,"Členství a vykonávané funkce v orgánech jiných právnických osob",null,"ano","Bod 1 písm. j) bod 3 písm. e)"]
["Označení právnické osoby, v níž  je člen výboru členem orgánu, označení tohoto orgánu a v něm vykonávané funkce",null,"Označení právnické osoby","Společenství vlastníků jednotek Sadská 482, 483, 484, Praha 9 - Hloubětín"]
[null,null,"Orgán","statutární orgán"]
[null,null,"Funkce","předseda výboru"]
["Označení právnické osoby, v níž  je člen výboru členem orgánu, označení tohoto orgánu a v něm vykonávané funkce",null,"Označení právnické osoby","Společenství vlastníků Kardašovská 625,626,668,669"]
[null,null,"Orgán","statutární orgán"]
[null,null,"Funkce","místopředseda výboru"]
["Označení právnické osoby, v níž  je člen výboru členem orgánu, označení tohoto orgánu a v něm vykonávané funkce",null,"Označení právnické osoby","Společenství vlastníků Zelenečská 954, Praha 9"]
[null,null,"Orgán","statutární orgán"]
[null,null,"Funkce","místopředseda výboru"]
["Označení právnické osoby, v níž  je člen výboru členem orgánu, označení tohoto orgánu a v něm vykonávané funkce",null,"Označení právnické osoby","Bytové družstvo Sadská"]
[null,null,"Orgán","statutární orgán"]
[null,null,"Funkce","předseda představenstva"]
["Označení právnické osoby, v níž  je člen výboru členem orgánu, označení tohoto orgánu a v něm vykonávané funkce",null,"Označení právnické osoby","Bydlení Kbely s.r.o."]
[null,null,"Orgán","statutární orgán"]
[null,null,"Funkce","jednatel"]
[null,null,"Jméno a příjmení, včetně titulů","Ing. Yvona Tošnerová","Bod 1 písm. j) bod 3 písm. a)"]
["Označení funkce vykonávané ve výboru, datum, od kdy osoba příslušnou funkci ve výboru vykonává",null,"Funkce/pozice","člen","Bod 1 písm. j) bod 3 písm. b)"]
[null,null,"Datum počátku výkonu funkce/pozice","2021-09-01"]
[null,"Dosavadní zkušenosti a kvalifikační předpoklady pro výkon funkce ve výboru",null,null,"Bod 1 písm. j) bod 3 písm. c)"]
["Vysoká škola ekonomická v Praze"]
["                                 ","Skutečnost, zda povinná osoba považuje člena výboru za nezávislého"]
["ano"]
[null,"Členství a vykonávaná funkce v orgánech povinné osoby "]
["Označení orgánu povinné osoby, jehož je člen výboru členem, a funkce v něm vykonávané  ",null,"Orgán","představenstvo","Bod 1 písm. j) bod 3 písm. d)"]
[null,null,"Funkce/pozice","místopředsedkyně představenstva"]
[null,"Členství a vykonávané funkce v orgánech jiných právnických osob",null,"ano","Bod 1 písm. j) bod 3 písm. e)"]
["Označení právnické osoby, v níž  je člen výboru členem orgánu, označení tohoto orgánu a v něm vykonávané funkce",null,"Označení právnické osoby","Společenství vlastníků domu Někrasova 3"]
[null,null,"Orgán","statutární orgán"]
[null,null,"Funkce","člen výboru"]
[null,null,"Jméno a příjmení, včetně titulů","Ing. Pavel Čejka, MBA","Bod 1 písm. j) bod 3 písm. a)"]
["Označení funkce vykonávané ve výboru, datum, od kdy osoba příslušnou funkci ve výboru vykonává",null,"Funkce/pozice","člen","Bod 1 písm. j) bod 3 písm. b)"]
[null,null,"Datum počátku výkonu funkce/pozice","2021-09-01"]
[null,"Dosavadní zkušenosti a kvalifikační předpoklady pro výkon funkce ve výboru",null,null,"Bod 1 písm. j) bod 3 písm. c)"]
["České vysoké učení technické, Praha, Fakulta dopravní"]
["                                 ","Skutečnost, zda povinná osoba považuje člena výboru za nezávislého"]
["ano"]
[null,"Členství a vykonávaná funkce v orgánech povinné osoby ",null,null,"Bod 1 písm. j) bod 3 písm. d)"]
["Označení orgánu povinné osoby, jehož je člen výboru členem, a funkce v něm vykonávané  ",null,"Orgán","představenstvo, výkonné výbory - viz údaje o jednotlivých výborech"]
[null,null,"Funkce/pozice","předseda představenstva"]
[null,"Členství a vykonávané funkce v orgánech jiných právnických osob",null,"ne","Bod 1 písm. j) bod 3 písm. e)"]
["Označení právnické osoby, v níž  je člen výboru členem orgánu, označení tohoto orgánu a v něm vykonávané funkce",null,"Označení právnické osoby","Asociace českých stavebních spořitelen"]
[null,null,"Orgán","prezidium"]
[null,null,"Funkce","místopředseda"]
[null,null,"Jméno a příjmení, včetně titulů","Ing. Milan Dvořák","Bod 1 písm. j) bod 3 písm. a)"]
["Označení funkce vykonávané ve výboru, datum, od kdy osoba příslušnou funkci ve výboru vykonává",null,"Funkce/pozice","člen","Bod 1 písm. j) bod 3 písm. b)"]
[null,null,"Datum počátku výkonu funkce/pozice","2022-07-01"]
[null,"Dosavadní zkušenosti a kvalifikační předpoklady pro výkon funkce ve výboru",null,null,"Bod 1 písm. j) bod 3 písm. c)"]
["Vysoká škola ekonomická v Praze - fakulta financí a účetnictví - obor finance, 16 let zkušeností ve stavební spořitelně "]
["                                 ","Skutečnost, zda povinná osoba považuje člena výboru za nezávislého"]
["ano"]
[null,"Členství a vykonávaná funkce v orgánech povinné osoby ",null,"ne"]
["Označení orgánu povinné osoby, jehož je člen výboru členem, a funkce v něm vykonávané  ",null,"Orgán",null,"Bod 1 písm. j) bod 3 písm. d)"]
[null,null,"Funkce/pozice"]
[null,"Členství a vykonávané funkce v orgánech jiných právnických osob",null,"ne","Bod 1 písm. j) bod 3 písm. e)"]
["Označení právnické osoby, v níž  je člen výboru členem orgánu, označení tohoto orgánu a v něm vykonávané funkce",null,"Označení právnické osoby"]
[null,null,"Orgán"]
[null,null,"Funkce"]
["Označení výboru:",null,null,"Výbor pro řízení úvěrových rizik","Bod 1 písm. j) bod 1"]
[null,"Působnost výboru",null,"vymezena jeho statutem - výbor zodpovídá za schvalování metodiky používané v úvěrovém obchodu pro fyzické osoby a za nastavení schvalovacího procesu","Bod 1 písm. j) bod 2"]
[null,"Pravomoci výboru",null,"rozhodovací a výkonná pravomoc"]
[null,"Způsob jednání a rozhodování výboru",null,"osm členů, jednání alespoň jednou  měsíčně"]
[null,"Začlenění výboru do organizačního uspořádání  povinné osoby",null,"výkonný orgán představenstva"]
[null,"Začlenění výboru do  informačních toků povinné osoby",null,"kolektivní posuzování, projednávání, rozhodování a schvalování zásadních a odborných otázek řízení a činnosti společnosti v rozsahu stanoveném představenstvem ve statutu výboru, o rozhodnutích je informováno představenstvo společnosti, které má právo rozhodnutí korigovat, popř. zamítnout "]
[null,"Údaje  o jednotlivých členech výboru v rozsahu:"]
[null,null,"Jméno a příjmení, včetně titulů","Ing. Yvona Tošnerová","Bod 1 písm. j) bod 3 písm. a)"]
["Označení funkce vykonávané ve výboru, datum, od kdy osoba příslušnou funkci ve výboru vykonává",null,"Funkce/pozice","člen","Bod 1 písm. j) bod 3 písm. b)"]
[null,null,"Datum počátku výkonu funkce/pozice","2021-09-01"]
[null,"Dosavadní zkušenosti a kvalifikační předpoklady pro výkon funkce ve výboru",null,null,"Bod 1 písm. j) bod 3 písm. c)"]
["Vysoká škola ekonomická v Praze"]
["                                 ","Skutečnost, zda povinná osoba považuje člena výboru za nezávislého"]
["ano"]
[null,"Členství a vykonávaná funkce v orgánech povinné osoby "]
["Označení orgánu povinné osoby, jehož je člen výboru členem, a funkce v něm vykonávané  ",null,"Orgán","představenstvo","Bod 1 písm. j) bod 3 písm. d)"]
[null,null,"Funkce/pozice","místopředsedkyně představenstva"]
[null,"Členství a vykonávané funkce v orgánech jiných právnických osob",null,"ano","Bod 1 písm. j) bod 3 písm. e)"]
["Označení právnické osoby, v níž  je člen výboru členem orgánu, označení tohoto orgánu a v něm vykonávané funkce",null,"Označení právnické osoby","Společenství vlastníků domu Někrasova 3"]
[null,null,"Orgán","statutární orgán"]
[null,null,"Funkce","člen výboru"]
[null,null,"Jméno a příjmení, včetně titulů","Ing. Pavel Čejka, MBA","Bod 1 písm. j) bod 3 písm. a)"]
["Označení funkce vykonávané ve výboru, datum, od kdy osoba příslušnou funkci ve výboru vykonává",null,"Funkce/pozice","člen","Bod 1 písm. j) bod 3 písm. b)"]
[null,null,"Datum počátku výkonu funkce/pozice","2021-09-01"]
[null,"Dosavadní zkušenosti a kvalifikační předpoklady pro výkon funkce ve výboru",null,null,"Bod 1 písm. j) bod 3 písm. c)"]
["České vysoké učení technické, Praha, Fakulta dopravní"]
["                                 ","Skutečnost, zda povinná osoba považuje člena výboru za nezávislého"]
["ano"]
[null,"Členství a vykonávaná funkce v orgánech povinné osoby ",null,null,"Bod 1 písm. j) bod 3 písm. d)"]
["Označení orgánu povinné osoby, jehož je člen výboru členem, a funkce v něm vykonávané  ",null,"Orgán","představenstvo"]
[null,null,"Funkce/pozice","předseda představenstva"]
[null,"Členství a vykonávané funkce v orgánech jiných právnických osob",null,"ne","Bod 1 písm. j) bod 3 písm. e)"]
["Označení právnické osoby, v níž  je člen výboru členem orgánu, označení tohoto orgánu a v něm vykonávané funkce",null,"Označení právnické osoby","Asociace českých stavebních spořitelen"]
[null,null,"Orgán","prezidium"]
[null,null,"Funkce","místopředseda"]
[null,null,"Jméno a příjmení, včetně titulů","Bc. Jiří Antoš","Bod 1 písm. j) bod 3 písm. a)"]
["Označení funkce vykonávané ve výboru, datum, od kdy osoba příslušnou funkci ve výboru vykonává",null,"Funkce/pozice","člen","Bod 1 písm. j) bod 3 písm. b)"]
[null,null,"Datum počátku výkonu funkce/pozice","2021-09-01"]
[null,"Dosavadní zkušenosti a kvalifikační předpoklady pro výkon funkce ve výboru",null,null,"Bod 1 písm. j) bod 3 písm. c)"]
["Bankovní institut vysoká škola Praha "]
["                                 ","Skutečnost, zda povinná osoba považuje člena výboru za nezávislého"]
["ano"]
[null,"Členství a vykonávaná funkce v orgánech povinné osoby ",null,null,"Bod 1 písm. j) bod 3 písm. d)"]
["Označení orgánu povinné osoby, jehož je člen výboru členem, a funkce v něm vykonávané  ",null,"Orgán","představenstvo"]
[null,null,"Funkce/pozice","místopředseda představenstva"]
[null,"Členství a vykonávané funkce v orgánech jiných právnických osob",null,"ne","Bod 1 písm. j) bod 3 písm. e)"]
["Označení právnické osoby, v níž  je člen výboru členem orgánu, označení tohoto orgánu a v něm vykonávané funkce",null,"Označení právnické osoby"]
[null,null,"Orgán"]
[null,null,"Funkce"]
[null,null,"Jméno a příjmení, včetně titulů","Ing. František Švec","Bod 1 písm. j) bod 3 písm. a)"]
["Označení funkce vykonávané ve výboru, datum, od kdy osoba příslušnou funkci ve výboru vykonává",null,"Funkce/pozice","předseda  ","Bod 1 písm. j) bod 3 písm. b)"]
[null,null,"Datum počátku výkonu funkce/pozice","01.07.2022 (člen od 01.09.2021)"]
[null,"Dosavadní zkušenosti a kvalifikační předpoklady pro výkon funkce ve výboru",null,null,"Bod 1 písm. j) bod 3 písm. c)"]
["Vysoká škola ekonomická v Praze"]
["                                 ","Skutečnost, zda povinná osoba považuje člena výboru za nezávislého"]
["ano"]
[null,"Členství a vykonávaná funkce v orgánech povinné osoby ",null,"ne"]
["Označení orgánu povinné osoby, jehož je člen výboru členem, a funkce v něm vykonávané  ",null,"Orgán",null,"Bod 1 písm. j) bod 3 písm. d)"]
[null,null,"Funkce/pozice"]
[null,"Členství a vykonávané funkce v orgánech jiných právnických osob",null,"ne","Bod 1 písm. j) bod 3 písm. e)"]
["Označení právnické osoby, v níž  je člen výboru členem orgánu, označení tohoto orgánu a v něm vykonávané funkce",null,"Označení právnické osoby"]
[null,null,"Orgán"]
[null,null,"Funkce"]
[null,null,"Jméno a příjmení, včetně titulů","Mgr. Pavel Hruška","Bod 1 písm. j) bod 3 písm. a)"]
["Označení funkce vykonávané ve výboru, datum, od kdy osoba příslušnou funkci ve výboru vykonává",null,"Funkce/pozice","místopředseda","Bod 1 písm. j) bod 3 písm. b)"]
[null,null,"Datum počátku výkonu funkce/pozice","2022-07-01"]
[null,"Dosavadní zkušenosti a kvalifikační předpoklady pro výkon funkce ve výboru",null,null,"Bod 1 písm. j) bod 3 písm. c)"]
["Matemeticko-fyzikální fakulta UK, 16 let praxe v bankovnictví, 13 let praxe v oblasti risku"]
["                                 ","Skutečnost, zda povinná osoba považuje člena výboru za nezávislého"]
["ano"]
[null,"Členství a vykonávaná funkce v orgánech povinné osoby ",null,"ne"]
["Označení orgánu povinné osoby, jehož je člen výboru členem, a funkce v něm vykonávané  ",null,"Orgán",null,"Bod 1 písm. j) bod 3 písm. d)"]
[null,null,"Funkce/pozice"]
[null,"Členství a vykonávané funkce v orgánech jiných právnických osob",null,"ano","Bod 1 písm. j) bod 3 písm. e)"]
["Označení právnické osoby, v níž  je člen výboru členem orgánu, označení tohoto orgánu a v něm vykonávané funkce",null,"Označení právnické osoby","Společenství vlastníků jednotek Sadská 482, 483, 484, Praha 9 - Hloubětín"]
[null,null,"Orgán","statutární orgán"]
[null,null,"Funkce","předseda výboru"]
["Označení právnické osoby, v níž  je člen výboru členem orgánu, označení tohoto orgánu a v něm vykonávané funkce",null,"Označení právnické osoby","Společenství vlastníků Kardašovská 625,626,668,669"]
[null,null,"Orgán","statutární orgán"]
[null,null,"Funkce","místopředseda výboru"]
["Označení právnické osoby, v níž  je člen výboru členem orgánu, označení tohoto orgánu a v něm vykonávané funkce",null,"Označení právnické osoby","Společenství vlastníků Zelenečská 954, Praha 9"]
[null,null,"Orgán","statutární orgán"]
[null,null,"Funkce","místopředseda výboru"]
["Označení právnické osoby, v níž  je člen výboru členem orgánu, označení tohoto orgánu a v něm vykonávané funkce",null,"Označení právnické osoby","Bytové družstvo Sadská"]
[null,null,"Orgán","statutární orgán"]
[null,null,"Funkce","předseda představenstva"]
["Označení právnické osoby, v níž  je člen výboru členem orgánu, označení tohoto orgánu a v něm vykonávané funkce",null,"Označení právnické osoby","Bydlení Kbely s.r.o."]
[null,null,"Orgán","statutární orgán"]
[null,null,"Funkce","jednatel"]
[null,null,"Jméno a příjmení, včetně titulů","Ing. Michal Noha","Bod 1 písm. j) bod 3 písm. a)"]
["Označení funkce vykonávané ve výboru, datum, od kdy osoba příslušnou funkci ve výboru vykonává",null,"Funkce/pozice","člen","Bod 1 písm. j) bod 3 písm. b)"]
[null,null,"Datum počátku výkonu funkce/pozice","2021-09-01"]
[null,"Dosavadní zkušenosti a kvalifikační předpoklady pro výkon funkce ve výboru",null,null,"Bod 1 písm. j) bod 3 písm. c)"]
["Vysoká škola báňská - Technická univerzita Ostrava, Ekonomická fakulta"]
["                                 ","Skutečnost, zda povinná osoba považuje člena výboru za nezávislého"]
["ano"]
[null,"Členství a vykonávaná funkce v orgánech povinné osoby ",null,"ne"]
["Označení orgánu povinné osoby, jehož je člen výboru členem, a funkce v něm vykonávané  ",null,"Orgán",null,"Bod 1 písm. j) bod 3 písm. d)"]
[]
[null,"Členství a vykonávané funkce v orgánech jiných právnických osob",null,"ne","Bod 1 písm. j) bod 3 písm. e)"]
["Označení právnické osoby, v níž  je člen výboru členem orgánu, označení tohoto orgánu a v něm vykonávané funkce",null,"Označení právnické osoby"]
[null,null,"Orgán"]
[null,null,"Funkce"]
[null,null,"Jméno a příjmení, včetně titulů","Eva Bártová, DiS.","Bod 1 písm. j) bod 3 písm. a)"]
["Označení funkce vykonávané ve výboru, datum, od kdy osoba příslušnou funkci ve výboru vykonává",null,"Funkce/pozice","člen","Bod 1 písm. j) bod 3 písm. b)"]
[null,null,"Datum počátku výkonu funkce/pozice","2021-09-01"]
[null,"Dosavadní zkušenosti a kvalifikační předpoklady pro výkon funkce ve výboru",null,null,"Bod 1 písm. j) bod 3 písm. c)"]
["Bankovní akademie – vyšší odborná škola, Praha"]
["                                 ","Skutečnost, zda povinná osoba považuje člena výboru za nezávislého"]
["ano"]
[null,"Členství a vykonávaná funkce v orgánech povinné osoby ",null,"ne"]
["Označení orgánu povinné osoby, jehož je člen výboru členem, a funkce v něm vykonávané  ",null,"Orgán",null,"Bod 1 písm. j) bod 3 písm. d)"]
[null,null,"Funkce/pozice"]
[null,"Členství a vykonávané funkce v orgánech jiných právnických osob",null,"ne","Bod 1 písm. j) bod 3 písm. e)"]
["Označení právnické osoby, v níž  je člen výboru členem orgánu, označení tohoto orgánu a v něm vykonávané funkce",null,"Označení právnické osoby"]
[null,null,"Orgán"]
[null,null,"Funkce"]
["Označení výboru:",null,null,"Výbor pro marketing a PR","Bod 1 písm. j) bod 1"]
[null,"Působnost výboru",null,"vymezena jeho statutem - zejména strategická rozhodnutí, čerpání rozpočtu, fakturace, vše v oblasti PR a marketingu","Bod 1 písm. j) bod 2"]
[null,"Pravomoci výboru",null,"rozhodovací a výkonná pravomoc"]
[null,"Způsob jednání a rozhodování výboru",null,"sedm členů, jednání alespoň jednou  měsíčně"]
[null,"Začlenění výboru do organizačního uspořádání  povinné osoby",null,"výkonný orgán představenstva"]
[null,"Začlenění výboru do  informačních toků povinné osoby",null,"kolektivní posuzování, projednávání, rozhodování a schvalování zásadních a odborných otázek řízení a činnosti společnosti v rozsahu stanoveném představenstvem ve statutu výboru, o rozhodnutích je informováno představenstvo společnosti, které má právo rozhodnutí korigovat, popř. zamítnout "]
[null,"Údaje  o jednotlivých členech výboru v rozsahu:"]
[null,null,"Jméno a příjmení, včetně titulů","Bc. Jiří Antoš","Bod 1 písm. j) bod 3 písm. a)"]
["Označení funkce vykonávané ve výboru, datum, od kdy osoba příslušnou funkci ve výboru vykonává",null,"Funkce/pozice","předseda","Bod 1 písm. j) bod 3 písm. b)"]
[null,null,"Datum počátku výkonu funkce/pozice","2021-09-01"]
[null,"Dosavadní zkušenosti a kvalifikační předpoklady pro výkon funkce ve výboru",null,null,"Bod 1 písm. j) bod 3 písm. c)"]
["Bankovní institut vysoká škola Praha "]
["                                 ","Skutečnost, zda povinná osoba považuje člena výboru za nezávislého"]
["ano"]
[null,"Členství a vykonávaná funkce v orgánech povinné osoby ",null,null,"Bod 1 písm. j) bod 3 písm. d)"]
["Označení orgánu povinné osoby, jehož je člen výboru členem, a funkce v něm vykonávané  ",null,"Orgán","představenstvo"]
[null,null,"Funkce/pozice","místopředseda představenstva"]
[null,"Členství a vykonávané funkce v orgánech jiných právnických osob",null,"ne","Bod 1 písm. j) bod 3 písm. e)"]
["Označení právnické osoby, v níž  je člen výboru členem orgánu, označení tohoto orgánu a v něm vykonávané funkce",null,"Označení právnické osoby"]
[null,null,"Orgán"]
[null,null,"Funkce"]
[null,null,"Jméno a příjmení, včetně titulů","Ing. Pavel Čejka, MBA","Bod 1 písm. j) bod 3 písm. a)"]
["Označení funkce vykonávané ve výboru, datum, od kdy osoba příslušnou funkci ve výboru vykonává",null,"Funkce/pozice","místopředseda","Bod 1 písm. j) bod 3 písm. b)"]
[null,null,"Datum počátku výkonu funkce/pozice","2021-09-01"]
[null,"Dosavadní zkušenosti a kvalifikační předpoklady pro výkon funkce ve výboru",null,null,"Bod 1 písm. j) bod 3 písm. c)"]
["České vysoké učení technické, Praha, Fakulta dopravní"]
["                                 ","Skutečnost, zda povinná osoba považuje člena výboru za nezávislého"]
["ano"]
[null,"Členství a vykonávaná funkce v orgánech povinné osoby ",null,null,"Bod 1 písm. j) bod 3 písm. d)"]
["Označení orgánu povinné osoby, jehož je člen výboru členem, a funkce v něm vykonávané  ",null,"Orgán","představenstvo"]
[null,null,"Funkce/pozice","předseda představenstva"]
[null,"Členství a vykonávané funkce v orgánech jiných právnických osob",null,"ne","Bod 1 písm. j) bod 3 písm. e)"]
["Označení právnické osoby, v níž  je člen výboru členem orgánu, označení tohoto orgánu a v něm vykonávané funkce",null,"Označení právnické osoby","Asociace českých stavebních spořitelen"]
[null,null,"Orgán","prezidium"]
[null,null,"Funkce","místopředseda"]
[null,null,"Jméno a příjmení, včetně titulů","Ing. Petr Zaremba","Bod 1 písm. j) bod 3 písm. a)"]
["Označení funkce vykonávané ve výboru, datum, od kdy osoba příslušnou funkci ve výboru vykonává",null,"Funkce/pozice","člen","Bod 1 písm. j) bod 3 písm. b)"]
[null,null,"Datum počátku výkonu funkce/pozice","01.07.2022 (člen od 01.09.2021)"]
[null,"Dosavadní zkušenosti a kvalifikační předpoklady pro výkon funkce ve výboru",null,null,"Bod 1 písm. j) bod 3 písm. c)"]
["Vysoká škola ekonomická v Praze"]
["                                 ","Skutečnost, zda povinná osoba považuje člena výboru za nezávislého"]
["ano"]
[null,"Členství a vykonávaná funkce v orgánech povinné osoby ",null,"ne","Bod 1 písm. j) bod 3 písm. d)"]
["Označení orgánu povinné osoby, jehož je člen výboru členem, a funkce v něm vykonávané  ",null,"Orgán"]
[null,null,"Funkce/pozice"]
[null,"Členství a vykonávané funkce v orgánech jiných právnických osob",null,"ne","Bod 1 písm. j) bod 3 písm. e)"]
["Označení právnické osoby, v níž  je člen výboru členem orgánu, označení tohoto orgánu a v něm vykonávané funkce",null,"Označení právnické osoby"]
[null,null,"Orgán"]
[null,null,"Funkce"]
[null,null,"Jméno a příjmení, včetně titulů","Ing. Hana Klír","Bod 1 písm. j) bod 3 písm. a)"]
["Označení funkce vykonávané ve výboru, datum, od kdy osoba příslušnou funkci ve výboru vykonává",null,"Funkce/pozice","člen","Bod 1 písm. j) bod 3 písm. b)"]
[null,null,"Datum počátku výkonu funkce/pozice","2021-09-01"]
[null,"Dosavadní zkušenosti a kvalifikační předpoklady pro výkon funkce ve výboru",null,null,"Bod 1 písm. j) bod 3 písm. c)"]
["Bankovní institut vysoká škola Praha "]
["                                 ","Skutečnost, zda povinná osoba považuje člena výboru za nezávislého"]
["ano"]
[null,"Členství a vykonávaná funkce v orgánech povinné osoby ",null,"ne","Bod 1 písm. j) bod 3 písm. d)"]
["Označení orgánu povinné osoby, jehož je člen výboru členem, a funkce v něm vykonávané  ",null,"Orgán"]
[null,null,"Funkce/pozice"]
[null,"Členství a vykonávané funkce v orgánech jiných právnických osob",null,"ne","Bod 1 písm. j) bod 3 písm. e)"]
["Označení právnické osoby, v níž  je člen výboru členem orgánu, označení tohoto orgánu a v něm vykonávané funkce",null,"Označení právnické osoby"]
[null,null,"Orgán"]
[null,null,"Funkce"]
[null,null,"Jméno a příjmení, včetně titulů","Ing. Michal Noha","Bod 1 písm. j) bod 3 písm. a)"]
["Označení funkce vykonávané ve výboru, datum, od kdy osoba příslušnou funkci ve výboru vykonává",null,"Funkce/pozice","člen","Bod 1 písm. j) bod 3 písm. b)"]
[null,null,"Datum počátku výkonu funkce/pozice","2021-09-01"]
[null,"Dosavadní zkušenosti a kvalifikační předpoklady pro výkon funkce ve výboru",null,null,"Bod 1 písm. j) bod 3 písm. c)"]
["Vysoká škola báňská - Technická univerzita Ostrava, Ekonomická fakulta"]
["                                 ","Skutečnost, zda povinná osoba považuje člena výboru za nezávislého"]
["ano"]
[null,"Členství a vykonávaná funkce v orgánech povinné osoby ",null,"ne","Bod 1 písm. j) bod 3 písm. d)"]
["Označení orgánu povinné osoby, jehož je člen výboru členem, a funkce v něm vykonávané  ",null,"Orgán"]
[null,null,"Funkce/pozice"]
[null,"Členství a vykonávané funkce v orgánech jiných právnických osob",null,"ne","Bod 1 písm. j) bod 3 písm. e)"]
["Označení právnické osoby, v níž  je člen výboru členem orgánu, označení tohoto orgánu a v něm vykonávané funkce",null,"Označení právnické osoby"]
[null,null,"Orgán"]
[null,null,"Funkce"]
[null,null,"Jméno a příjmení, včetně titulů","Ing. Stanislav Novotný","Bod 1 písm. j) bod 3 písm. a)"]
["Označení funkce vykonávané ve výboru, datum, od kdy osoba příslušnou funkci ve výboru vykonává",null,"Funkce/pozice","člen","Bod 1 písm. j) bod 3 písm. b)"]
[null,null,"Datum počátku výkonu funkce/pozice","2021-09-01"]
[null,"Dosavadní zkušenosti a kvalifikační předpoklady pro výkon funkce ve výboru",null,null,"Bod 1 písm. j) bod 3 písm. c)"]
["Bankovní institut vysoká škola Praha "]
["                                 ","Skutečnost, zda povinná osoba považuje člena výboru za nezávislého"]
["ano"]
[null,"Členství a vykonávaná funkce v orgánech povinné osoby ",null,"ne","Bod 1 písm. j) bod 3 písm. d)"]
["Označení orgánu povinné osoby, jehož je člen výboru členem, a funkce v něm vykonávané  ",null,"Orgán"]
[null,null,"Funkce/pozice"]
[null,"Členství a vykonávané funkce v orgánech jiných právnických osob",null,"ne","Bod 1 písm. j) bod 3 písm. e)"]
["Označení právnické osoby, v níž  je člen výboru členem orgánu, označení tohoto orgánu a v něm vykonávané funkce",null,"Označení právnické osoby"]
[null,null,"Orgán"]
[null,null,"Funkce"]
["Označení výboru:",null,null,"Obchodní výbor","Bod 1 písm. j) bod 1"]
[null,"Působnost výboru",null,"vymezena jeho statutem - zejména projednává a vyhodnocuje obchodní a finanční výsledky, cenové strategie, úrokové sazby, nové produkty","Bod 1 písm. j) bod 2"]
[null,"Pravomoci výboru",null,"rozhodovací a výkonná pravomoc"]
[null,"Způsob jednání a rozhodování výboru",null,"osm členů, jednání alespoň jednou  měsíčně"]
[null,"Začlenění výboru do organizačního uspořádání  povinné osoby",null,"výkonný orgán představenstva"]
[null,"Začlenění výboru do  informačních toků povinné osoby",null,"kolektivní posuzování, projednávání, rozhodování a schvalování zásadních a odborných otázek řízení a činnosti společnosti v rozsahu stanoveném představenstvem ve statutu výboru, o rozhodnutích je informováno představenstvo společnosti, které má právo rozhodnutí korigovat, popř. zamítnout "]
[null,"Údaje  o jednotlivých členech výboru v rozsahu:"]
[null,null,"Jméno a příjmení, včetně titulů","Ing. Pavel Čejka, MBA","Bod 1 písm. j) bod 3 písm. a)"]
["Označení funkce vykonávané ve výboru, datum, od kdy osoba příslušnou funkci ve výboru vykonává",null,"Funkce/pozice","člen","Bod 1 písm. j) bod 3 písm. b)"]
[null,null,"Datum počátku výkonu funkce/pozice","2021-09-01"]
[null,"Dosavadní zkušenosti a kvalifikační předpoklady pro výkon funkce ve výboru",null,null,"Bod 1 písm. j) bod 3 písm. c)"]
["České vysoké učení technické, Praha, Fakulta dopravní"]
["                                 ","Skutečnost, zda povinná osoba považuje člena výboru za nezávislého"]
["ano"]
[null,"Členství a vykonávaná funkce v orgánech povinné osoby ",null,null,"Bod 1 písm. j) bod 3 písm. d)"]
["Označení orgánu povinné osoby, jehož je člen výboru členem, a funkce v něm vykonávané  ",null,"Orgán","představenstvo"]
[null,null,"Funkce/pozice","předseda představenstva"]
[null,"Členství a vykonávané funkce v orgánech jiných právnických osob",null,"ne","Bod 1 písm. j) bod 3 písm. e)"]
["Označení právnické osoby, v níž  je člen výboru členem orgánu, označení tohoto orgánu a v něm vykonávané funkce",null,"Označení právnické osoby","Asociace českých stavebních spořitelen"]
[null,null,"Orgán","prezidium"]
[null,null,"Funkce","místopředseda"]
[null,null,"Jméno a příjmení, včetně titulů","Bc. Jiří Antoš","Bod 1 písm. j) bod 3 písm. a)"]
["Označení funkce vykonávané ve výboru, datum, od kdy osoba příslušnou funkci ve výboru vykonává",null,"Funkce/pozice","místopředseda","Bod 1 písm. j) bod 3 písm. b)"]
[null,null,"Datum počátku výkonu funkce/pozice","2021-09-01"]
[null,"Dosavadní zkušenosti a kvalifikační předpoklady pro výkon funkce ve výboru",null,null,"Bod 1 písm. j) bod 3 písm. c)"]
["Bankovní institut vysoká škola Praha "]
["                                 ","Skutečnost, zda povinná osoba považuje člena výboru za nezávislého"]
["ano"]
[null,"Členství a vykonávaná funkce v orgánech povinné osoby ",null,null,"Bod 1 písm. j) bod 3 písm. d)"]
["Označení orgánu povinné osoby, jehož je člen výboru členem, a funkce v něm vykonávané  ",null,"Orgán","představenstvo"]
[null,null,"Funkce/pozice","místopředseda představenstva"]
[null,"Členství a vykonávané funkce v orgánech jiných právnických osob",null,"ne","Bod 1 písm. j) bod 3 písm. e)"]
["Označení právnické osoby, v níž  je člen výboru členem orgánu, označení tohoto orgánu a v něm vykonávané funkce",null,"Označení právnické osoby"]
[null,null,"Orgán"]
[null,null,"Funkce"]
[null,null,"Jméno a příjmení, včetně titulů","Eva Bártová, DiS.","Bod 1 písm. j) bod 3 písm. a)"]
["Označení funkce vykonávané ve výboru, datum, od kdy osoba příslušnou funkci ve výboru vykonává",null,"Funkce/pozice","člen","Bod 1 písm. j) bod 3 písm. b)"]
[null,null,"Datum počátku výkonu funkce/pozice","2022-07-01"]
[null,"Dosavadní zkušenosti a kvalifikační předpoklady pro výkon funkce ve výboru",null,null,"Bod 1 písm. j) bod 3 písm. c)"]
["Bankovní akademie – vyšší odborná škola, Praha"]
["                                 ","Skutečnost, zda povinná osoba považuje člena výboru za nezávislého"]
["ano"]
[null,"Členství a vykonávaná funkce v orgánech povinné osoby ",null,"ne","Bod 1 písm. j) bod 3 písm. d)"]
["Označení orgánu povinné osoby, jehož je člen výboru členem, a funkce v něm vykonávané  ",null,"Orgán"]
[null,null,"Funkce/pozice"]
[null,"Členství a vykonávané funkce v orgánech jiných právnických osob",null,"ne","Bod 1 písm. j) bod 3 písm. e)"]
["Označení právnické osoby, v níž  je člen výboru členem orgánu, označení tohoto orgánu a v něm vykonávané funkce",null,"Označení právnické osoby"]
[null,null,"Orgán"]
[null,null,"Funkce"]
[null,null,"Jméno a příjmení, včetně titulů","Ing. František Švec","Bod 1 písm. j) bod 3 písm. a)"]
["Označení funkce vykonávané ve výboru, datum, od kdy osoba příslušnou funkci ve výboru vykonává",null,"Funkce/pozice","člen","Bod 1 písm. j) bod 3 písm. b)"]
[null,null,"Datum počátku výkonu funkce/pozice","01.07.2022 (člen od 01.09.2021)"]
[null,"Dosavadní zkušenosti a kvalifikační předpoklady pro výkon funkce ve výboru",null,null,"Bod 1 písm. j) bod 3 písm. c)"]
["Vysoká škola ekonomická v Praze"]
["                                 ","Skutečnost, zda povinná osoba považuje člena výboru za nezávislého"]
["ano"]
[null,"Členství a vykonávaná funkce v orgánech povinné osoby ",null,"ne","Bod 1 písm. j) bod 3 písm. d)"]
["Označení orgánu povinné osoby, jehož je člen výboru členem, a funkce v něm vykonávané  ",null,"Orgán"]
[null,null,"Funkce/pozice"]
[null,"Členství a vykonávané funkce v orgánech jiných právnických osob",null,"ne","Bod 1 písm. j) bod 3 písm. e)"]
["Označení právnické osoby, v níž  je člen výboru členem orgánu, označení tohoto orgánu a v něm vykonávané funkce",null,"Označení právnické osoby"]
[null,null,"Orgán"]
[null,null,"Funkce"]
[null,null,"Jméno a příjmení, včetně titulů","Ing. Petr Zaremba","Bod 1 písm. j) bod 3 písm. a)"]
["Označení funkce vykonávané ve výboru, datum, od kdy osoba příslušnou funkci ve výboru vykonává",null,"Funkce/pozice","člen","Bod 1 písm. j) bod 3 písm. b)"]
[null,null,"Datum počátku výkonu funkce/pozice","2021-09-01"]
[null,"Dosavadní zkušenosti a kvalifikační předpoklady pro výkon funkce ve výboru",null,null,"Bod 1 písm. j) bod 3 písm. c)"]
["Vysoká škola ekonomická v Praze"]
["                                 ","Skutečnost, zda povinná osoba považuje člena výboru za nezávislého"]
["ano"]
[null,"Členství a vykonávaná funkce v orgánech povinné osoby ",null,"ne","Bod 1 písm. j) bod 3 písm. d)"]
["Označení orgánu povinné osoby, jehož je člen výboru členem, a funkce v něm vykonávané  ",null,"Orgán"]
[null,null,"Funkce/pozice"]
[null,"Členství a vykonávané funkce v orgánech jiných právnických osob",null,"ne","Bod 1 písm. j) bod 3 písm. e)"]
["Označení právnické osoby, v níž  je člen výboru členem orgánu, označení tohoto orgánu a v něm vykonávané funkce",null,"Označení právnické osoby"]
[null,null,"Orgán"]
[null,null,"Funkce"]
[null,null,"Jméno a příjmení, včetně titulů","Ing. Hana Klír","Bod 1 písm. j) bod 3 písm. a)"]
["Označení funkce vykonávané ve výboru, datum, od kdy osoba příslušnou funkci ve výboru vykonává",null,"Funkce/pozice","člen","Bod 1 písm. j) bod 3 písm. b)"]
[null,null,"Datum počátku výkonu funkce/pozice","2021-09-01"]
[null,"Dosavadní zkušenosti a kvalifikační předpoklady pro výkon funkce ve výboru",null,null,"Bod 1 písm. j) bod 3 písm. c)"]
["Bankovní institut vysoká škola Praha "]
["                                 ","Skutečnost, zda povinná osoba považuje člena výboru za nezávislého"]
["ano"]
[null,"Členství a vykonávaná funkce v orgánech povinné osoby ",null,"ne","Bod 1 písm. j) bod 3 písm. d)"]
["Označení orgánu povinné osoby, jehož je člen výboru členem, a funkce v něm vykonávané  ",null,"Orgán"]
[null,null,"Funkce/pozice"]
[null,"Členství a vykonávané funkce v orgánech jiných právnických osob",null,"ne","Bod 1 písm. j) bod 3 písm. e)"]
["Označení právnické osoby, v níž  je člen výboru členem orgánu, označení tohoto orgánu a v něm vykonávané funkce",null,"Označení právnické osoby"]
[null,null,"Orgán"]
[null,null,"Funkce"]
[null,null,"Jméno a příjmení, včetně titulů","Ing. Michal Noha","Bod 1 písm. j) bod 3 písm. a)"]
["Označení funkce vykonávané ve výboru, datum, od kdy osoba příslušnou funkci ve výboru vykonává",null,"Funkce/pozice","předseda  ","Bod 1 písm. j) bod 3 písm. b)"]
[null,null,"Datum počátku výkonu funkce/pozice","od 01.07.2022 (01.09.2021)"]
[null,"Dosavadní zkušenosti a kvalifikační předpoklady pro výkon funkce ve výboru",null,null,"Bod 1 písm. j) bod 3 písm. c)"]
["Vysoká škola báňská - Technická univerzita Ostrava, Ekonomická fakulta"]
["                                 ","Skutečnost, zda povinná osoba považuje člena výboru za nezávislého"]
["ano"]
[null,"Členství a vykonávaná funkce v orgánech povinné osoby ",null,"ne","Bod 1 písm. j) bod 3 písm. d)"]
["Označení orgánu povinné osoby, jehož je člen výboru členem, a funkce v něm vykonávané  ",null,"Orgán"]
[null,null,"Funkce/pozice"]
[null,"Členství a vykonávané funkce v orgánech jiných právnických osob",null,"ne","Bod 1 písm. j) bod 3 písm. e)"]
["Označení právnické osoby, v níž  je člen výboru členem orgánu, označení tohoto orgánu a v něm vykonávané funkce",null,"Označení právnické osoby"]
[null,null,"Orgán"]
[null,null,"Funkce"]
[null,null,"Jméno a příjmení, včetně titulů","Ing. Stanislav Novotný","Bod 1 písm. j) bod 3 písm. a)"]
["Označení funkce vykonávané ve výboru, datum, od kdy osoba příslušnou funkci ve výboru vykonává",null,"Funkce/pozice","člen","Bod 1 písm. j) bod 3 písm. b)"]
[null,null,"Datum počátku výkonu funkce/pozice","2021-09-01"]
[null,"Dosavadní zkušenosti a kvalifikační předpoklady pro výkon funkce ve výboru",null,null,"Bod 1 písm. j) bod 3 písm. c)"]
["Bankovní institut vysoká škola Praha "]
["                                 ","Skutečnost, zda povinná osoba považuje člena výboru za nezávislého"]
["ano"]
[null,"Členství a vykonávaná funkce v orgánech povinné osoby ",null,"ne","Bod 1 písm. j) bod 3 písm. d)"]
["Označení orgánu povinné osoby, jehož je člen výboru členem, a funkce v něm vykonávané  ",null,"Orgán"]
[null,null,"Funkce/pozice"]
[null,"Členství a vykonávané funkce v orgánech jiných právnických osob",null,"ne","Bod 1 písm. j) bod 3 písm. e)"]
["Označení právnické osoby, v níž  je člen výboru členem orgánu, označení tohoto orgánu a v něm vykonávané funkce",null,"Označení právnické osoby"]
[null,null,"Orgán"]
[null,null,"Funkce"]
["Označení výboru:",null,null,"Výbor pro bezpečnost","Bod 1 písm. j) bod 1"]
[null,"Působnost výboru",null,"vymezena jeho statutem - působnost výboru zahrnuje správu informační a kybernetické bezpečnosti, řízení kontinuity činností (BCM) a fyzické bezpečnosti. ","Bod 1 písm. j) bod 2"]
[null,"Pravomoci výboru",null,"výkonná pravomoc"]
[null,"Způsob jednání a rozhodování výboru",null,"pět členů, jednání alespoň jednou za kvartál"]
[null,"Začlenění výboru do organizačního uspořádání  povinné osoby",null,"výkonný orgán představenstva"]
[null,"Začlenění výboru do  informačních toků povinné osoby",null,"kolektivní posuzování, projednávání, rozhodování a schvalování zásadních a odborných otázek řízení a činnosti společnosti v rozsahu stanoveném představenstvem ve statutu výboru, o rozhodnutích je informováno představenstvo společnosti, které má právo rozhodnutí korigovat, popř. zamítnout "]
[null,"Údaje  o jednotlivých členech výboru v rozsahu:"]
[null,null,"Jméno a příjmení, včetně titulů","Miroslav Kvíčala","Bod 1 písm. j) bod 3 písm. a)"]
["Označení funkce vykonávané ve výboru, datum, od kdy osoba příslušnou funkci ve výboru vykonává",null,"Funkce/pozice","předseda","Bod 1 písm. j) bod 3 písm. b)"]
[null,null,"Datum počátku výkonu funkce/pozice","2021-09-01"]
[null,"Dosavadní zkušenosti a kvalifikační předpoklady pro výkon funkce ve výboru",null,null,"Bod 1 písm. j) bod 3 písm. c)"]
["gymnázium Jilemnice"]
["                                 ","Skutečnost, zda povinná osoba považuje člena výboru za nezávislého"]
["ano"]
[null,"Členství a vykonávaná funkce v orgánech povinné osoby ",null,"ne","Bod 1 písm. j) bod 3 písm. d)"]
["Označení orgánu povinné osoby, jehož je člen výboru členem, a funkce v něm vykonávané  ",null,"Orgán"]
[null,null,"Funkce/pozice"]
[null,"Členství a vykonávané funkce v orgánech jiných právnických osob",null,"ne","Bod 1 písm. j) bod 3 písm. e)"]
["Označení právnické osoby, v níž  je člen výboru členem orgánu, označení tohoto orgánu a v něm vykonávané funkce",null,"Označení právnické osoby"]
[null,null,"Orgán"]
[null,null,"Funkce"]
[null,null,"Jméno a příjmení, včetně titulů","Ing. Yvona Tošnerová","Bod 1 písm. j) bod 3 písm. a)"]
["Označení funkce vykonávané ve výboru, datum, od kdy osoba příslušnou funkci ve výboru vykonává",null,"Funkce/pozice","člen","Bod 1 písm. j) bod 3 písm. b)"]
[null,null,"Datum počátku výkonu funkce/pozice","01.07.2022 (člen od 01.09.2021)"]
[null,"Dosavadní zkušenosti a kvalifikační předpoklady pro výkon funkce ve výboru",null,null,"Bod 1 písm. j) bod 3 písm. c)"]
["Vysoká škola ekonomická v Praze"]
["                                 ","Skutečnost, zda povinná osoba považuje člena výboru za nezávislého"]
["ano"]
[null,"Členství a vykonávaná funkce v orgánech povinné osoby ",null,null,"Bod 1 písm. j) bod 3 písm. d)"]
["Označení orgánu povinné osoby, jehož je člen výboru členem, a funkce v něm vykonávané  ",null,"Orgán","představenstvo"]
[null,null,"Funkce/pozice","místopředsedkyně představenstva"]
[null,"Členství a vykonávané funkce v orgánech jiných právnických osob",null,"ano","Bod 1 písm. j) bod 3 písm. e)"]
["Označení právnické osoby, v níž  je člen výboru členem orgánu, označení tohoto orgánu a v něm vykonávané funkce",null,"Označení právnické osoby","Společenství vlastníků domu Někrasova 3"]
[null,null,"Orgán","statutární orgán"]
[null,null,"Funkce","člen výboru"]
[null,null,"Jméno a příjmení, včetně titulů","Mgr. Gabriela Obešlová","Bod 1 písm. j) bod 3 písm. a)"]
["Označení funkce vykonávané ve výboru, datum, od kdy osoba příslušnou funkci ve výboru vykonává",null,"Funkce/pozice","místopředseda","Bod 1 písm. j) bod 3 písm. b)"]
[null,null,"Datum počátku výkonu funkce/pozice","2021-09-01"]
[null,"Dosavadní zkušenosti a kvalifikační předpoklady pro výkon funkce ve výboru",null,null,"Bod 1 písm. j) bod 3 písm. c)"]
["Masarykova univerzita - právnická fakulta"]
["                                 ","Skutečnost, zda povinná osoba považuje člena výboru za nezávislého"]
["ano"]
[null,"Členství a vykonávaná funkce v orgánech povinné osoby ",null,"ne","Bod 1 písm. j) bod 3 písm. d)"]
["Označení orgánu povinné osoby, jehož je člen výboru členem, a funkce v něm vykonávané  ",null,"Orgán"]
[null,null,"Funkce/pozice"]
[null,"Členství a vykonávané funkce v orgánech jiných právnických osob",null,"ne","Bod 1 písm. j) bod 3 písm. e)"]
["Označení právnické osoby, v níž  je člen výboru členem orgánu, označení tohoto orgánu a v něm vykonávané funkce",null,"Označení právnické osoby"]
[null,null,"Orgán"]
[null,null,"Funkce"]
[null,null,"Jméno a příjmení, včetně titulů","Mgr. Lukáš Fremut","Bod 1 písm. j) bod 3 písm. a)"]
["Označení funkce vykonávané ve výboru, datum, od kdy osoba příslušnou funkci ve výboru vykonává",null,"Funkce/pozice","člen","Bod 1 písm. j) bod 3 písm. b)"]
[null,null,"Datum počátku výkonu funkce/pozice","2025-05-01"]
[null,"Dosavadní zkušenosti a kvalifikační předpoklady pro výkon funkce ve výboru",null,null,"Bod 1 písm. j) bod 3 písm. c)"]
["Policejní akademie ČR v Praze, fakulta Bezpečnostního managementu, více jak 5 let zkušeností v bance v oblasti vedení IT projektů \t\t\t"]
["                                 ","Skutečnost, zda povinná osoba považuje člena výboru za nezávislého"]
["ano"]
[null,"Členství a vykonávaná funkce v orgánech povinné osoby ",null,"ne","Bod 1 písm. j) bod 3 písm. d)"]
["Označení orgánu povinné osoby, jehož je člen výboru členem, a funkce v něm vykonávané  ",null,"Orgán"]
[null,null,"Funkce/pozice"]
[null,"Členství a vykonávané funkce v orgánech jiných právnických osob",null,"ne","Bod 1 písm. j) bod 3 písm. e)"]
["Označení právnické osoby, v níž  je člen výboru členem orgánu, označení tohoto orgánu a v něm vykonávané funkce",null,"Označení právnické osoby"]
[null,null,"Orgán"]
[null,null,"Funkce"]
[null,null,"Jméno a příjmení, včetně titulů","Kateřina Černá, MA","Bod 1 písm. j) bod 3 písm. a)"]
["Označení funkce vykonávané ve výboru, datum, od kdy osoba příslušnou funkci ve výboru vykonává",null,"Funkce/pozice","člen","Bod 1 písm. j) bod 3 písm. b)"]
[null,null,"Datum počátku výkonu funkce/pozice","2023-03-01"]
[null,"Dosavadní zkušenosti a kvalifikační předpoklady pro výkon funkce ve výboru",null,null,"Bod 1 písm. j) bod 3 písm. c)"]
["University of Amsterdam - obor evropská studia, více jak pět let v oblasti Corporate Governance ve finančních institucích"]
["                                 ","Skutečnost, zda povinná osoba považuje člena výboru za nezávislého"]
["ano"]
[null,"Členství a vykonávaná funkce v orgánech povinné osoby ",null,"ne","Bod 1 písm. j) bod 3 písm. d)"]
["Označení orgánu povinné osoby, jehož je člen výboru členem, a funkce v něm vykonávané  ",null,"Orgán"]
[null,null,"Funkce/pozice"]
[null,"Členství a vykonávané funkce v orgánech jiných právnických osob",null,"ne","Bod 1 písm. j) bod 3 písm. e)"]
["Označení právnické osoby, v níž  je člen výboru členem orgánu, označení tohoto orgánu a v něm vykonávané funkce",null,"Označení právnické osoby"]
[null,null,"Orgán"]
[null,null,"Funkce"]
["Označení výboru:",null,null,"Výbor pro řízení operačního rizika a ŘKS","Bod 1 písm. j) bod 1"]
[null,"Působnost výboru",null,"vymezena jeho statutem - výbor kontroluje požadavky skupiny RBI pro Fraud Incident Committee (FIC) a aktivity Fraud Investigation Team (FIT), výbor je zodpovědný za dohled a řízení Operational Risk Management Framework (ORMF), ICS Framework (ICSF).","Bod 1 písm. j) bod 2"]
[null,"Pravomoci výboru",null,"rozhodovací a výkonná pravomoc"]
[null,"Způsob jednání a rozhodování výboru",null,"sedm členů, jednání alespoň kvartálně"]
[null,"Začlenění výboru do organizačního uspořádání  povinné osoby",null,"výkonný orgán představenstva"]
[null,"Začlenění výboru do  informačních toků povinné osoby",null,"kolektivní posuzování, projednávání, rozhodování a schvalování zásadních a odborných otázek řízení a činnosti společnosti v rozsahu stanoveném představenstvem ve statutu výboru, o rozhodnutích je informováno představenstvo společnosti, které má právo rozhodnutí korigovat, popř. zamítnout "]
[null,"Údaje  o jednotlivých členech výboru v rozsahu:"]
[null,null,"Jméno a příjmení, včetně titulů","Mgr. Pavel Hruška","Bod 1 písm. j) bod 3 písm. a)"]
["Označení funkce vykonávané ve výboru, datum, od kdy osoba příslušnou funkci ve výboru vykonává",null,"Funkce/pozice","předseda","Bod 1 písm. j) bod 3 písm. b)"]
[null,null,"Datum počátku výkonu funkce/pozice","2022-07-01"]
[null,"Dosavadní zkušenosti a kvalifikační předpoklady pro výkon funkce ve výboru",null,null,"Bod 1 písm. j) bod 3 písm. c)"]
["Matemeticko-fyzikální fakulta UK, 16 let praxe v bankovnictví, 13 let praxe v oblasti risku"]
["                                 ","Skutečnost, zda povinná osoba považuje člena výboru za nezávislého"]
["ano"]
[null,"Členství a vykonávaná funkce v orgánech povinné osoby ",null,"ne"]
["Označení orgánu povinné osoby, jehož je člen výboru členem, a funkce v něm vykonávané  ",null,"Orgán",null,"Bod 1 písm. j) bod 3 písm. d)"]
[null,null,"Funkce/pozice"]
[null,"Členství a vykonávané funkce v orgánech jiných právnických osob",null,"ano","Bod 1 písm. j) bod 3 písm. e)"]
["Označení právnické osoby, v níž  je člen výboru členem orgánu, označení tohoto orgánu a v něm vykonávané funkce",null,"Označení právnické osoby","Společenství vlastníků jednotek Sadská 482, 483, 484, Praha 9 - Hloubětín"]
[null,null,"Orgán","statutární orgán"]
[null,null,"Funkce","předseda výboru"]
["Označení právnické osoby, v níž  je člen výboru členem orgánu, označení tohoto orgánu a v něm vykonávané funkce",null,"Označení právnické osoby","Společenství vlastníků Kardašovská 625,626,668,669"]
[null,null,"Orgán","statutární orgán"]
[null,null,"Funkce","místopředseda výboru"]
["Označení právnické osoby, v níž  je člen výboru členem orgánu, označení tohoto orgánu a v něm vykonávané funkce",null,"Označení právnické osoby","Společenství vlastníků Zelenečská 954, Praha 9"]
[null,null,"Orgán","statutární orgán"]
[null,null,"Funkce","místopředseda výboru"]
["Označení právnické osoby, v níž  je člen výboru členem orgánu, označení tohoto orgánu a v něm vykonávané funkce",null,"Označení právnické osoby","Bytové družstvo Sadská"]
[null,null,"Orgán","statutární orgán"]
[null,null,"Funkce","předseda představenstva"]
["Označení právnické osoby, v níž  je člen výboru členem orgánu, označení tohoto orgánu a v něm vykonávané funkce",null,"Označení právnické osoby","Bydlení Kbely s.r.o."]
[null,null,"Orgán","statutární orgán"]
[null,null,"Funkce","jednatel"]
[null,null,"Jméno a příjmení, včetně titulů","Ing. Yvona Tošnerová","Bod 1 písm. j) bod 3 písm. a)"]
["Označení funkce vykonávané ve výboru, datum, od kdy osoba příslušnou funkci ve výboru vykonává",null,"Funkce/pozice","místopředseda","Bod 1 písm. j) bod 3 písm. b)"]
[null,null,"Datum počátku výkonu funkce/pozice","01.07.2022 (členka od 01.09.2021)"]
[null,"Dosavadní zkušenosti a kvalifikační předpoklady pro výkon funkce ve výboru",null,null,"Bod 1 písm. j) bod 3 písm. c)"]
["Vysoká škola ekonomická v Praze"]
["                                 ","Skutečnost, zda povinná osoba považuje člena výboru za nezávislého"]
["ano"]
[null,"Členství a vykonávaná funkce v orgánech povinné osoby ",null,null,"Bod 1 písm. j) bod 3 písm. d)"]
["Označení orgánu povinné osoby, jehož je člen výboru členem, a funkce v něm vykonávané  ",null,"Orgán","představenstvo"]
[null,null,"Funkce/pozice","místopředsedkyně představenstva"]
[null,"Členství a vykonávané funkce v orgánech jiných právnických osob",null,"ano","Bod 1 písm. j) bod 3 písm. e)"]
["Označení právnické osoby, v níž  je člen výboru členem orgánu, označení tohoto orgánu a v něm vykonávané funkce",null,"Označení právnické osoby","Společenství vlastníků domu Někrasova 3"]
[null,null,"Orgán","statutární orgán"]
[null,null,"Funkce","člen výboru"]
[null,null,"Jméno a příjmení, včetně titulů","Mgr. Lukáš Fremut","Bod 1 písm. j) bod 3 písm. a)"]
["Označení funkce vykonávané ve výboru, datum, od kdy osoba příslušnou funkci ve výboru vykonává",null,"Funkce/pozice","člen","Bod 1 písm. j) bod 3 písm. b)"]
[null,null,"Datum počátku výkonu funkce/pozice","2025-05-01"]
[null,"Dosavadní zkušenosti a kvalifikační předpoklady pro výkon funkce ve výboru",null,null,"Bod 1 písm. j) bod 3 písm. c)"]
["Policejní akademie ČR v Praze, fakulta Bezpečnostního managementu, více jak 5 let zkušeností v bance v oblasti vedení IT projektů \t\t\t"]
["                                 ","Skutečnost, zda povinná osoba považuje člena výboru za nezávislého"]
["ano"]
[null,"Členství a vykonávaná funkce v orgánech povinné osoby ",null,"ne","Bod 1 písm. j) bod 3 písm. d)"]
["Označení orgánu povinné osoby, jehož je člen výboru členem, a funkce v něm vykonávané  ",null,"Orgán"]
[null,null,"Funkce/pozice"]
[null,"Členství a vykonávané funkce v orgánech jiných právnických osob",null,"ne","Bod 1 písm. j) bod 3 písm. e)"]
["Označení právnické osoby, v níž  je člen výboru členem orgánu, označení tohoto orgánu a v něm vykonávané funkce",null,"Označení právnické osoby"]
[null,null,"Orgán"]
[null,null,"Funkce"]
[null,null,"Jméno a příjmení, včetně titulů","Ing. Petr Zaremba","Bod 1 písm. j) bod 3 písm. a)"]
["Označení funkce vykonávané ve výboru, datum, od kdy osoba příslušnou funkci ve výboru vykonává",null,"Funkce/pozice","člen","Bod 1 písm. j) bod 3 písm. b)"]
[null,null,"Datum počátku výkonu funkce/pozice","2021-09-01"]
[null,"Dosavadní zkušenosti a kvalifikační předpoklady pro výkon funkce ve výboru",null,null,"Bod 1 písm. j) bod 3 písm. c)"]
["Vysoká škola ekonomická v Praze"]
["                                 ","Skutečnost, zda povinná osoba považuje člena výboru za nezávislého"]
["ano"]
[null,"Členství a vykonávaná funkce v orgánech povinné osoby ",null,"ne","Bod 1 písm. j) bod 3 písm. d)"]
["Označení orgánu povinné osoby, jehož je člen výboru členem, a funkce v něm vykonávané  ",null,"Orgán"]
[null,null,"Funkce/pozice"]
[null,"Členství a vykonávané funkce v orgánech jiných právnických osob",null,"ne","Bod 1 písm. j) bod 3 písm. e)"]
["Označení právnické osoby, v níž  je člen výboru členem orgánu, označení tohoto orgánu a v něm vykonávané funkce",null,"Označení právnické osoby"]
[null,null,"Orgán"]
[null,null,"Funkce"]
[null,null,"Jméno a příjmení, včetně titulů","Mgr. Michaela Fingerová","Bod 1 písm. j) bod 3 písm. a)"]
["Označení funkce vykonávané ve výboru, datum, od kdy osoba příslušnou funkci ve výboru vykonává",null,"Funkce/pozice","člen","Bod 1 písm. j) bod 3 písm. b)"]
[null,null,"Datum počátku výkonu funkce/pozice","2021-09-01"]
[null,"Dosavadní zkušenosti a kvalifikační předpoklady pro výkon funkce ve výboru",null,null,"Bod 1 písm. j) bod 3 písm. c)"]
["Právnická fakulta UK, právník v RSTS od r. 2003, ředitelka odboru LEG"]
["                                 ","Skutečnost, zda povinná osoba považuje člena výboru za nezávislého"]
["ano"]
[null,"Členství a vykonávaná funkce v orgánech povinné osoby ",null,"ne","Bod 1 písm. j) bod 3 písm. d)"]
["Označení orgánu povinné osoby, jehož je člen výboru členem, a funkce v něm vykonávané  ",null,"Orgán"]
[null,null,"Funkce/pozice"]
[null,"Členství a vykonávané funkce v orgánech jiných právnických osob",null,"ne","Bod 1 písm. j) bod 3 písm. e)"]
["Označení právnické osoby, v níž  je člen výboru členem orgánu, označení tohoto orgánu a v něm vykonávané funkce",null,"Označení právnické osoby"]
[null,null,"Orgán"]
[null,null,"Funkce"]
[null,null,"Jméno a příjmení, včetně titulů","Eva Bártová, DiS.","Bod 1 písm. j) bod 3 písm. a)"]
["Označení funkce vykonávané ve výboru, datum, od kdy osoba příslušnou funkci ve výboru vykonává",null,"Funkce/pozice","člen","Bod 1 písm. j) bod 3 písm. b)"]
[null,null,"Datum počátku výkonu funkce/pozice","2023-01-01"]
[null,"Dosavadní zkušenosti a kvalifikační předpoklady pro výkon funkce ve výboru",null,null,"Bod 1 písm. j) bod 3 písm. c)"]
["Bankovní akademie – vyšší odborná škola, Praha"]
["                                 ","Skutečnost, zda povinná osoba považuje člena výboru za nezávislého"]
["ano"]
[null,"Členství a vykonávaná funkce v orgánech povinné osoby ",null,"ne","Bod 1 písm. j) bod 3 písm. d)"]
["Označení orgánu povinné osoby, jehož je člen výboru členem, a funkce v něm vykonávané  ",null,"Orgán"]
[null,null,"Funkce/pozice"]
[null,"Členství a vykonávané funkce v orgánech jiných právnických osob",null,"ne","Bod 1 písm. j) bod 3 písm. e)"]
["Označení právnické osoby, v níž  je člen výboru členem orgánu, označení tohoto orgánu a v něm vykonávané funkce",null,"Označení právnické osoby"]
[null,null,"Orgán"]
[null,null,"Funkce"]
[null,null,"Jméno a příjmení, včetně titulů","Kateřina Černá, MA","Bod 1 písm. j) bod 3 písm. a)"]
["Označení funkce vykonávané ve výboru, datum, od kdy osoba příslušnou funkci ve výboru vykonává",null,"Funkce/pozice","člen","Bod 1 písm. j) bod 3 písm. b)"]
[null,null,"Datum počátku výkonu funkce/pozice","2023-03-01"]
[null,"Dosavadní zkušenosti a kvalifikační předpoklady pro výkon funkce ve výboru",null,null,"Bod 1 písm. j) bod 3 písm. c)"]
["University of Amsterdam - obor evropská studia, více jak pět let v oblasti Corporate Governance ve finančních institucích"]
["                                 ","Skutečnost, zda povinná osoba považuje člena výboru za nezávislého"]
["ano"]
[null,"Členství a vykonávaná funkce v orgánech povinné osoby ",null,"ne","Bod 1 písm. j) bod 3 písm. d)"]
["Označení orgánu povinné osoby, jehož je člen výboru členem, a funkce v něm vykonávané  ",null,"Orgán"]
[null,null,"Funkce/pozice"]
[null,"Členství a vykonávané funkce v orgánech jiných právnických osob",null,"ne","Bod 1 písm. j) bod 3 písm. e)"]
["Označení právnické osoby, v níž  je člen výboru členem orgánu, označení tohoto orgánu a v něm vykonávané funkce",null,"Označení právnické osoby"]
[null,null,"Orgán"]
[null,null,"Funkce"]
["Označení výboru:",null,null,"Výbor pro řízení IT","Bod 1 písm. j) bod 1"]
[null,"Působnost výboru",null,"vymezena jeho statutem - výbor je odpovědný za řízení IT provozu a vývoje v RSTS a řízení outsourcingu v oblasti IT. ","Bod 1 písm. j) bod 2"]
[null,"Pravomoci výboru",null,"rozhodovací a výkonná pravomoc"]
[null,"Způsob jednání a rozhodování výboru",null,"pět členů, jednání alespoň jednou  měsíčně"]
[null,"Začlenění výboru do organizačního uspořádání  povinné osoby",null,"výkonný orgán představenstva"]
[null,"Začlenění výboru do  informačních toků povinné osoby",null,"kolektivní posuzování, projednávání, rozhodování a schvalování zásadních a odborných otázek řízení a činnosti společnosti v rozsahu stanoveném představenstvem ve statutu výboru, o rozhodnutích je informováno představenstvo společnosti, které má právo rozhodnutí korigovat, popř. zamítnout "]
[null,"Údaje  o jednotlivých členech výboru v rozsahu:"]
[null,null,"Jméno a příjmení, včetně titulů","Ing. Pavel Čejka, MBA","Bod 1 písm. j) bod 3 písm. a)"]
["Označení funkce vykonávané ve výboru, datum, od kdy osoba příslušnou funkci ve výboru vykonává",null,"Funkce/pozice","místopředseda","Bod 1 písm. j) bod 3 písm. b)"]
[null,null,"Datum počátku výkonu funkce/pozice","2021-09-01"]
[null,"Dosavadní zkušenosti a kvalifikační předpoklady pro výkon funkce ve výboru",null,null,"Bod 1 písm. j) bod 3 písm. c)"]
["České vysoké učení technické, Praha, Fakulta dopravní"]
["                                 ","Skutečnost, zda povinná osoba považuje člena výboru za nezávislého"]
["ano"]
[null,"Členství a vykonávaná funkce v orgánech povinné osoby ",null,null,"Bod 1 písm. j) bod 3 písm. d)"]
["Označení orgánu povinné osoby, jehož je člen výboru členem, a funkce v něm vykonávané  ",null,"Orgán","představenstvo"]
[null,null,"Funkce/pozice","předseda představenstva"]
[null,"Členství a vykonávané funkce v orgánech jiných právnických osob",null,"ne","Bod 1 písm. j) bod 3 písm. e)"]
["Označení právnické osoby, v níž  je člen výboru členem orgánu, označení tohoto orgánu a v něm vykonávané funkce",null,"Označení právnické osoby","Asociace českých stavebních spořitelen"]
[null,null,"Orgán","prezidium"]
[null,null,"Funkce","člen"]
[null,null,"Jméno a příjmení, včetně titulů","Bc. Jiří Antoš","Bod 1 písm. j) bod 3 písm. a)"]
["Označení funkce vykonávané ve výboru, datum, od kdy osoba příslušnou funkci ve výboru vykonává",null,"Funkce/pozice","člen","Bod 1 písm. j) bod 3 písm. b)"]
[null,null,"Datum počátku výkonu funkce/pozice","2021-09-01"]
[null,"Dosavadní zkušenosti a kvalifikační předpoklady pro výkon funkce ve výboru",null,null,"Bod 1 písm. j) bod 3 písm. c)"]
["Bankovní institut vysoká škola Praha "]
["                                 ","Skutečnost, zda povinná osoba považuje člena výboru za nezávislého"]
["ano"]
[null,"Členství a vykonávaná funkce v orgánech povinné osoby ",null,null,"Bod 1 písm. j) bod 3 písm. d)"]
["Označení orgánu povinné osoby, jehož je člen výboru členem, a funkce v něm vykonávané  ",null,"Orgán","představenstvo"]
[null,null,"Funkce/pozice","místopředseda představenstva"]
[null,"Členství a vykonávané funkce v orgánech jiných právnických osob",null,"ne","Bod 1 písm. j) bod 3 písm. e)"]
["Označení právnické osoby, v níž  je člen výboru členem orgánu, označení tohoto orgánu a v něm vykonávané funkce",null,"Označení právnické osoby"]
[null,null,"Orgán"]
[null,null,"Funkce"]
[null,null,"Jméno a příjmení, včetně titulů","Ing. Yvona Tošnerová"]
["Označení funkce vykonávané ve výboru, datum, od kdy osoba příslušnou funkci ve výboru vykonává",null,"Funkce/pozice","člen"]
[null,null,"Datum počátku výkonu funkce/pozice","2023-01-01"]
[null,"Dosavadní zkušenosti a kvalifikační předpoklady pro výkon funkce ve výboru"]
["Vysoká škola ekonomická v Praze"]
["                                 ","Skutečnost, zda povinná osoba považuje člena výboru za nezávislého"]
["ano"]
[null,"Členství a vykonávaná funkce v orgánech povinné osoby ",null,"ano"]
["Označení orgánu povinné osoby, jehož je člen výboru členem, a funkce v něm vykonávané  ",null,"Orgán","představenstvo"]
[null,null,"Funkce/pozice","místopředsedkyně představenstva"]
[null,"Členství a vykonávané funkce v orgánech jiných právnických osob",null,"ano"]
["Označení právnické osoby, v níž  je člen výboru členem orgánu, označení tohoto orgánu a v něm vykonávané funkce",null,"Označení právnické osoby","Společenství vlastníků domu Někrasova 3"]
[null,null,"Orgán","statutární orgán"]
[null,null,"Funkce","člen výboru"]
[null,null,"Jméno a příjmení, včetně titulů","Mgr. Lukáš Fremut","Bod 1 písm. j) bod 3 písm. a)"]
["Označení funkce vykonávané ve výboru, datum, od kdy osoba příslušnou funkci ve výboru vykonává",null,"Funkce/pozice","předseda  ","Bod 1 písm. j) bod 3 písm. b)"]
[null,null,"Datum počátku výkonu funkce/pozice","2025-05-01"]
[null,"Dosavadní zkušenosti a kvalifikační předpoklady pro výkon funkce ve výboru",null,null,"Bod 1 písm. j) bod 3 písm. c)"]
["Policejní akademie ČR v Praze, fakulta Bezpečnostního managementu, více jak 5 let zkušeností v bance v oblasti vedení IT projektů \t\t\t"]
["                                 ","Skutečnost, zda povinná osoba považuje člena výboru za nezávislého"]
["ano"]
[null,"Členství a vykonávaná funkce v orgánech povinné osoby ",null,"ne","Bod 1 písm. j) bod 3 písm. d)"]
["Označení orgánu povinné osoby, jehož je člen výboru členem, a funkce v něm vykonávané  ",null,"Orgán"]
[null,null,"Funkce/pozice"]
[null,"Členství a vykonávané funkce v orgánech jiných právnických osob",null,"ne","Bod 1 písm. j) bod 3 písm. e)"]
["Označení právnické osoby, v níž  je člen výboru členem orgánu, označení tohoto orgánu a v něm vykonávané funkce",null,"Označení právnické osoby"]
[null,null,"Orgán"]
[null,null,"Funkce"]
[null,null,"Jméno a příjmení, včetně titulů","Ing. Petr Zaremba","Bod 1 písm. j) bod 3 písm. a)"]
["Označení funkce vykonávané ve výboru, datum, od kdy osoba příslušnou funkci ve výboru vykonává",null,"Funkce/pozice","člen","Bod 1 písm. j) bod 3 písm. b)"]
[null,null,"Datum počátku výkonu funkce/pozice","2021-09-01"]
[null,"Dosavadní zkušenosti a kvalifikační předpoklady pro výkon funkce ve výboru",null,null,"Bod 1 písm. j) bod 3 písm. c)"]
["Vysoká škola ekonomická v Praze"]
["                                 ","Skutečnost, zda povinná osoba považuje člena výboru za nezávislého"]
["ano"]
[null,"Členství a vykonávaná funkce v orgánech povinné osoby ",null,"ne","Bod 1 písm. j) bod 3 písm. d)"]
["Označení orgánu povinné osoby, jehož je člen výboru členem, a funkce v něm vykonávané  ",null,"Orgán"]
[null,null,"Funkce/pozice"]
[null,"Členství a vykonávané funkce v orgánech jiných právnických osob",null,"ne","Bod 1 písm. j) bod 3 písm. e)"]
["Označení právnické osoby, v níž  je člen výboru členem orgánu, označení tohoto orgánu a v něm vykonávané funkce",null,"Označení právnické osoby"]
[null,null,"Orgán"]
[null,null,"Funkce"]
["Označení výboru:",null,null,"Výbor pro řízení změn","Bod 1 písm. j) bod 1"]
[null,"Působnost výboru",null,"vymezena jeho statutem - výbor má právo zadávat úkoly organizačním útvarům RSTS, nebo organizačním útvarům společnosti Raiffeisenbank a.s., které poskytují činnosti pro RSTS v souladu s platnou outsourcingovou smlouvou, za účelem plnění úkonů. Dále může zadávat a dohlížet na nutné podmínky pro realizaci, určovat zodpovědné osoby, požadovat aktuální status a případné analýzy pro připravované návrhy. Výbor zkoumá efektivitu navrhovaných opatření a schvaluje splnění úkonů. ","Bod 1 písm. j) bod 2"]
[null,"Pravomoci výboru",null,"rozhodovací a výkonná pravomoc"]
[null,"Způsob jednání a rozhodování výboru",null,"devět členů, jednání alespoň jednou  měsíčně"]
[null,"Začlenění výboru do organizačního uspořádání  povinné osoby",null,"výkonný orgán představenstva"]
[null,"Začlenění výboru do  informačních toků povinné osoby",null,"kolektivní posuzování, projednávání, rozhodování a schvalování zásadních a odborných otázek řízení a činnosti společnosti v rozsahu stanoveném představenstvem ve statutu výboru, o rozhodnutích je informováno představenstvo společnosti, které má právo rozhodnutí korigovat, popř. zamítnout "]
[null,"Údaje  o jednotlivých členech výboru v rozsahu:"]
[null,null,"Jméno a příjmení, včetně titulů","Ing. Pavel Čejka, MBA","Bod 1 písm. j) bod 3 písm. a)"]
["Označení funkce vykonávané ve výboru, datum, od kdy osoba příslušnou funkci ve výboru vykonává",null,"Funkce/pozice","místopředseda","Bod 1 písm. j) bod 3 písm. b)"]
[null,null,"Datum počátku výkonu funkce/pozice","2021-09-01"]
[null,"Dosavadní zkušenosti a kvalifikační předpoklady pro výkon funkce ve výboru",null,null,"Bod 1 písm. j) bod 3 písm. c)"]
["České vysoké učení technické, Praha, Fakulta dopravní"]
["                                 ","Skutečnost, zda povinná osoba považuje člena výboru za nezávislého"]
["ano"]
[null,"Členství a vykonávaná funkce v orgánech povinné osoby ",null,null,"Bod 1 písm. j) bod 3 písm. d)"]
["Označení orgánu povinné osoby, jehož je člen výboru členem, a funkce v něm vykonávané  ",null,"Orgán","představenstvo"]
[null,null,"Funkce/pozice","předseda představenstva"]
[null,"Členství a vykonávané funkce v orgánech jiných právnických osob",null,"ne","Bod 1 písm. j) bod 3 písm. e)"]
["Označení právnické osoby, v níž  je člen výboru členem orgánu, označení tohoto orgánu a v něm vykonávané funkce",null,"Označení právnické osoby","Asociace českých stavebních spořitelen"]
[null,null,"Orgán","prezidium"]
[null,null,"Funkce","místopředseda"]
[null,null,"Jméno a příjmení, včetně titulů","Ing. Yvona Tošnerová","Bod 1 písm. j) bod 3 písm. a)"]
["Označení funkce vykonávané ve výboru, datum, od kdy osoba příslušnou funkci ve výboru vykonává",null,"Funkce/pozice","člen","Bod 1 písm. j) bod 3 písm. b)"]
[null,null,"Datum počátku výkonu funkce/pozice","2023-01-01"]
[null,"Dosavadní zkušenosti a kvalifikační předpoklady pro výkon funkce ve výboru",null,null,"Bod 1 písm. j) bod 3 písm. c)"]
["Vysoká škola ekonomická v Praze"]
["                                 ","Skutečnost, zda povinná osoba považuje člena výboru za nezávislého"]
["ano"]
[null,"Členství a vykonávaná funkce v orgánech povinné osoby ",null,"ano","Bod 1 písm. j) bod 3 písm. d)"]
["Označení orgánu povinné osoby, jehož je člen výboru členem, a funkce v něm vykonávané  ",null,"Orgán","představenstvo"]
[null,null,"Funkce/pozice","místopředsedkyně představenstva"]
[null,"Členství a vykonávané funkce v orgánech jiných právnických osob",null,"ano","Bod 1 písm. j) bod 3 písm. e)"]
["Označení právnické osoby, v níž  je člen výboru členem orgánu, označení tohoto orgánu a v něm vykonávané funkce",null,"Označení právnické osoby","Společenství vlastníků domu Někrasova 3"]
[null,null,"Orgán","statutární orgán"]
[null,null,"Funkce","člen výboru"]
[null,null,"Jméno a příjmení, včetně titulů","Mgr. Lukáš Fremut","Bod 1 písm. j) bod 3 písm. a)"]
["Označení funkce vykonávané ve výboru, datum, od kdy osoba příslušnou funkci ve výboru vykonává",null,"Funkce/pozice","člen","Bod 1 písm. j) bod 3 písm. b)"]
[null,null,"Datum počátku výkonu funkce/pozice","2025-05-01"]
[null,"Dosavadní zkušenosti a kvalifikační předpoklady pro výkon funkce ve výboru",null,null,"Bod 1 písm. j) bod 3 písm. c)"]
["Policejní akademie ČR v Praze, fakulta Bezpečnostního managementu, více jak 5 let zkušeností v bance v oblasti vedení IT projektů \t\t\t"]
["                                 ","Skutečnost, zda povinná osoba považuje člena výboru za nezávislého"]
["ano"]
[null,"Členství a vykonávaná funkce v orgánech povinné osoby ",null,"ne","Bod 1 písm. j) bod 3 písm. d)"]
["Označení orgánu povinné osoby, jehož je člen výboru členem, a funkce v něm vykonávané  ",null,"Orgán"]
[null,null,"Funkce/pozice"]
[null,"Členství a vykonávané funkce v orgánech jiných právnických osob",null,"ne","Bod 1 písm. j) bod 3 písm. e)"]
["Označení právnické osoby, v níž  je člen výboru členem orgánu, označení tohoto orgánu a v něm vykonávané funkce",null,"Označení právnické osoby"]
[null,null,"Orgán"]
[null,null,"Funkce"]
[null,null,"Jméno a příjmení, včetně titulů","Ing. Petr Zaremba","Bod 1 písm. j) bod 3 písm. a)"]
["Označení funkce vykonávané ve výboru, datum, od kdy osoba příslušnou funkci ve výboru vykonává",null,"Funkce/pozice","člen","Bod 1 písm. j) bod 3 písm. b)"]
[null,null,"Datum počátku výkonu funkce/pozice","2021-09-01"]
[null,"Dosavadní zkušenosti a kvalifikační předpoklady pro výkon funkce ve výboru",null,null,"Bod 1 písm. j) bod 3 písm. c)"]
["Vysoká škola ekonomická v Praze"]
["                                 ","Skutečnost, zda povinná osoba považuje člena výboru za nezávislého"]
["ano"]
[null,"Členství a vykonávaná funkce v orgánech povinné osoby ",null,"ne","Bod 1 písm. j) bod 3 písm. d)"]
["Označení orgánu povinné osoby, jehož je člen výboru členem, a funkce v něm vykonávané  ",null,"Orgán"]
[null,null,"Funkce/pozice"]
[null,"Členství a vykonávané funkce v orgánech jiných právnických osob",null,"ne","Bod 1 písm. j) bod 3 písm. e)"]
["Označení právnické osoby, v níž  je člen výboru členem orgánu, označení tohoto orgánu a v něm vykonávané funkce",null,"Označení právnické osoby"]
[null,null,"Orgán"]
[null,null,"Funkce"]
[null,null,"Jméno a příjmení, včetně titulů","Ing. Michal Noha","Bod 1 písm. j) bod 3 písm. a)"]
["Označení funkce vykonávané ve výboru, datum, od kdy osoba příslušnou funkci ve výboru vykonává",null,"Funkce/pozice","člen","Bod 1 písm. j) bod 3 písm. b)"]
[null,null,"Datum počátku výkonu funkce/pozice","2021-09-01"]
[null,"Dosavadní zkušenosti a kvalifikační předpoklady pro výkon funkce ve výboru",null,null,"Bod 1 písm. j) bod 3 písm. c)"]
["Vysoká škola báňská - Technická univerzita Ostrava, Ekonomická fakulta"]
["                                 ","Skutečnost, zda povinná osoba považuje člena výboru za nezávislého"]
["ano"]
[null,"Členství a vykonávaná funkce v orgánech povinné osoby ",null,"ne","Bod 1 písm. j) bod 3 písm. d)"]
["Označení orgánu povinné osoby, jehož je člen výboru členem, a funkce v něm vykonávané  ",null,"Orgán"]
[null,null,"Funkce/pozice"]
[null,"Členství a vykonávané funkce v orgánech jiných právnických osob",null,"ne","Bod 1 písm. j) bod 3 písm. e)"]
["Označení právnické osoby, v níž  je člen výboru členem orgánu, označení tohoto orgánu a v něm vykonávané funkce",null,"Označení právnické osoby"]
[null,null,"Orgán"]
[null,null,"Funkce"]
[null,null,"Jméno a příjmení, včetně titulů","Eva Bártová, DiS.","Bod 1 písm. j) bod 3 písm. a)"]
["Označení funkce vykonávané ve výboru, datum, od kdy osoba příslušnou funkci ve výboru vykonává",null,"Funkce/pozice","člen","Bod 1 písm. j) bod 3 písm. b)"]
[null,null,"Datum počátku výkonu funkce/pozice","2021-09-01"]
[null,"Dosavadní zkušenosti a kvalifikační předpoklady pro výkon funkce ve výboru",null,null,"Bod 1 písm. j) bod 3 písm. c)"]
["Bankovní akademie – vyšší odborná škola, Praha"]
["                                 ","Skutečnost, zda povinná osoba považuje člena výboru za nezávislého"]
["ano"]
[null,"Členství a vykonávaná funkce v orgánech povinné osoby ",null,"ne","Bod 1 písm. j) bod 3 písm. d)"]
["Označení orgánu povinné osoby, jehož je člen výboru členem, a funkce v něm vykonávané  ",null,"Orgán"]
[null,null,"Funkce/pozice"]
[null,"Členství a vykonávané funkce v orgánech jiných právnických osob",null,"ne","Bod 1 písm. j) bod 3 písm. e)"]
["Označení právnické osoby, v níž  je člen výboru členem orgánu, označení tohoto orgánu a v něm vykonávané funkce",null,"Označení právnické osoby"]
[null,null,"Orgán"]
[null,null,"Funkce"]
[null,null,"Jméno a příjmení, včetně titulů","Ing. František Švec","Bod 1 písm. j) bod 3 písm. a)"]
["Označení funkce vykonávané ve výboru, datum, od kdy osoba příslušnou funkci ve výboru vykonává",null,"Funkce/pozice","člen","Bod 1 písm. j) bod 3 písm. b)"]
[null,null,"Datum počátku výkonu funkce/pozice","2021-09-01"]
[null,"Dosavadní zkušenosti a kvalifikační předpoklady pro výkon funkce ve výboru",null,null,"Bod 1 písm. j) bod 3 písm. c)"]
["Vysoká škola ekonomická v Praze"]
["                                 ","Skutečnost, zda povinná osoba považuje člena výboru za nezávislého"]
["ano"]
[null,"Členství a vykonávaná funkce v orgánech povinné osoby ",null,"ne","Bod 1 písm. j) bod 3 písm. d)"]
["Označení orgánu povinné osoby, jehož je člen výboru členem, a funkce v něm vykonávané  ",null,"Orgán"]
[null,null,"Funkce/pozice"]
[null,"Členství a vykonávané funkce v orgánech jiných právnických osob",null,"ne","Bod 1 písm. j) bod 3 písm. e)"]
["Označení právnické osoby, v níž  je člen výboru členem orgánu, označení tohoto orgánu a v něm vykonávané funkce",null,"Označení právnické osoby"]
[null,null,"Orgán"]
[null,null,"Funkce"]
[null,null,"Jméno a příjmení, včetně titulů","Ing. Stanislav Novotný","Bod 1 písm. j) bod 3 písm. a)"]
["Označení funkce vykonávané ve výboru, datum, od kdy osoba příslušnou funkci ve výboru vykonává",null,"Funkce/pozice","člen","Bod 1 písm. j) bod 3 písm. b)"]
[null,null,"Datum počátku výkonu funkce/pozice","2021-09-01"]
[null,"Dosavadní zkušenosti a kvalifikační předpoklady pro výkon funkce ve výboru",null,null,"Bod 1 písm. j) bod 3 písm. c)"]
["Bankovní institut vysoká škola Praha "]
["                                 ","Skutečnost, zda povinná osoba považuje člena výboru za nezávislého"]
["ano"]
[null,"Členství a vykonávaná funkce v orgánech povinné osoby ",null,"ne","Bod 1 písm. j) bod 3 písm. d)"]
["Označení orgánu povinné osoby, jehož je člen výboru členem, a funkce v něm vykonávané  ",null,"Orgán"]
[null,null,"Funkce/pozice"]
[null,"Členství a vykonávané funkce v orgánech jiných právnických osob",null,"ne","Bod 1 písm. j) bod 3 písm. e)"]
["Označení právnické osoby, v níž  je člen výboru členem orgánu, označení tohoto orgánu a v něm vykonávané funkce",null,"Označení právnické osoby"]
[null,null,"Orgán"]
[null,null,"Funkce"]
[null,null,"Jméno a příjmení, včetně titulů","Ing. Jarmila Kowolowská, MBA","Bod 1 písm. j) bod 3 písm. a)"]
["Označení funkce vykonávané ve výboru, datum, od kdy osoba příslušnou funkci ve výboru vykonává",null,"Funkce/pozice","předseda","Bod 1 písm. j) bod 3 písm. b)"]
[null,null,"Datum počátku výkonu funkce/pozice","2024-10-22"]
[null,"Dosavadní zkušenosti a kvalifikační předpoklady pro výkon funkce ve výboru",null,null,"Bod 1 písm. j) bod 3 písm. c)"]
["VŠE Praha, University of Pittsburgh, zkušenosti v řízení změn i business a projektovém managementu, práce v bankách téměř 20 let"]
["                                 ","Skutečnost, zda povinná osoba považuje člena výboru za nezávislého"]
["ano"]
[null,"Členství a vykonávaná funkce v orgánech povinné osoby ",null,"ne","Bod 1 písm. j) bod 3 písm. d)"]
["Označení orgánu povinné osoby, jehož je člen výboru členem, a funkce v něm vykonávané  ",null,"Orgán"]
[null,null,"Funkce/pozice"]
[null,"Členství a vykonávané funkce v orgánech jiných právnických osob",null,"ne","Bod 1 písm. j) bod 3 písm. e)"]
["Označení právnické osoby, v níž  je člen výboru členem orgánu, označení tohoto orgánu a v něm vykonávané funkce",null,"Označení právnické osoby"]
[null,null,"Orgán"]
[null,null,"Funkce"]
["Označení výboru:",null,null,"Výbor pro řízení outsourcingu","Bod 1 písm. j) bod 1"]
[null,"Působnost výboru",null,"vymezena jeho statutem - zejména hodnocení vývoje a navrhování změn cen outsourcingu, dohled nad kvalitou a plněním SLA, projednávání a navrhování změn a aktualizací ve stávajících outsourcingových studiích a smlouvách atd.","Bod 1 písm. j) bod 2"]
[null,"Pravomoci výboru",null,"poradní a konzultační funkce"]
[null,"Způsob jednání a rozhodování výboru",null,"devět členů, jednání nejméně jednou za kvartál"]
[null,"Začlenění výboru do organizačního uspořádání  povinné osoby",null,"poradní orgán představenstva"]
[null,"Začlenění výboru do  informačních toků povinné osoby",null,"kolektivní posuzování a projednávání zásadních a odborných otázek řízení a činnosti společnosti vymezených představenstvem ve statutu výboru, závěry jsou doporučením pro rozhodnutí představenstva společnosti"]
[null,"Údaje  o jednotlivých členech výboru v rozsahu:"]
[null,null,"Jméno a příjmení, včetně titulů","Mgr. Michaela Fingerová","Bod 1 písm. j) bod 3 písm. a)"]
["Označení funkce vykonávané ve výboru, datum, od kdy osoba příslušnou funkci ve výboru vykonává",null,"Funkce/pozice","předseda","Bod 1 písm. j) bod 3 písm. b)"]
[null,null,"Datum počátku výkonu funkce/pozice","2023-03-01"]
[null,"Dosavadní zkušenosti a kvalifikační předpoklady pro výkon funkce ve výboru",null,null,"Bod 1 písm. j) bod 3 písm. c)"]
["Právnická fakulta UK, právník v RSTS od r. 2003, ředitelka odboru LEG"]
["                                 ","Skutečnost, zda povinná osoba považuje člena výboru za nezávislého"]
["ano"]
[null,"Členství a vykonávaná funkce v orgánech povinné osoby ",null,"ne","Bod 1 písm. j) bod 3 písm. d)"]
["Označení orgánu povinné osoby, jehož je člen výboru členem, a funkce v něm vykonávané  ",null,"Orgán"]
[null,null,"Funkce/pozice"]
[null,"Členství a vykonávané funkce v orgánech jiných právnických osob",null,"ne","Bod 1 písm. j) bod 3 písm. e)"]
["Označení právnické osoby, v níž  je člen výboru členem orgánu, označení tohoto orgánu a v něm vykonávané funkce",null,"Označení právnické osoby"]
[null,null,"Orgán"]
[null,null,"Funkce"]
[null,null,"Jméno a příjmení, včetně titulů","Kateřina Černá, MA","Bod 1 písm. j) bod 3 písm. a)"]
["Označení funkce vykonávané ve výboru, datum, od kdy osoba příslušnou funkci ve výboru vykonává",null,"Funkce/pozice","místopředseda","Bod 1 písm. j) bod 3 písm. b)"]
[null,null,"Datum počátku výkonu funkce/pozice","2022-07-01"]
[null,"Dosavadní zkušenosti a kvalifikační předpoklady pro výkon funkce ve výboru",null,null,"Bod 1 písm. j) bod 3 písm. c)"]
["University of Amsterdam - obor evropská studia, více jak pět let v oblasti Corporate Governance ve finančních institucích"]
["                                 ","Skutečnost, zda povinná osoba považuje člena výboru za nezávislého"]
["ano"]
[null,"Členství a vykonávaná funkce v orgánech povinné osoby ",null,"Ne","Bod 1 písm. j) bod 3 písm. d)"]
["Označení orgánu povinné osoby, jehož je člen výboru členem, a funkce v něm vykonávané  ",null,"Orgán"]
[null,null,"Funkce/pozice"]
[null,"Členství a vykonávané funkce v orgánech jiných právnických osob",null,"Ne","Bod 1 písm. j) bod 3 písm. e)"]
["Označení právnické osoby, v níž  je člen výboru členem orgánu, označení tohoto orgánu a v něm vykonávané funkce",null,"Označení právnické osoby"]
[null,null,"Orgán"]
[null,null,"Funkce"]
[null,null,"Jméno a příjmení, včetně titulů","Ing. Petr Zaremba","Bod 1 písm. j) bod 3 písm. a)"]
["Označení funkce vykonávané ve výboru, datum, od kdy osoba příslušnou funkci ve výboru vykonává",null,"Funkce/pozice","člen","Bod 1 písm. j) bod 3 písm. b)"]
[null,null,"Datum počátku výkonu funkce/pozice","2021-09-01"]
[null,"Dosavadní zkušenosti a kvalifikační předpoklady pro výkon funkce ve výboru",null,null,"Bod 1 písm. j) bod 3 písm. c)"]
["Vysoká škola ekonomická v Praze"]
["                                 ","Skutečnost, zda povinná osoba považuje člena výboru za nezávislého"]
["ano"]
[null,"Členství a vykonávaná funkce v orgánech povinné osoby ",null,"ne","Bod 1 písm. j) bod 3 písm. d)"]
["Označení orgánu povinné osoby, jehož je člen výboru členem, a funkce v něm vykonávané  ",null,"Orgán"]
[null,null,"Funkce/pozice"]
[null,"Členství a vykonávané funkce v orgánech jiných právnických osob",null,"ne","Bod 1 písm. j) bod 3 písm. e)"]
["Označení právnické osoby, v níž  je člen výboru členem orgánu, označení tohoto orgánu a v něm vykonávané funkce",null,"Označení právnické osoby"]
[null,null,"Orgán"]
[null,null,"Funkce"]
[null,null,"Jméno a příjmení, včetně titulů","Eva Bártová, DiS.","Bod 1 písm. j) bod 3 písm. a)"]
["Označení funkce vykonávané ve výboru, datum, od kdy osoba příslušnou funkci ve výboru vykonává",null,"Funkce/pozice","člen","Bod 1 písm. j) bod 3 písm. b)"]
[null,null,"Datum počátku výkonu funkce/pozice","2021-09-01"]
[null,"Dosavadní zkušenosti a kvalifikační předpoklady pro výkon funkce ve výboru",null,null,"Bod 1 písm. j) bod 3 písm. c)"]
["Bankovní akademie – vyšší odborná škola, Praha"]
["                                 ","Skutečnost, zda povinná osoba považuje člena výboru za nezávislého"]
["ano"]
[null,"Členství a vykonávaná funkce v orgánech povinné osoby ",null,"ne","Bod 1 písm. j) bod 3 písm. d)"]
["Označení orgánu povinné osoby, jehož je člen výboru členem, a funkce v něm vykonávané  ",null,"Orgán"]
[null,null,"Funkce/pozice"]
[null,"Členství a vykonávané funkce v orgánech jiných právnických osob",null,"ne","Bod 1 písm. j) bod 3 písm. e)"]
["Označení právnické osoby, v níž  je člen výboru členem orgánu, označení tohoto orgánu a v něm vykonávané funkce",null,"Označení právnické osoby"]
[null,null,"Orgán"]
[null,null,"Funkce"]
[null,null,"Jméno a příjmení, včetně titulů","Ing. František Švec","Bod 1 písm. j) bod 3 písm. a)"]
["Označení funkce vykonávané ve výboru, datum, od kdy osoba příslušnou funkci ve výboru vykonává",null,"Funkce/pozice","člen","Bod 1 písm. j) bod 3 písm. b)"]
[null,null,"Datum počátku výkonu funkce/pozice","2021-09-01"]
[null,"Dosavadní zkušenosti a kvalifikační předpoklady pro výkon funkce ve výboru",null,null,"Bod 1 písm. j) bod 3 písm. c)"]
["Vysoká škola ekonomická v Praze"]
["                                 ","Skutečnost, zda povinná osoba považuje člena výboru za nezávislého"]
["ano"]
[null,"Členství a vykonávaná funkce v orgánech povinné osoby ",null,"ne","Bod 1 písm. j) bod 3 písm. d)"]
["Označení orgánu povinné osoby, jehož je člen výboru členem, a funkce v něm vykonávané  ",null,"Orgán"]
[null,null,"Funkce/pozice"]
[null,"Členství a vykonávané funkce v orgánech jiných právnických osob",null,"ne","Bod 1 písm. j) bod 3 písm. e)"]
["Označení právnické osoby, v níž  je člen výboru členem orgánu, označení tohoto orgánu a v něm vykonávané funkce",null,"Označení právnické osoby"]
[null,null,"Orgán"]
[null,null,"Funkce"]
[null,null,"Jméno a příjmení, včetně titulů","Mgr. Pavel Hruška","Bod 1 písm. j) bod 3 písm. a)"]
["Označení funkce vykonávané ve výboru, datum, od kdy osoba příslušnou funkci ve výboru vykonává",null,"Funkce/pozice","člen","Bod 1 písm. j) bod 3 písm. b)"]
[null,null,"Datum počátku výkonu funkce/pozice","2022-07-01"]
[null,"Dosavadní zkušenosti a kvalifikační předpoklady pro výkon funkce ve výboru",null,null,"Bod 1 písm. j) bod 3 písm. c)"]
["Matematicko-fyzikální fakulta UK Praha, 16 let praxe v bankovnictví, 13 let praxe v Risku"]
["                                 ","Skutečnost, zda povinná osoba považuje člena výboru za nezávislého"]
["ano"]
[null,"Členství a vykonávaná funkce v orgánech povinné osoby ",null,"ne"]
["Označení orgánu povinné osoby, jehož je člen výboru členem, a funkce v něm vykonávané  ",null,"Orgán",null,"Bod 1 písm. j) bod 3 písm. d)"]
[null,null,"Funkce/pozice"]
[null,"Členství a vykonávané funkce v orgánech jiných právnických osob",null,"ano","Bod 1 písm. j) bod 3 písm. e)"]
["Označení právnické osoby, v níž  je člen výboru členem orgánu, označení tohoto orgánu a v něm vykonávané funkce",null,"Označení právnické osoby","Společenství vlastníků jednotek Sadská 482, 483, 484, Praha 9 - Hloubětín"]
[null,null,"Orgán","statutární orgán"]
[null,null,"Funkce","předseda výboru"]
["Označení právnické osoby, v níž  je člen výboru členem orgánu, označení tohoto orgánu a v něm vykonávané funkce",null,"Označení právnické osoby","Společenství vlastníků Kardašovská 625,626,668,669"]
[null,null,"Orgán","statutární orgán"]
[null,null,"Funkce","místopředseda výboru"]
["Označení právnické osoby, v níž  je člen výboru členem orgánu, označení tohoto orgánu a v něm vykonávané funkce",null,"Označení právnické osoby","Společenství vlastníků Zelenečská 954, Praha 9"]
[null,null,"Orgán","statutární orgán"]
[null,null,"Funkce","místopředseda výboru"]
["Označení právnické osoby, v níž  je člen výboru členem orgánu, označení tohoto orgánu a v něm vykonávané funkce",null,"Označení právnické osoby","Bytové družstvo Sadská"]
[null,null,"Orgán","statutární orgán"]
[null,null,"Funkce","předseda představenstva"]
["Označení právnické osoby, v níž  je člen výboru členem orgánu, označení tohoto orgánu a v něm vykonávané funkce",null,"Označení právnické osoby","Bydlení Kbely s.r.o."]
[null,null,"Orgán","statutární orgán"]
[null,null,"Funkce","jednatel"]
["Označení právnické osoby, v níž  je člen výboru členem orgánu, označení tohoto orgánu a v něm vykonávané funkce",null,"Označení právnické osoby","Bydlení Kbely s.r.o."]
[null,null,"Orgán","statutární orgán"]
[null,null,"Funkce","jednatel"]
[null,null,"Jméno a příjmení, včetně titulů","Mgr. Lukáš Fremut","Bod 1 písm. j) bod 3 písm. a)"]
["Označení funkce vykonávané ve výboru, datum, od kdy osoba příslušnou funkci ve výboru vykonává",null,"Funkce/pozice","člen","Bod 1 písm. j) bod 3 písm. b)"]
[null,null,"Datum počátku výkonu funkce/pozice","2025-05-01"]
[null,"Dosavadní zkušenosti a kvalifikační předpoklady pro výkon funkce ve výboru",null,null,"Bod 1 písm. j) bod 3 písm. c)"]
["Policejní akademie ČR v Praze, fakulta Bezpečnostního managementu, více jak 5 let zkušeností v bance v oblasti vedení IT projektů \t\t\t"]
["                                 ","Skutečnost, zda povinná osoba považuje člena výboru za nezávislého"]
["ano"]
[null,"Členství a vykonávaná funkce v orgánech povinné osoby ",null,"ne","Bod 1 písm. j) bod 3 písm. d)"]
["Označení orgánu povinné osoby, jehož je člen výboru členem, a funkce v něm vykonávané  ",null,"Orgán"]
[null,null,"Funkce/pozice"]
[null,"Členství a vykonávané funkce v orgánech jiných právnických osob",null,"ne","Bod 1 písm. j) bod 3 písm. e)"]
["Označení právnické osoby, v níž  je člen výboru členem orgánu, označení tohoto orgánu a v něm vykonávané funkce",null,"Označení právnické osoby"]
[null,null,"Orgán"]
[null,null,"Funkce"]
[null,null,"Jméno a příjmení, včetně titulů","Ing. Stanislav Novotný","Bod 1 písm. j) bod 3 písm. a)"]
["Označení funkce vykonávané ve výboru, datum, od kdy osoba příslušnou funkci ve výboru vykonává",null,"Funkce/pozice","člen","Bod 1 písm. j) bod 3 písm. b)"]
[null,null,"Datum počátku výkonu funkce/pozice","2022-07-01"]
[null,"Dosavadní zkušenosti a kvalifikační předpoklady pro výkon funkce ve výboru",null,null,"Bod 1 písm. j) bod 3 písm. c)"]
["Bankovní institut vysoká škola Praha "]
["                                 ","Skutečnost, zda povinná osoba považuje člena výboru za nezávislého"]
["ano"]
[null,"Členství a vykonávaná funkce v orgánech povinné osoby ",null,"ne","Bod 1 písm. j) bod 3 písm. d)"]
["Označení orgánu povinné osoby, jehož je člen výboru členem, a funkce v něm vykonávané  ",null,"Orgán"]
[null,null,"Funkce/pozice"]
[null,"Členství a vykonávané funkce v orgánech jiných právnických osob",null,"ne","Bod 1 písm. j) bod 3 písm. e)"]
["Označení právnické osoby, v níž  je člen výboru členem orgánu, označení tohoto orgánu a v něm vykonávané funkce",null,"Označení právnické osoby"]
[null,null,"Orgán"]
[null,null,"Funkce"]
[null,null,"Jméno a příjmení, včetně titulů","Ing. Michal Noha","Bod 1 písm. j) bod 3 písm. a)"]
["Označení funkce vykonávané ve výboru, datum, od kdy osoba příslušnou funkci ve výboru vykonává",null,"Funkce/pozice","člen","Bod 1 písm. j) bod 3 písm. b)"]
[null,null,"Datum počátku výkonu funkce/pozice","2022-07-01"]
[null,"Dosavadní zkušenosti a kvalifikační předpoklady pro výkon funkce ve výboru",null,null,"Bod 1 písm. j) bod 3 písm. c)"]
["Vysoká škola báňská - Technická univerzita Ostrava, Ekonomická fakulta"]
["                                 ","Skutečnost, zda povinná osoba považuje člena výboru za nezávislého"]
["ano"]
[null,"Členství a vykonávaná funkce v orgánech povinné osoby ",null,"ne","Bod 1 písm. j) bod 3 písm. d)"]
["Označení orgánu povinné osoby, jehož je člen výboru členem, a funkce v něm vykonávané  ",null,"Orgán"]
[]
[null,"Členství a vykonávané funkce v orgánech jiných právnických osob",null,"ne","Bod 1 písm. j) bod 3 písm. e)"]
["Označení právnické osoby, v níž  je člen výboru členem orgánu, označení tohoto orgánu a v něm vykonávané funkce",null,"Označení právnické osoby"]
[null,null,"Orgán"]
[null,null,"Funkce"]
[null,null,"Jméno a příjmení, včetně titulů","Ing. Hana Klír","Bod 1 písm. j) bod 3 písm. a)"]
["Označení funkce vykonávané ve výboru, datum, od kdy osoba příslušnou funkci ve výboru vykonává",null,"Funkce/pozice","člen","Bod 1 písm. j) bod 3 písm. b)"]
[null,null,"Datum počátku výkonu funkce/pozice","2023-01-01"]
[null,"Dosavadní zkušenosti a kvalifikační předpoklady pro výkon funkce ve výboru",null,null,"Bod 1 písm. j) bod 3 písm. c)"]
["Bankovní institut vysoká škola Praha "]
["                                 ","Skutečnost, zda povinná osoba považuje člena výboru za nezávislého"]
["ano"]
[null,"Členství a vykonávaná funkce v orgánech povinné osoby ",null,"ne","Bod 1 písm. j) bod 3 písm. d)"]
["Označení orgánu povinné osoby, jehož je člen výboru členem, a funkce v něm vykonávané  ",null,"Orgán"]
[null,null,"Funkce/pozice"]
[null,"Členství a vykonávané funkce v orgánech jiných právnických osob",null,"ne","Bod 1 písm. j) bod 3 písm. e)"]
["Označení právnické osoby, v níž  je člen výboru členem orgánu, označení tohoto orgánu a v něm vykonávané funkce",null,"Označení právnické osoby"]
[null,null,"Orgán"]
[null,null,"Funkce"]

{"sheet":"Část 2","index":4,"n_rows":11,"n_cols":11,"rows_kept":11,"merged":[[0,0,0,1],[2,0,2,7],[3,0,4,9],[3,10,4,10],[5,0,5,2],[5,3,5,9],[6,0,6,9],[6,10,10,10],[7,0,7,7],[7,8,7,9]]}
["Část 2"]
["Údaje o složení společníků nebo členů povinné osoby"]
[]
["Údaje o složení společníků nebo členů povinné osoby",{"$nulls":9},"Vyhláška č. 163/2014 Sb.\n \nPříloha č. 10"]
[]
["Informace platné k datu:",null,null,{"$f":"Obsah!C4","v":"2025-06-30"}]
["Údaje o společnících nebo členech povinné osoby s kvalifikovanou účastí na povinné osobě ",{"$nulls":9},"Bod 2 \npísm. a), b)\n"]
["Společníci nebo členové, kteří jsou právnickými osobami",{"$nulls":7},"Společníci nebo členové, kteří jsou fyzickými osobami"]
["Pořadové číslo\n","Obchodní firma","Právní forma","Adresa sídla","Adresa sídla (země)","Identifikační číslo, je-li přiděleno","Odvětvová klasifikace ekonomických činností","Výše podílu na hlas. právech (v %)","Jméno a příjmení ","Výše podílu na hlas. právech (v %)"]
[null,"Bod 2 písm. a)","Bod 2 písm. a)","Bod 2 písm. a)","Bod 2 písm. a)","Bod 2 písm. a)","Bod 2 písm. a)","Bod 2 písm. a)","Bod 2 písm. b)","Bod 2 písm. b)"]
[1,"Raiffeisenbank a.s.","akciová společnost","Hvězdova 1716/2b, 140 78 Praha 4","CZ","49240901","64","100%"]

{"sheet":"Část 3","index":5,"n_rows":51,"n_cols":22,"rows_kept":51,"merged":[[0,0,0,20],[1,0,1,20],[2,0,2,21],[3,0,4,20],[3,21,4,21],[5,0,5,2],[5,3,5,20],[6,0,7,0],[6,1,7,1],[6,2,7,2],[6,3,7,3],[6,4,7,4],[6,5,7,5],[6,6,7,6],[6,7,7,7],[6,8,7,8],[6,9,7,9],[6,10,7,10],[6,11,7,11],[6,12,7,12],[6,13,6,14],[6,15,6,16],[6,17,7,17],[6,18,7,18],[6,19,7,19],[6,20,7,20],[6,21,9,21],[10,0,11,20],[10,21,11,21],[12,0,13,0],[12,1,13,1],[12,2,13,2],[12,3,13,3],[12,4,13,4],[12,5,13,5],[12,6,13,6],[12,7,13,7],[12,8,13,8],[12,9,13,9],[12,10,13,10],[12,11,13,11],[12,12,13,12],[12,13,12,14],[12,15,12,16],[12,17,13,17],[12,18,13,18],[12,19,13,19],[12,20,13,20],[12,21,15,21],[16,21,44,21]]}
["Část 3"]
["Údaje o struktuře skupiny, jíž je povinná osoba součástí"]
[]
["Informace o osobách, které jsou ve vztahu k povinné osobě ovládajícími osobami, popřípadě většinovým společníkem ",{"$nulls":20},"Vyhláška č. 163/2014 Sb.\n\nPříloha č. 10"]
[]
["Informace platné k datu:",null,null,{"$f":"Obsah!C4","v":"2025-06-30"}]
["Pořadové číslo","Obchodní firma","Právní forma","Adresa sídla","Adresa sídla (země)","Identifikační číslo, je-li přiděleno","Odvětvová klasifikace ekonomických činností ","Jméno a příjmení (v případě fyzické osoby)","Přímý podíl na základním kapitálu povinné osoby (v %)","Nepřímý podíl na základním kapitálu povinné osoby (v %)","Přímý podíl na hlasovacích právech povinné osoby (v %)","Nepřímý podíl na hlasovacích právech povinné osoby (v %)","Jiný způsob ovládání","Souhrnná výše dluhových nástrojů, které má povinná osoba v aktivech a které jsou závazkem těchto osob, \nv členění podle osob  (v tis. Kč)",null,"Souhrnná výše závazků povinné osoby vůči těmto osobám, \nv členění podle osob (v tis. Kč)",null,"Souhrnná výše kapitálových nástrojů, které má povinná osoba v aktivech a které jsou vlastním kapitálem těchto osob, v členění podle osob (v tis. Kč)","Souhrnná výše závazků povinné osoby z těchto kapitálových nástrojů, v členění podle osob (v tis. Kč)e","Souhrnná výše povinnou osobou vydaných záruk za těmito osobami, v členění podle osob (v tis. Kč)","Souhrnná výše povinnou osobou přijatých záruk od takových osob, v členění podle osob (v tis. Kč)","Bod 3 písm. a)"]
[{"$nulls":13},"Dluhové cenné papírya","Ostatní dluhové nástrojeb","Dluhové cenné papíryc","Ostatní dluhové nástrojed"]
[null,"Bod 3 písm. a) bod 1","Bod 3 písm. a) bod 1","Bod 3 písm. a) bod 1","Bod 3 písm. a) bod 1","Bod 3 písm. a) bod 1","Bod 3 písm. a) bod 1","Bod 3 písm. a) bod 1","Bod 3 písm. a) bod 2","Bod 3 písm. a) bod 2","Bod 3 písm. a) bod 3","Bod 3 písm. a) bod 3","Bod 3 písm. a) bod 4","Bod 3 písm. a) bod 5","Bod 3 písm. a) bod 5","Bod 3 písm. a) bod 5","Bod 3 písm. a) bod 5","Bod 3 písm. a) bod 6","Bod 3 písm. a) bod 6","Bod 3 písm. a) bod 7","Bod 3 písm. a) bod 7"]
[1,"Raiffeisenbank a.s.","akciová společnost","Hvězdova 1716/2b, 140 78 Praha 4","CZ","49240901","64",null,{"v":1,"d":"100%"},null,{"v":1,"d":"100%"},null,null,0,0,0,{"v":13746873.31868,"d":"13,746,873"},0,0,0,{"v":700000,"d":"700,000"}]
[" Informace o osobách, které jsou ve vztahu k povinné osobě ovládanými osobami, popřípadě v nichž je povinná osoba většinovým společníkem",{"$nulls":20},"Vyhláška č. 163/2014 Sb., \n\nPříloha č. 10"]
[]
["Číslo řádku","Obchodní firma","Právní forma","Adresa sídla","Adresa sídla (země)","Identifikační číslo, je-li přiděleno","Odvětvová klasifikace ekonomických činností","Zahrnutí do obezřetnostní konsolidace (ano/ne)f","Přímý podíl povinné osoby na základním kapitálu (v %)","Nepřímý podíl povinné osoby na základním kapitálu (v %)","Přímý podíl povinné osoby na hlasovacích právech (v %)","Nepřímý podíl povinné osoby na hlasovacích právech (v %)","Jiný způsob ovládání","Souhrnná výše dluhových nástrojů, které má povinná osoba v aktivech a které jsou závazkem těchto osob, \nv členění podle osob  (v tis. Kč)",null,"Souhrnná výše závazků povinné osoby vůči těmto osobám, \nv členění podle osob (v tis. Kč)",null,"Souhrnná výše kapitálových nástrojů, které má povinná osoba v aktivech a které jsou vlastním kapitálem těchto osob, v členění podle osob v tis. Kč)","Souhrnná výše závazků povinné osoby z těchto kapitálových nástrojů, v členění podle osob (v tis. Kč)e","Souhrnná výše povinnou osobou vydaných záruk za takové osoby, v členění podle osob (v tis. Kč)","Souhrnná výše povinnou osobou přijatých záruk od takových osob, v členění podle osob (v tis. Kč)","Bod 3 písm. b)\n(bližší specifikace pod názvy jednotlivých sloupců)"]
[{"$nulls":13},"Dluhové cenné papírya","Ostatní dluhové nástrojeb","Dluhové cenné papíryc","Ostatní dluhové nástrojed"]
[null,"Bod 3 písm. b) bod 1","Bod 3 písm. b) bod 1","Bod 3 písm. b) bod 1","Bod 3 písm. b) bod 1","Bod 3 písm. b) bod 1","Bod 3 písm. b) bod 1","Bod 3 písm. b) bod 1","Bod 3 písm. b) bod 2","Bod 3 písm. b) bod 2","Bod 3 písm. b) bod 3","Bod 3 písm. b) bod 3","Bod 3 písm. b) bod 4","Bod 3 písm. b) bod 5","Bod 3 písm. b) bod 5","Bod 3 písm. b) bod 5","Bod 3 písm. b) bod 5","Bod 3 písm. b) bod 6","Bod 3 písm. b) bod 6","Bod 3 písm. b) bod 7","Bod 3 písm. b) bod 7"]
[1]
["…",{"$nulls":20},"Bod 3 písm. b)"]
["…"]
["…"]
["…"]
["…"]
["…"]
["…"]
["…"]
["…"]
["…"]
["…"]
["…"]
["…"]
["…"]
["…"]
["…"]
["…"]
["…"]
["…"]
["…"]
["…"]
["…"]
["…"]
["…"]
["…"]
["…"]
["…"]
["…"]
["…"]
["Pozn. (viz sloupec N šablony):",{"$nulls":12}," a tj. dluhové cenné papíry držené povinnou osobou v aktivech a vydané ovládajícími nebo ovládanými osobami, popřípadě osobami, v nichž je povinná osoba většinovým společníkem"]
[{"$nulls":13}," b tj. ostatní pohledávky povinné osoby vůči ovládajícím nebo ovládaným osobám, popřípadě osobám, v nichž je povinná osoba většinovým společníkem"]
[{"$nulls":13}," c tj. dluhové cenné papíry vydané povinnou osobou a držené ovládajícími nebo ovládanými osobami v aktivech, popřípadě osobami, v nichž je povinná osoba většinovým společníkem"]
[{"$nulls":13}," d tj. ostatní závazky povinné osoby vůči ovládajícím nebo ovládaným osobám, popřípadě osobám, v nichž je povinná osoba většinovým společníkem"]
[{"$nulls":13}," e tj. závazky z krátkých prodejů"]
[{"$nulls":13}," f Grafické znázornění skupiny, jejíž součástí je povinná osoba, je z hlediska vlastnického uspořádání  znázorněno na listu Část 3a"]

{"sheet":"Část 3a","index":6,"n_rows":50,"n_cols":4,"rows_kept":50,"merged":[[0,0,0,2],[1,0,1,3],[2,0,2,3],[3,0,4,2],[3,3,4,3],[6,0,6,2],[7,0,7,3],[8,0,8,3],[9,0,9,3],[10,0,10,3],[11,0,11,3],[12,0,12,3]]}
["Část 3a"]
["Grafické znázornění skupiny, jejíž členem je povinná osoba, z hlediska vlastnického uspořádání "]
[]
["Grafické údaje o struktuře skupiny, jejíž je povinná osoba součástí",null,null,"Vyhláška \nč. 163/2014 Sb.\n\nPříloha č. 10"]
[]
["Informace platné k datu:",null,{"$f":"Obsah!C4","v":"2025-06-30"}]
["Grafické znázornění skupiny, jejíž součástí  je povinná osoba, z hlediska vlastnického uspořádání s vyznačením osob, které jsou zahrnuty do obezřetnostní konsolidace, a uvedením důvodu pro nezahrnutí do obezřetnostní konsolidace u ostatních osob",null,null,"Bod 3 písm. c)"]
["U daného subjektu stačí uvést příslušné číslo odůvodnění:"]
["1 - není institucí, finanční institucí, podnikem pomocných služeb nebo společností spravující aktiva podle článku 18 odst. 8 nařízení (EU) č. 575/2013"]
["2 - nezahrnutí subjektu z důvodu jeho velikosti, tj. subjekt splňuje podmínky podle článku 19 odst. 1 nařízení (EU) č. 575/2013"]
["3 - subjekt není zahrnut z důvodů uvedených v článku 19 odst. 2 písm. a) nařízení (EU) č. 575/2013"]
["4 - subjekt není zahrnut z důvodů uvedených v článku 19 odst. 2 písm. b) nařízení (EU) č. 575/2013"]
["5 - subjekt není zahrnut z důvodů uvedených v článku 19 odst. 2 písm. c) nařízení (EU) č. 575/2013"]
{"$rows_empty":35}
["Všechny uvedené společnosti jsou zahrnuty do obezřetnostní konsolidace Raiffeisen Bank International AG."]
["Raiffeisen stavební spořitelna a.s. spadá do obezřetností konsolidace Raiffeisenbank a.s. na úrovni České republiky."]

{"sheet":"Část 3b","index":7,"n_rows":50,"n_cols":4,"rows_kept":50,"merged":[[0,0,0,2],[1,0,1,2],[2,0,2,3],[3,0,4,2],[3,3,4,3],[6,0,6,2],[7,0,7,3],[8,0,8,3],[9,0,9,3],[10,0,10,3],[11,0,11,3],[12,0,12,3]]}
["Část 3b"]
["Grafické znázornění skupiny, jejímž členem je povinná osoba, z hlediska řízení"]
[]
["Grafické údaje o struktuře skupiny, jejíž je povinná osoba součástí",null,null,"Vyhláška č. 163/2014 Sb.\n\nPříloha č. 10"]
[]
["Informace platné k datu:",null,{"$f":"Obsah!C4","v":"2025-06-30"}]
["Grafické znázornění skupiny, jejímž členem je povinná osoba, z hlediska řízení s vyznačením osob, které jsou zahrnuty do obezřetnostní konsolidace, a uvedením důvodu pro nezahrnutí do obezřetnostní konsolidace u ostatních osob",null,null,"Bod 3 písm. d)"]
["U daného subjektu stačí uvést příslušné číslo odůvodnění:"]
["1 - není institucí, finanční institucí, podnikem pomocných služeb nebo společností spravující aktiva podle článku 18 odst. 8 nařízení (EU) č. 575/2013"]
["2 - nezahrnutí subjektu z důvodu jeho velikosti, tj. subjekt splňuje podmínky podle článku 19 odst. 1 nařízení (EU) č. 575/2013"]
["3 - subjekt není zahrnut z důvodů uvedených v článku 19 odst. 2 písm. a) nařízení (EU) č. 575/2013"]
["4 - subjekt není zahrnut z důvodů uvedených v článku 19 odst. 2 písm. b) nařízení (EU) č. 575/2013"]
["5 - subjekt není zahrnut z důvodů uvedených v článku 19 odst. 2 písm. c) nařízení (EU) č. 575/2013"]
{"$rows_empty":35}
["Všechny uvedené společnosti jsou zahrnuty do obezřetnostní konsolidace Raiffeisen Bank International AG."]
["Raiffeisen stavební spořitelna a.s. spadá do obezřetností konsolidace Raiffeisenbank a.s. na úrovni České republiky."]

{"sheet":"Část 4","index":8,"n_rows":21,"n_cols":4,"rows_kept":21,"merged":[[2,0,2,3],[3,0,3,3],[4,0,4,3],[5,0,5,1],[5,2,5,3],[6,0,7,0]]}
["Část 4"]
["Údaje o činnosti povinné osoby"]
[]
["Údaje o činnosti povinné osoby"]
["Vyhláška č. 163/2014 Sb.\nPříloha č. 10"]
["Informace platné k datu:",null,{"$f":"Obsah!C4","v":"2025-06-30"}]
["číslo řádku","Bod 4 písm. a)","Bod 4 písm. b)","Bod 4 písm. c)"]
[null,"Předmět podnikání (činnosti) zapsaný v obchodním rejstříku","Přehled činností skutečně vykonávaných","Přehled činností, jejichž vykonávání nebo poskytování bylo Českou národní bankou omezeno nebo vyloučeno"]
[1,"přijímání vkladů od účastníků stavebního spoření","přijímání vkladů od účastníků stavebního spoření"]
[2,"poskytování úvěrů účastníkům stavebního spoření","poskytování úvěrů účastníkům stavebního spoření"]
[3,"poskytování příspěvku fyzickým osobám účastníkům stavebního spoření","poskytování příspěvku fyzickým osobám účastníkům stavebního spoření"]
[4,"poskytování úvěrů osobám, jejichž výrobky a poskytované služby jsou určeny pro uspokojování bytových potřeb","poskytování úvěrů osobám, jejichž výrobky a poskytované služby jsou určeny pro uspokojování bytových potřeb"]
[5,"přijímání vkladů od bank, zahraničních bank, poboček zahraničních bank, finančních institucí, zahraničních finančních institucí a poboček zahraničních finančních institucí","přijímání vkladů od bank, zahraničních bank, poboček zahraničních bank, finančních institucí, zahraničních finančních institucí a poboček zahraničních finančních institucí"]
[6,"poskytování záruk za úvěry ze stavebního spoření, za úvěry poskytnuté podle § 5 odst. 5 zákona o stavebním spoření a za úvěry uvedené v § 9 odst. 1 písm. a) zákona o stavebním spoření","poskytování záruk za úvěry ze stavebního spoření, za úvěry poskytnuté podle § 5 odst. 5 zákona o stavebním spoření a za úvěry uvedené v § 9 odst. 1 písm. a) zákona o stavebním spoření"]
[7,"obchodování na vlastní účet s hypotečními zástavními listy a s obdobnými produkty vydávanými členskými státy Organizace pro hospodářskou spolupráci a rozvoj","obchodování na vlastní účet s hypotečními zástavními listy a s obdobnými produkty vydávanými členskými státy Organizace pro hospodářskou spolupráci a rozvoj"]
[8,"obchodování na vlastní účet s dluhopisy vydávanými Českou republikou, s dluhopisy, za které převzala Česká republika záruku, a s dluhopisy vydávanými Českou národní bankou","obchodování na vlastní účet s dluhopisy vydávanými Českou republikou, s dluhopisy, za které převzala Česká republika záruku, a s dluhopisy vydávanými Českou národní bankou"]
[9,"obchodování na vlastní účet s dluhopisy vydávanými členskými státy Organizace pro hospodářskou spolupráci a rozvoj, centrálními bankami, finančními institucemi těchto států a bankami se sídlem v těchto státech, jakož i s dluhopisy, za které tyto státy převzaly záruku, a s dluhopisy vydávanými Evropskou investiční bankou, Nordic Investment Bank a Evropskou centrální bankou","obchodování na vlastní účet s dluhopisy vydávanými členskými státy Organizace pro hospodářskou spolupráci a rozvoj, centrálními bankami, finančními institucemi těchto států a bankami se sídlem v těchto státech, jakož i s dluhopisy, za které tyto státy převzaly záruku, a s dluhopisy vydávanými Evropskou investiční bankou, Nordic Investment Bank a Evropskou centrální bankou"]
[10,"provádění platebního styku a jeho zúčtování v souvislosti s činností stavební spořitelny","provádění platebního styku a jeho zúčtování v souvislosti s činností stavební spořitelny"]
[11,"poskytování bankovních informací","poskytování bankovních informací"]
[12,"výkon finančního makléřství","výkon finančního makléřství"]
[13,"uzavírání obchodů sloužících k zajištění proti měnovému a úrokovému riziku","uzavírání obchodů sloužících k zajištění proti měnovému a úrokovému riziku"]

{"sheet":"Část 5","index":9,"n_rows":13,"n_cols":5,"rows_kept":13,"merged":[[0,0,0,1],[1,0,1,1],[2,0,2,4],[3,0,4,3],[3,4,4,4],[5,0,5,2],[6,0,7,2],[6,4,7,4],[8,0,12,0],[8,4,12,4]]}
["Část 5"]
["Údaje o finanční situaci povinné osoby - poměrové ukazatele"]
[]
["Údaje o finanční situaci povinné osoby - poměrové ukazatele",{"$nulls":3},"Vyhláška č. 163/2014 Sb.\n\nPříloha č. 10"]
[]
["Informace platné k datu:",null,null,{"$f":"Obsah!C4","v":"2025-06-30"}]
["(v tis. Kč / v  %)",null,null,"K ultimu vykazovaného období"]
[{"$nulls":3},{"$f":"D6","v":"2025-06-30"}]
["Poměrové ukazatele povinné osoby, která je bankou nebo spořitelním a úvěrním družstvem","Rentabilita průměrných aktiv (ROAA)",null,{"v":0.009326343246928548,"d":"0.93%"},"Bod 5 písm.  d)"]
[null,"Rentabilita průměrného kapitálu tier 1 (ROAE)",null,{"v":0.0851,"d":"8.51%"}]
[null,"Aktiva na jednoho pracovníka ",null,{"v":1322755,"d":"1,322,755"}]
[null,"Správní náklady na jednoho pracovníka ",null,{"v":10044,"d":"10,044"}]
[null,"Zisk nebo ztráta po zdanění na jednoho pracovníka ",null,{"v":12154,"d":"12,154"}]

{"sheet":"Část 5a","index":10,"n_rows":24,"n_cols":4,"rows_kept":24,"merged":[[2,0,2,2],[3,0,4,2],[3,3,4,3],[5,1,5,2],[6,0,8,0],[6,1,6,2],[6,3,14,3],[7,1,7,2],[15,0,17,0],[15,1,15,2],[15,3,23,3],[16,1,16,2]]}
["Část 5a"]
["Údaje o finanční situaci povinné osoby - deriváty "]
[]
["Údaje o finanční situaci povinné osoby - deriváty ",null,null,"Vyhláška č. 163/2014 Sb.\n\nPříloha č. 10"]
[]
["Informace platné k datu:",{"$f":"Obsah!C4","v":"2025-06-30"}]
["Reálné a jmenovité hodnoty derivátů (v tis. Kč) - aktiva","K ultimu vykazovaného období",null,"Bod 5 písm. c)"]
[null,{"$f":"B6","v":"2025-06-30"}]
[null,"Jmenovitá hodnota","Reálná hodnota"]
["Dělení derivátů dle účelu"]
["Souhrnně za deriváty sjednané za účelem zajišťování",{"v":2600000,"d":"2,600,000"},{"v":30536.48033000005,"d":"30,536"}]
["Souhrnně za deriváty sjednané za účelem obchodování nebo spekulace "]
["Dělení derivátů dle účetního hlediska"]
["Souhrnně za deriváty, u nichž povinná osoba uplatňuje zajišťovací účetnictví",{"v":2600000,"d":"2,600,000"},{"v":30536.48033000005,"d":"30,536"}]
["Souhrnně za deriváty ostatní"]
["Reálné a jmenovité hodnoty derivátů (v tis. Kč) - pasiva","K ultimu vykazovaného období",null,"Bod 5 písm. c)"]
[null,{"$f":"B8","v":"2025-06-30"}]
[null,"Jmenovitá hodnota","Reálná hodnota"]
["Dělení derivátů dle účelu"]
["Souhrnně za deriváty sjednané za účelem zajišťování",{"v":1410000,"d":"1,410,000"},{"v":3959.062109999952,"d":"3,959"}]
["Souhrnně za deriváty sjednané za účelem obchodování nebo spekulace "]
["Dělení derivátů dle účetního hlediska"]
["Souhrnně za deriváty, u nichž povinná osoba uplatňuje zajišťovací účetnictví",{"v":1410000,"d":"1,410,000"},{"v":3959.062109999952,"d":"3,959"}]
["Souhrnně za deriváty ostatní"]

{"sheet":"Část 6","index":11,"n_rows":120,"n_cols":5,"rows_kept":120,"merged":[[0,1,0,4],[2,0,2,4],[3,0,4,3],[3,4,4,4],[5,0,5,2],[6,0,7,2],[6,4,119,4],[8,0,8,3],[9,0,9,2],[10,0,10,2],[11,0,11,2],[12,0,12,2],[13,0,13,2],[14,0,14,2],[15,0,15,2],[16,0,16,2],[17,0,17,2],[18,0,18,2],[19,0,19,2],[20,0,20,2],[21,0,21,2],[22,0,22,2],[23,0,23,2],[24,0,24,2],[25,0,25,2],[26,0,26,2],[27,0,27,2],[28,0,28,2],[29,0,29,2],[30,0,30,2],[31,0,31,2],[32,0,32,2],[33,0,33,2],[34,0,34,2],[35,0,35,2],[36,0,36,2],[37,0,37,2],[38,0,38,2],[39,0,39,2],[40,0,40,2],[41,0,41,2],[42,0,42,2],[43,0,43,2],[44,0,44,2],[45,0,45,2],[46,0,46,2],[47,0,47,3],[48,0,48,2],[49,0,49,2],[50,0,50,2],[51,0,51,2],[52,0,52,2],[53,0,53,2],[54,0,54,2],[55,0,55,2],[56,0,56,2],[57,0,57,2],[58,0,58,2],[59,0,59,2],[60,0,60,2],[61,0,61,2],[62,0,62,2],[63,0,63,2],[64,0,64,2],[65,0,65,2],[66,0,66,2],[67,0,67,2],[68,0,68,2],[69,0,69,2],[70,0,70,2],[71,0,71,2],[72,0,72,2],[73,0,73,2],[74,0,74,2],[75,0,75,2],[76,0,76,2],[77,0,77,2],[78,0,78,2],[79,0,79,3],[80,0,80,2],[81,0,81,2],[82,0,82,2],[83,0,83,2],[84,0,84,2],[85,0,85,2],[86,0,86,2],[87,0,87,2],[88,0,88,2],[89,0,89,2],[90,0,90,2],[91,0,91,2],[92,0,92,2],[93,0,93,2],[94,0,94,2],[95,0,95,2],[96,0,96,2],[97,0,97,2],[98,0,98,2],[99,0,99,2],[100,0,100,2],[101,0,101,2],[102,0,102,2],[103,0,103,2],[104,0,104,2],[105,0,105,2],[106,0,106,2],[107,0,107,2],[108,0,108,2],[109,0,109,2],[110,0,110,2],[111,0,111,2],[112,0,112,2],[113,0,113,2],[114,0,114,2],[115,0,115,2],[116,0,116,2],[117,0,117,2],[118,0,118,2],[119,0,119,2]]}
["Část 6"]
["Rozvaha povinné osoby podle výkazů předkládaných České národní bance"]
[]
["Údaje o finanční situaci povinné osoby",{"$nulls":3},"Vyhláška č. 163/2014 Sb.\n\nPříloha č. 10"]
[]
["Informace platné k datu:",null,null,{"$f":"Obsah!C4","v":"2025-06-30"}]
["Čtvrtletní rozvaha povinné osoby (v tis. Kč)",null,null,"K ultimu vykazovaného období","Bod 5 \npísm. a)"]
[{"$nulls":3},{"$f":"D6","v":"2025-06-30"}]
["Aktiva "]
["   Pokladní hotovost, hotovost u centrálních bank a ostatní vklady splatné na požádání",null,null,{"v":1340852.1469,"d":"1,340,852.15"}]
["      Pokladní hotovost",null,null,{"v":0,"d":"0.00"}]
["      Hotovost u centrálních bank",null,null,{"v":1327483.18839,"d":"1,327,483.19"}]
["      Ostatní vklady na požádání ",null,null,{"v":13368.95851,"d":"13,368.96"}]
["   Finanční aktiva k obchodování ",null,null,{"v":0,"d":"0.00"}]
["      Deriváty ",null,null,{"v":0,"d":"0.00"}]
["      Kapitálové nástroje ",null,null,{"v":0,"d":"0.00"}]
["      Dluhové cenné papíry ",null,null,{"v":0,"d":"0.00"}]
["      Úvěry a pohledávky ",null,null,{"v":0,"d":"0.00"}]
["   Finanční aktiva jiná než k obchodování povinně v reálné hodnotě vykázané do zisku nebo ztráty",null,null,{"v":0,"d":"0.00"}]
["      Kapitálové nástroje ",null,null,{"v":0,"d":"0.00"}]
["      Dluhové cenné papíry ",null,null,{"v":0,"d":"0.00"}]
["      Úvěry a pohledávky ",null,null,{"v":0,"d":"0.00"}]
["   Finanční aktiva v reálné hodnotě vykázané do zisku nebo ztráty",null,null,{"v":0,"d":"0.00"}]
["      Dluhové cenné papíry ",null,null,{"v":0,"d":"0.00"}]
["      Úvěry a pohledávky ",null,null,{"v":0,"d":"0.00"}]
["   Finanční aktiva v reálné hodnotě vykázané do úplného výsledku hospodaření ",null,null,{"v":0,"d":"0.00"}]
["      Kapitálové nástroje ",null,null,{"v":0,"d":"0.00"}]
["      Dluhové cenné papíry ",null,null,{"v":0,"d":"0.00"}]
["      Úvěry a pohledávky ",null,null,{"v":0,"d":"0.00"}]
["   Finanční aktiva v naběhlé hodnotě",null,null,{"v":78994287.36131999,"d":"78,994,287.36"}]
["      Dluhové cenné papíry ",null,null,{"v":5625376.077029999,"d":"5,625,376.08"}]
["      Úvěry a pohledávky ",null,null,{"v":73368911.28428999,"d":"73,368,911.28"}]
["   Zajišťovací deriváty",null,null,{"v":30536.48033,"d":"30,536.48"}]
["   Změny reálné hodnoty zajišťovaných položek v portfoliu zajišťovacích nástrojů proti úrokovému riziku",null,null,{"v":69.363,"d":"69.36"}]
["   Investice do dceřiných podniků, společných podniků a přidružených podniků",null,null,{"v":0,"d":"0.00"}]
["   Hmotná aktiva ",null,null,{"v":20619.68703,"d":"20,619.69"}]
["      Pozemky, budovy a zařízení",null,null,{"v":20619.68703,"d":"20,619.69"}]
["      Investiční nemovitý majetek",null,null,{"v":0,"d":"0.00"}]
["  Nehmotná aktiva",null,null,{"v":281985.16743000003,"d":"281,985.17"}]
["      Goodwill",null,null,{"v":0,"d":"0.00"}]
["      Ostatní nehmotná aktiva",null,null,{"v":281985.16743000003,"d":"281,985.17"}]
["   Daňové pohledávky",null,null,{"v":9165.56,"d":"9,165.56"}]
["      Krátkodobé daňové pohledávky",null,null,{"v":9165.56,"d":"9,165.56"}]
["      Odložené daňové pohledávky",null,null,{"v":0,"d":"0.00"}]
["   Ostatní aktiva",null,null,{"v":10568.558130000001,"d":"10,568.56"}]
["   Neoběžná aktiva a vyřazované skupiny určené k prodeji",null,null,{"v":0,"d":"0.00"}]
["AKTIVA CELKEM",null,null,{"v":80688084.32413998,"d":"80,688,084.32"}]
["Závazky "]
[{"$nulls":3},"K ultimu vykazovaného období"]
["      Finanční závazky k obchodování",null,null,{"v":0,"d":"0.00"}]
["         Deriváty ",null,null,{"v":0,"d":"0.00"}]
["         Krátké pozice",null,null,{"v":0,"d":"0.00"}]
["         Vklady ",null,null,{"v":0,"d":"0.00"}]
["         Vydané dluhové cenné papíry",null,null,{"v":0,"d":"0.00"}]
["         Ostatní finanční závazky ",null,null,{"v":0,"d":"0.00"}]
["      Finanční závazky v reálné hodnotě vykázané do zisku nebo ztráty",null,null,{"v":0,"d":"0.00"}]
["         Vklady v reálné hodnotě vykázané do zisku nebo ztráty",null,null,{"v":0,"d":"0.00"}]
["         Vydané dluhové cenné papíry",null,null,{"v":0,"d":"0.00"}]
["         Ostatní finanční závazky ",null,null,{"v":0,"d":"0.00"}]
["      Finanční závazky v naběhlé hodnotě",null,null,{"v":71842141.77258,"d":"71,842,141.77"}]
["         Vklady ",null,null,{"v":70884383.18717,"d":"70,884,383.19"}]
["         Vydané dluhové cenné papíry",null,null,{"v":0,"d":"0.00"}]
["         Ostatní finanční závazky ",null,null,{"v":957758.5854099999,"d":"957,758.59"}]
["      Deriváty - zajišťovací účetnictví",null,null,{"v":3959.06211,"d":"3,959.06"}]
["      Změny reálné hodnoty zajišťovaných položek v portfoliu zajišťovacích nástrojů proti úrokovému riziku",null,null,{"v":-3754.212,"d":"-3,754.21"}]
["      Rezervy",null,null,{"v":45743.29242,"d":"45,743.29"}]
["         Závazky z penzijních a jiných definovaných požitků po skončení pracovního poměru",null,null,{"v":0,"d":"0.00"}]
["         Jiné dlouhodobé zaměstnanecké požitky",null,null,{"v":0,"d":"0.00"}]
["         Restrukturalizace",null,null,{"v":0,"d":"0.00"}]
["         Neuzavřené právní problémy a daňové spory",null,null,{"v":8614.12711,"d":"8,614.13"}]
["         Poskytnuté přísliby a záruky",null,null,{"v":5418.45931,"d":"5,418.46"}]
["         Další",null,null,{"v":31710.706,"d":"31,710.71"}]
["      Daňové závazky",null,null,{"v":18042.78,"d":"18,042.78"}]
["         Krátkodobé daňové závazky",null,null,{"v":0,"d":"0.00"}]
["         Odložené daňové závazky",null,null,{"v":18042.78,"d":"18,042.78"}]
["      Základní kapitál splatný na požádání",null,null,{"v":0,"d":"0.00"}]
["      Ostatní závazky",null,null,{"v":101333.77962999999,"d":"101,333.78"}]
["      Závazky zahrnuté ve vyřazovaných skupinách k prodeji",null,null,{"v":0,"d":"0.00"}]
["ZÁVAZKY CELKEM",null,null,{"v":72007466.47474,"d":"72,007,466.47"}]
["Vlastní kapitál"]
["      Kapitál",null,null,{"v":650000,"d":"650,000.00"}]
["         Splacený  kapitál",null,null,{"v":650000,"d":"650,000.00"}]
["         Nesplacený kapitál, který byl vyžádán",null,null,{"v":0,"d":"0.00"}]
["      Emisní ážio",null,null,{"v":0,"d":"0.00"}]
["      Vydané kapitálové nástroje jiné než kapitál",null,null,{"v":0,"d":"0.00"}]
["         Kapitálová složka složených finančních nástrojů",null,null,{"v":0,"d":"0.00"}]
["         Jiné vydané kapitálové nástroje",null,null,{"v":0,"d":"0.00"}]
["      Jiný kapitál",null,null,{"v":1600000,"d":"1,600,000.00"}]
["      Kumulovaný ostatní úplný výsledek",null,null,{"v":0,"d":"0.00"}]
["         Položky, které nebudou přeřazeny do zisku nebo ztráty",null,null,{"v":0,"d":"0.00"}]
["            Hmotná aktiva",null,null,{"v":0,"d":"0.00"}]
["            Nehmotná aktiva",null,null,{"v":0,"d":"0.00"}]
["           Aktuární zisky nebo (–) ztráty z penzijních plánů definovaných požitků",null,null,{"v":0,"d":"0.00"}]
["            Neoběžná aktiva a vyřazované skupiny určené k prodeji",null,null,{"v":0,"d":"0.00"}]
["            Podíl ostatních uznaných výnosů a nákladů investic do dceřiných, společných a přidružených podniků",null,null,{"v":0,"d":"0.00"}]
["           Změny reálné hodnoty kapitálových nástrojů oceněných reálnou hodnotou do ostatního úplného výsledku",null,null,{"v":0,"d":"0.00"}]
["           Neefektivnost zajištění při zajištění reálné hodnoty u kapitálových nástrojů oceněných reálnou hodnotou\n           do ostatního úplného výsledku",null,null,{"v":0,"d":"0.00"}]
["              Změny reálné hodnoty kapitálových nástrojů oceněných reálnou hodnotou do ostatního úplného \n              výsledku   [zajištěná položka]",null,null,{"v":0,"d":"0.00"}]
["              Změny reálné hodnoty kapitálových nástrojů oceněných reálnou hodnotou do ostatního úplného \n               výsledku  [zajišťovací nástroj]",null,null,{"v":0,"d":"0.00"}]
["            Změny reálné hodnoty finančních závazků v reálné hodnotě vykazované do zisku nebo ztráty \n            započitatelné do změn v jejich úvěrovém riziku",null,null,{"v":0,"d":"0.00"}]
["        Položky, které mohou být přeřazeny do zisku nebo ztráty",null,null,{"v":0,"d":"0.00"}]
["            Zajištění čistých investic do zahraničních jednotek [účinný podíl]",null,null,{"v":0,"d":"0.00"}]
["            Přepočet cizích měn",null,null,{"v":0,"d":"0.00"}]
["            Zajišťovací deriváty. Rezerva k zajištění peněžních toků (účinný podíl)",null,null,{"v":0,"d":"0.00"}]
["            Změny reálné hodnoty dluhových nástrojů oceněných reálnou hodnotou do ostatního úplného výsledku",null,null,{"v":0,"d":"0.00"}]
["            Zajišťovací nástroje [nejsou určeny prvky]",null,null,{"v":0,"d":"0.00"}]
["            Neoběžná aktiva a vyřazované skupiny určené k prodeji",null,null,{"v":0,"d":"0.00"}]
["            Podíl ostatních uznaných výnosů a nákladů investic do dceřiných, společných a přidružených podniků",null,null,{"v":0,"d":"0.00"}]
["      Nerozdělený zisk ",null,null,{"v":5929927.03531,"d":"5,929,927.04"}]
["      Rezervní fondy z přecenění",null,null,{"v":0,"d":"0.00"}]
["      Ostatní rezervní fondy",null,null,{"v":130000,"d":"130,000.00"}]
["         Rezervní fondy nebo kumulované ztráty z investic do dceřiných, společných a přidružených podniků účtované  pomocí ekvivalenční metody",null,null,{"v":0,"d":"0.00"}]
["         Ostatní ",null,null,{"v":130000,"d":"130,000.00"}]
["    (-) Vlastní akcie",null,null,{"v":0,"d":"0.00"}]
["     Zisk nebo ztráta připadající vlastníkům mateřské společnosti",null,null,{"v":370690.81409,"d":"370,690.81"}]
["    Menšinové podíly (Nekontrolní podíly)",null,null,{"v":0,"d":"0.00"}]
["      Kumulovaný ostatní úplný výsledek",null,null,{"v":0,"d":"0.00"}]
["      Ostatní položky",null,null,{"v":0,"d":"0.00"}]
["VLASTNÍ KAPITÁL CELKEM",null,null,{"v":8680617.8494,"d":"8,680,617.85"}]
["VLASTNÍ KAPITÁL A ZÁVAZKY CELKEM",null,null,{"v":80688084.32414,"d":"80,688,084.32"}]

{"sheet":"Část 7","index":12,"n_rows":83,"n_cols":5,"rows_kept":83,"merged":[[0,0,0,1],[0,2,0,5],[2,0,2,4],[3,0,4,3],[3,4,4,4],[5,0,5,2],[6,0,7,2],[6,4,82,4],[8,0,8,2],[9,0,9,2],[10,0,10,2],[11,0,11,2],[12,0,12,2],[13,0,13,2],[14,0,14,2],[15,0,15,2],[16,0,16,2],[17,0,17,2],[18,0,18,2],[19,0,19,2],[20,0,20,2],[21,0,21,2],[22,0,22,2],[23,0,23,2],[24,0,24,2],[25,0,25,2],[26,0,26,2],[27,0,27,2],[28,0,28,2],[29,0,29,2],[30,0,30,2],[31,0,31,2],[32,0,32,2],[33,0,33,2],[34,0,34,2],[35,0,35,2],[36,0,36,2],[37,0,37,2],[38,0,38,2],[39,0,39,2],[40,0,40,2],[41,0,41,2],[42,0,42,2],[43,0,43,2],[44,0,44,2],[45,0,45,2],[46,0,46,2],[47,0,47,2],[48,0,48,2],[49,0,49,2],[50,0,50,2],[51,0,51,2],[52,0,52,2],[53,0,53,2],[54,0,54,2],[55,0,55,2],[56,0,56,2],[57,0,57,2],[58,0,58,2],[59,0,59,2],[60,0,60,2],[61,0,61,2],[62,0,62,2],[63,0,63,2],[64,0,64,2],[65,0,65,2],[66,0,66,2],[67,0,67,2],[68,0,68,2],[69,0,69,2],[70,0,70,2],[71,0,71,2],[72,0,72,2],[73,0,73,2],[74,0,74,2],[75,0,75,2],[76,0,76,2],[77,0,77,2],[78,0,78,2],[79,0,79,2],[80,0,80,2],[81,0,81,2],[82,0,82,2]]}
["Část 7"]
["Výkaz zisku nebo ztráty povinné osoby podle výkazů předkládaných České národní bance"]
[]
["Údaje o finanční situaci povinné osoby",{"$nulls":3},"Vyhláška č. 163/2014 Sb.\n\nPříloha č. 10"]
[]
["Informace platné k datu:",null,null,{"$f":"Obsah!C4","v":"2025-06-30"}]
["Čtvrtletní výkaz zisku nebo ztráty povinné osoby (v tis. Kč)",null,null,"K ultimu vykazovaného období","Bod 5 \npísm. b)"]
[{"$nulls":3},{"$f":"D6","v":"2025-06-30"}]
["Úrokové výnosy",null,null,{"v":1611340.66887,"d":"1,611,340.67"}]
["   Finanční aktiva k obchodování",null,null,{"v":0,"d":"0.00"}]
["   Neobchodní finanční aktiva povinně oceňovaná v reálné hodnotě vykázané do zisku \n   nebo ztráty",null,null,{"v":0,"d":"0.00"}]
["   Finanční aktiva v reálné hodnotě vykázané do zisku nebo ztráty",null,null,{"v":0,"d":"0.00"}]
["   Finanční aktiva v reálné hodnotě prostřednictvím ostatního úplného výsledku",null,null,{"v":0,"d":"0.00"}]
["   Finanční aktiva v naběhlé hodnotě",null,null,{"v":1611405.36666,"d":"1,611,405.37"}]
["   Deriváty – zajišťovací účetnictví, úrokové riziko",null,null,{"v":-114.39223,"d":"-114.39"}]
["   Ostatní aktiva",null,null,{"v":49.69444,"d":"49.69"}]
["   Úrokové výnosy ze závazků",null,null,{"v":0,"d":"0.00"}]
["(Úrokové náklady)",null,null,{"v":866703.27441,"d":"866,703.27"}]
["   (Finanční závazky k obchodování)",null,null,{"v":0,"d":"0.00"}]
["   (Finanční závazky v reálné hodnotě vykázané do zisku nebo ztráty)",null,null,{"v":0,"d":"0.00"}]
["   (Finanční závazky v naběhlé hodnotě)",null,null,{"v":861741.80218,"d":"861,741.80"}]
["   (Deriváty – zajišťovací účetnictví, úrokové riziko)",null,null,{"v":4961.47223,"d":"4,961.47"}]
["   (Ostatní závazky)",null,null,{"v":0,"d":"0.00"}]
["   (Úrokové náklady na aktiva)",null,null,{"v":0,"d":"0.00"}]
["(Náklady na základní kapitál splatný na požádání)",null,null,{"v":0,"d":"0.00"}]
["Výnosy z dividend",null,null,{"v":0,"d":"0.00"}]
["   Finanční aktiva k obchodování",null,null,{"v":0,"d":"0.00"}]
["   Neobchodní finanční aktiva povinně oceňovaná v reálné hodnotě vykázané do zisku  nebo ztráty",null,null,{"v":0,"d":"0.00"}]
["   Finanční aktiva v reálné hodnotě prostřednictvím ostatního úplného výsledku",null,null,{"v":0,"d":"0.00"}]
["   Investice do dceřiných, společných a přidružených podniků účtované za použití jiné  než ekvivalenční metody",null,null,{"v":0,"d":"0.00"}]
["Výnosy z poplatků a provizí",null,null,{"v":204478.51559999998,"d":"204,478.52"}]
["(Náklady na poplatky a provize)",null,null,{"v":89333.42362999999,"d":"89,333.42"}]
["Zisky nebo (–) ztráty z odúčtování finančních aktiv a závazků neoceňovaných v reálné hodnotě vykázané do zisku nebo ztráty",null,null,{"v":0,"d":"0.00"}]
["   Finanční aktiva v reálné hodnotě prostřednictvím ostatního úplného výsledku",null,null,{"v":0,"d":"0.00"}]
["   Finanční aktiva v naběhlé hodnotě",null,null,{"v":0,"d":"0.00"}]
["   Finanční závazky v naběhlé hodnotě",null,null,{"v":0,"d":"0.00"}]
["   Ostatní\n   Zisk nebo (-) ztráta z ostatních finančních závazků",null,null,{"v":0,"d":"0.00"}]
["Čisté zisky nebo (–) ztráty z finančních aktiv a závazků k obchodování",null,null,{"v":0,"d":"0.00"}]
["Čisté zisky nebo (-) ztráty z neobchodních finančních aktiv povinně oceňovaných v reálné hodnotě vykázané do zisku nebo ztráty"]
["Čisté zisky nebo (–) ztráty z finančních aktiv a závazků v reálné hodnotě vykázané do zisku nebo ztráty",null,null,{"v":0,"d":"0.00"}]
["Čisté zisky nebo (–) ztráty ze zajišťovacího účetnictví",null,null,-453.65]
["Čisté kurzové rozdíly [zisk nebo (–) ztráta]",null,null,{"v":-271.55756,"d":"-271.56"}]
["Čisté zisky nebo (–) ztráty z odúčtování nefinančních aktiv",null,null,{"v":85.06485,"d":"85.06"}]
["Ostatní provozní výnosy",null,null,{"v":464.45207,"d":"464.45"}]
["Jiné provozní náklady",null,null,{"v":0,"d":"0.00"}]
["CELKOVÉ PROVOZNÍ VÝNOSY (ČISTÉ)",null,null,{"v":859606.7957900004,"d":"859,606.80"}]
["(Správní náklady)",null,null,{"v":281383.86944,"d":"281,383.87"}]
["    (Náklady na zaměstnance)",null,null,{"v":61223.35043,"d":"61,223.35"}]
["   (Ostatní správní náklady)",null,null,{"v":220160.51901,"d":"220,160.52"}]
["(Hotovostní příspěvky do fondů pro řešení krizí a systémů pojištění vkladů)",null,null,{"v":24966.627,"d":"24,966.63"}]
["(Odpisy hmotných aktiv)",null,null,{"v":36578.55929,"d":"36,578.56"}]
["   (Pozemky, budovy a zařízení)",null,null,{"v":3403.9454100000003,"d":"3,403.95"}]
["   (Investiční nemovitý majetek)",null,null,{"v":0,"d":"0.00"}]
["   (Ostatní nehmotná aktiva)",null,null,{"v":33174.61388,"d":"33,174.61"}]
["Čisté zisky nebo (–) ztráty z úpravy",null,null,{"v":0,"d":"0.00"}]
["   Finanční aktiva v reálné hodnotě prostřednictvím ostatního úplného výsledku",null,null,{"v":0,"d":"0.00"}]
["   Finanční aktiva v naběhlé hodnotě",null,null,{"v":0,"d":"0.00"}]
["(Rezervy nebo (–) reverzování rezerv)",null,null,{"v":4831.70451,"d":"4,831.70"}]
["   (Závazky plateb do fondů pro řešení krizí a systémů pojištění vkladů)",null,null,{"v":0,"d":"0.00"}]
["   (Poskytnuté přísliby a záruky)",null,null,{"v":3431.7045099999996,"d":"3,431.70"}]
["   (Další rezervy)",null,null,{"v":1400,"d":"1,400.00"}]
["(Ztráty ze znehodnocení nebo (–) reverzování znehodnocení u finančních aktiv neoceňovaných reálnou hodnotou vykázanou do zisku nebo ztráty)",null,null,{"v":66548.33346,"d":"66,548.33"}]
["   (Finanční aktiva v reálné hodnotě prostřednictvím ostatního úplného výsledku)",null,null,{"v":0,"d":"0.00"}]
["   (Finanční aktiva v naběhlé hodnotě)",null,null,{"v":66548.33346,"d":"66,548.33"}]
["(Ztráty ze znehodnocení nebo (–) reverzování znehodnocení u investic do dceřiných, společných a přidružených podniků)",null,null,{"v":0,"d":"0.00"}]
["(Ztráty ze znehodnocení nebo (–) reverzování znehodnocení u nefinančních aktiv)",null,null,{"v":0,"d":"0.00"}]
["   (Pozemky, budovy a zařízení)",null,null,{"v":0,"d":"0.00"}]
["   (Investiční nemovitý majetek)",null,null,{"v":0,"d":"0.00"}]
["   (Goodwill)",null,null,{"v":0,"d":"0.00"}]
["   (Ostatní nehmotná aktiva)",null,null,{"v":0,"d":"0.00"}]
["   (Ostatní)",null,null,{"v":0,"d":"0.00"}]
["Záporný goodwill vykazovaný do zisku nebo ztráty",null,null,{"v":0,"d":"0.00"}]
["Podíl na zisku nebo (-) ztrátě z investic do dceřiných, společných a přidružených podniků účtovaných pomocí ekvivalenční metody",null,null,{"v":0,"d":"0.00"}]
["Zisk nebo (–) ztráta z dlouhodobých aktiv a vyřazovaných skupin určených k prodeji, které nesplňují podmínky pro ukončované činnosti",null,null,{"v":0,"d":"0.00"}]
["ZISK NEBO (–) ZTRÁTA PŘED ZDANĚNÍM Z POKRAČUJÍCÍCH ČINNOSTÍ",null,null,{"v":445297.7020900004,"d":"445,297.70"}]
["(Daňové náklady nebo (–) výnosy související se ziskem nebo ztrátou z pokračujících činností)",null,null,{"v":74606.888,"d":"74,606.89"}]
["ZISK NEBO (–) ZTRÁTA PO ZDANĚNÍ Z POKRAČUJÍCÍCH ČINNOSTÍ",null,null,{"v":370690.8140900004,"d":"370,690.81"}]
["Zisk nebo (–) ztráta po zdanění z ukončovaných činností",null,null,{"v":0,"d":"0.00"}]
["   (Daňový náklad nebo (–) výnos v souvislosti s ukončovanými činnostmi)",null,null,{"v":0,"d":"0.00"}]
["   (Daňový náklad nebo (–) výnos v souvislosti s ukončovanými činnostmi)",null,null,{"v":0,"d":"0.00"}]
["ZISK NEBO (–) ZTRÁTA ZA ROK",null,null,{"v":370690.8140900004,"d":"370,690.81"}]
["   Přiřaditelné menšinovým podílům [nekontrolním podílům]",null,null,{"v":0,"d":"0.00"}]
["   Připadající na vlastníky mateřské společnosti",null,null,{"v":370690.8140900004,"d":"370,690.81"}]

{"sheet":"Číselník 1","index":13,"n_rows":1566,"n_cols":4,"rows_kept":1566,"hidden":true,"merged":[[0,0,0,2],[1,0,1,2],[2,0,2,3],[3,0,4,3],[1332,0,1333,0],[1332,1,1333,1],[1332,2,1333,2]]}
["Číselník 1"]
["CZ-NACE (OKEČ) číselník"]
[]
["CZ-NACE (OKEČ) číselník"]
[]
[{"$nulls":3},"SEKCE A - ZEMĚDĚLSTVÍ, LESNICTVÍ A RYBÁŘSTVÍ"]
[]
["01",null,null,"Rostlinná a živočišná výroba, myslivost a související činnosti"]
[]
[null,"01.1",null,"Pěstování plodin jiných než trvalých"]
[null,null,"01.11","Pěstování obilovin (kromě rýže), luštěnin a olejnatých semen"]
[null,null,"01.12","Pěstování rýže"]
[null,null,"01.13","Pěstování zeleniny a melounů, kořenů a hlíz"]
[null,null,"01.14","Pěstování cukrové třtiny"]
[null,null,"01.15","Pěstování tabáku"]
[null,null,"01.16","Pěstování přadných rostlin "]
[null,null,"01.19","Pěstování ostatních plodin jiných než trvalých"]
[]
[null,"01.2",null,"Pěstování trvalých plodin "]
[null,null,"01.21","Pěstování vinných hroznů"]
[null,null,"01.22","Pěstování tropického a subtropického ovoce"]
[null,null,"01.23","Pěstování citrusových plodů "]
[null,null,"01.24","Pěstování jádrového a peckového ovoce"]
[null,null,"01.25","Pěstování ostatního stromového a keřového ovoce a ořechů "]
[null,null,"01.26","Pěstování olejnatých plodů "]
[null,null,"01.27","Pěstování rostlin pro výrobu nápojů "]
[null,null,"01.28","Pěstování koření, aromatických, léčivých a farmaceutických rostlin "]
[null,null,"01.29","Pěstování ostatních trvalých plodin "]
[]
[null,"01.3",null,"Množení rostlin "]
[null,null,"01.30","Množení rostlin "]
[]
[null,"01.4",null,"Živočišná výroba"]
[null,null,"01.41","Chov mléčného skotu "]
[null,null,"01.42","Chov jiného skotu"]
[null,null,"01.43","Chov koní a jiných koňovitých"]
[null,null,"01.44","Chov velbloudů a velbloudovitých"]
[null,null,"01.45","Chov ovcí a koz"]
[null,null,"01.46","Chov prasat"]
[null,null,"01.47","Chov drůbeže"]
[null,null,"01.49","Chov ostatních zvířat"]
[null,null,"01.49.1","Chov drobných hospodářských zvířat"]
[null,null,"01.49.2","Chov kožešinových zvířat"]
[null,null,"01.49.3","Chov zvířat pro zájmový chov"]
[null,null,"01.49.9","Chov ostatních zvířat j. n."]
[]
[null,"01.5",null,"Smíšené hospodářství"]
[null,null,"01.50","Smíšené hospodářství"]
[]
[null,"01.6",null,"Podpůrné činnosti pro zemědělství a posklizňové činnosti "]
[null,null,"01.61","Podpůrné činnosti pro rostlinnou výrobu"]
[null,null,"01.62","Podpůrné činnosti pro živočišnou výrobu"]
[null,null,"01.63","Posklizňové činnosti"]
[null,null,"01.64","Zpracování osiva pro účely množení"]
[]
[null,"01.7",null,"Lov a odchyt divokých zvířat a související činnosti "]
[null,null,"01.70","Lov a odchyt divokých zvířat a související činnosti "]
[]
["02",null,null,"Lesnictví a těžba dřeva"]
[]
[null,"02.1",null,"Lesní hospodářství a jiné činnosti v oblasti lesnictví"]
[null,null,"02.10","Lesní hospodářství a jiné činnosti v oblasti lesnictví"]
[]
[null,"02.2",null,"Těžba dřeva"]
[null,null,"02.20","Těžba dřeva"]
[]
[null,"02.3",null,"Sběr a získávání volně rostoucích plodů a materiálů, kromě dřeva"]
[null,null,"02.30","Sběr a získávání volně rostoucích plodů a materiálů, kromě dřeva"]
[]
[null,"02.4",null,"Podpůrné činnosti pro lesnictví"]
[null,null,"02.40","Podpůrné činnosti pro lesnictví"]
[]
["03",null,null,"Rybolov a akvakultura "]
[]
[null,"03.1",null,"Rybolov"]
[null,null,"03.11","Mořský rybolov"]
[null,null,"03.12","Sladkovodní rybolov"]
[]
[null,"03.2",null,"Akvakultura"]
[null,null,"03.21","Mořská akvakultura"]
[null,null,"03.22","Sladkovodní akvakultura"]
[]
[]
[{"$nulls":3},"SEKCE B - TĚŽBA A DOBÝVÁNÍ"]
[]
["05",null,null,"Těžba a úprava černého a hnědého uhlí "]
[]
[null,"05.1",null,"Těžba a úprava černého uhlí"]
[null,null,"05.10","Těžba a úprava černého uhlí"]
[null,null,"05.10.1","Těžba černého uhlí"]
[null,null,"05.10.2","Úprava černého uhlí"]
[]
[null,"05.2",null,"Těžba a úprava hnědého uhlí"]
[null,null,"05.20","Těžba a úprava hnědého uhlí"]
[null,null,"05.20.1","Těžba hnědého uhlí, kromě lignitu"]
[null,null,"05.20.2  ","Úprava hnědého uhlí, kromě lignitu"]
[null,null,"05.20.3  ","Těžba lignitu"]
[null,null,"05.20.4  ","Úprava lignitu"]
[]
["06",null,null,"Těžba ropy a zemního plynu"]
[]
[null,"06.1",null,"Těžba ropy"]
[null,null,"06.10","Těžba ropy"]
[]
[null,"06.2",null,"Těžba zemního plynu"]
[null,null,"06.20","Těžba zemního plynu"]
[]
["07",null,null,"Těžba a úprava rud"]
[]
[null,"07.1",null,"Těžba a úprava železných rud"]
[null,null,"07.10","Těžba a úprava železných rud"]
[null,null,"07.10.1  ","Těžba železných rud"]
[null,null,"07.10.2  ","Úprava železných rud"]
[]
[null,"07.2",null,"Těžba a úprava neželezných rud "]
[null,null,"07.21","Těžba a úprava uranových a thoriových rud"]
[null,null,"07.21.1   ","Těžba uranových a thoriových rud"]
[null,null,"07.21.2  ","Úprava uranových a thoriových rud"]
[null,null,"07.29","Těžba a úprava ostatních neželezných rud "]
[null,null,"07.29.1   ","Těžba ostatních neželezných rud"]
[null,null,"07.29.2   ","Úprava ostatních neželezných rud"]
[]
["08",null,null,"Ostatní těžba a dobývání"]
[]
[null,"08.1",null,"Dobývání kamene, písků a jílů "]
[null,null,"08.11","Dobývání kamene pro výtvarné nebo stavební účely, vápence, sádrovce, křídy a břidlice"]
[null,null,"08.12","Provoz pískoven a štěrkopískoven; těžba jílů a kaolinu"]
[]
[null,"08.9",null,"Těžba a dobývání j. n."]
[null,null,"08.91","Těžba chemických minerálů a minerálů pro výrobu hnojiv"]
[null,null,"08.92","Těžba rašeliny "]
[null,null,"08.93","Těžba soli"]
[null,null,"08.99","Ostatní těžba a dobývání j. n."]
[]
["09",null,null,"Podpůrné činnosti při těžbě"]
[]
[null,"09.1",null,"Podpůrné činnosti při těžbě ropy a zemního plynu"]
[null,null,"09.10","Podpůrné činnosti při těžbě ropy a zemního plynu"]
[]
[null,"09.9",null,"Podpůrné činnosti při ostatní těžbě a dobývání"]
[null,null,"09.90","Podpůrné činnosti při ostatní těžbě a dobývání"]
[]
[]
[{"$nulls":3},"SEKCE C - ZPRACOVATELSKÝ PRŮMYSL"]
[]
[10,null,null,"Výroba potravinářských výrobků"]
[]
[null,"10.1",null,"Zpracování a konzervování masa a výroba masných výrobků"]
[null,null,"10.11","Zpracování a konzervování masa, kromě drůbežího"]
[null,null,"10.12","Zpracování a konzervování drůbežího masa"]
[null,null,"10.13","Výroba masných výrobků a výrobků z drůbežího masa"]
[]
[null,"10.2",null,"Zpracování a konzervování ryb, korýšů a měkkýšů"]
[null,null,"10.20","Zpracování a konzervování ryb, korýšů a měkkýšů"]
[]
[null,"10.3",null,"Zpracování a konzervování ovoce a zeleniny "]
[null,null,"10.31","Zpracování a konzervování brambor"]
[null,null,"10.32","Výroba ovocných a zeleninových šťáv"]
[null,null,"10.39","Ostatní zpracování a konzervování ovoce a zeleniny "]
[]
[null,"10.4",null,"Výroba rostlinných a živočišných olejů a tuků"]
[null,null,"10.41","Výroba olejů a tuků"]
[null,null,"10.42","Výroba margarínu a podobných jedlých tuků"]
[]
[null,"10.5",null,"Výroba mléčných výrobků "]
[null,null,"10.51","Zpracování mléka, výroba mléčných výrobků a sýrů"]
[null,null,"10.52","Výroba zmrzliny"]
[]
[null,"10.6",null,"Výroba mlýnských a škrobárenských výrobků"]
[null,null,"10.61","Výroba mlýnských výrobků"]
[null,null,"10.62","Výroba škrobárenských výrobků"]
[]
[null,"10.7",null,"Výroba pekařských, cukrářských a jiných moučných výrobků"]
[null,null,"10.71","Výroba pekařských a cukrářských výrobků, kromě trvanlivých"]
[null,null,"10.72","Výroba sucharů a sušenek; výroba trvanlivých cukrářských výrobků "]
[null,null,"10.73","Výroba makaronů, nudlí, kuskusu a podobných moučných výrobků"]
[]
[null,"10.8",null,"Výroba ostatních potravinářských výrobků"]
[null,null,"10.81","Výroba cukru"]
[null,null,"10.82","Výroba kakaa, čokolády a cukrovinek"]
[null,null,"10.83","Zpracování čaje a kávy"]
[null,null,"10.84","Výroba koření a aromatických výtažků"]
[null,null,"10.85","Výroba hotových pokrmů"]
[null,null,"10.86","Výroba homogenizovaných potravinářských přípravků a dietních potravin"]
[null,null,"10.89","Výroba ostatních potravinářských výrobků j. n."]
[]
[null,"10.9",null,"Výroba průmyslových krmiv"]
[null,null,"10.91","Výroba průmyslových krmiv pro hospodářská zvířata"]
[null,null,"10.92","Výroba průmyslových krmiv pro zvířata v zájmovém chovu"]
[]
[11,null,null,"Výroba nápojů"]
[]
[null,"11.0",null,"Výroba nápojů"]
[null,null,"11.01","Destilace, rektifikace a míchání lihovin"]
[null,null,"11.02","Výroba vína z vinných hroznů "]
[null,null,"11.03","Výroba jablečného vína a jiných ovocných vín"]
[null,null,"11.04","Výroba ostatních nedestilovaných kvašených nápojů"]
[null,null,"11.05","Výroba piva "]
[null,null,"11.06","Výroba sladu"]
[null,null,"11.07","Výroba nealkoholických nápojů; stáčení minerálních a ostatních vod do lahví"]
[]
[12,null,null,"Výroba tabákových výrobků"]
[]
[null,"12.0",null,"Výroba tabákových výrobků"]
[null,null,"12.00","Výroba tabákových výrobků"]
[]
[13,null,null,"Výroba textilií "]
[]
[null,"13.1",null,"Úprava a spřádání textilních vláken a příze"]
[null,null,"13.10","Úprava a spřádání textilních vláken a příze"]
[]
[null,"13.2",null,"Tkaní textilií "]
[null,null,"13.20","Tkaní textilií "]
[]
[null,"13.3",null,"Konečná úprava textilií"]
[null,null,"13.30","Konečná úprava textilií"]
[]
[null,"13.9",null,"Výroba ostatních textilií"]
[null,null,"13.91","Výroba pletených a háčkovaných materiálů"]
[null,null,"13.92","Výroba konfekčních textilních výrobků, kromě oděvů"]
[null,null,"13.93","Výroba koberců a kobercových předložek"]
[null,null,"13.94","Výroba lan, provazů a síťovaných výrobků"]
[null,null,"13.95","Výroba netkaných textilií a výrobků z nich, kromě oděvů"]
[null,null,"13.96","Výroba ostatních technických a průmyslových textilií"]
[null,null,"13.99","Výroba ostatních textilií j. n."]
[]
[14,null,null,"Výroba oděvů"]
[]
[null,"14.1",null,"Výroba oděvů, kromě kožešinových výrobků "]
[null,null,"14.11","Výroba kožených oděvů "]
[null,null,"14.12","Výroba pracovních oděvů"]
[null,null,"14.13","Výroba ostatních svrchních oděvů"]
[null,null,"14.14","Výroba osobního prádla"]
[null,null,"14.19","Výroba ostatních oděvů a oděvních doplňků "]
[]
[null,"14.2",null,"Výroba kožešinových výrobků"]
[null,null,"14.20","Výroba kožešinových výrobků"]
[]
[null,"14.3",null,"Výroba pletených a háčkovaných oděvů"]
[null,null,"14.31","Výroba pletených a háčkovaných punčochových výrobků"]
[null,null,"14.39","Výroba ostatních pletených a háčkovaných oděvů"]
[]
[15,null,null,"Výroba usní a souvisejících výrobků "]
[]
[null,"15.1",null,"Činění a úprava usní (vyčiněných kůží); zpracování a barvení kožešin; výroba brašnářských, sedlářských a podobných výrobků"]
[null,null,"15.11","Činění a úprava usní (vyčiněných kůží); zpracování a barvení kožešin "]
[null,null,"15.12","Výroba brašnářských, sedlářských a podobných výrobků"]
[]
[null,"15.2",null,"Výroba obuvi "]
[null,null,"15.20","Výroba obuvi "]
[null,null,"15.20.1","Výroba obuvi s usňovým svrškem"]
[null,null,"15.20.9","Výroba obuvi z ostatních materiálů"]
[]
[16,null,null,"Zpracování dřeva, výroba dřevěných, korkových, proutěných a slaměných výrobků, kromě nábytku"]
[]
[null,"16.1",null,"Výroba pilařská a impregnace dřeva"]
[null,null,"16.10","Výroba pilařská a impregnace dřeva"]
[]
[null,"16.2",null,"Výroba dřevěných, korkových, proutěných a slaměných výrobků, kromě nábytku"]
[null,null,"16.21","Výroba dýh a desek na bázi dřeva "]
[null,null,"16.22","Výroba sestavených parketových podlah"]
[null,null,"16.23","Výroba ostatních výrobků stavebního truhlářství a tesařství"]
[null,null,"16.24","Výroba dřevěných obalů"]
[null,null,"16.29","Výroba ostatních dřevěných, korkových, proutěných a slaměných výrobků, kromě nábytku"]
[null,null," "]
[17,null,null,"Výroba papíru a výrobků z papíru"]
[]
[null,"17.1",null,"Výroba buničiny, papíru a lepenky"]
[null,null,"17.11","Výroba buničiny"]
[null,null,"17.11.1","Výroba chemických buničin"]
[null,null,"17.11.2","Výroba mechanických vláknin"]
[null,null,"17.11.3","Výroba ostatních papírenských vláknin"]
[null,null,"17.12","Výroba papíru a lepenky"]
[]
[null,"17.2",null,"Výroba výrobků z papíru a lepenky"]
[null,null,"17.21","Výroba vlnitého papíru a lepenky, papírových a lepenkových obalů"]
[null,null,"17.22","Výroba domácích potřeb, hygienických a toaletních výrobků z papíru"]
[null,null,"17.23","Výroba kancelářských potřeb z papíru"]
[null,null,"17.24","Výroba tapet"]
[null,null,"17.29","Výroba ostatních výrobků z papíru a lepenky"]
[]
[18,null,null,"Tisk a rozmnožování nahraných nosičů"]
[]
[null,"18.1",null,"Tisk a činnosti související s tiskem"]
[null,null,"18.11","Tisk novin"]
[null,null,"18.12","Tisk ostatní, kromě novin"]
[null,null,"18.13","Příprava tisku a digitálních dat"]
[null,null,"18.14","Vázání a související činnosti"]
[]
[null,"18.2",null,"Rozmnožování nahraných nosičů "]
[null,null,"18.20","Rozmnožování nahraných nosičů "]
[]
[19,null,null,"Výroba koksu a rafinovaných ropných produktů "]
[]
[null,"19.1",null,"Výroba koksárenských produktů"]
[null,null,"19.10","Výroba koksárenských produktů"]
[]
[null,"19.2",null,"Výroba rafinovaných ropných produktů "]
[null,null,"19.20","Výroba rafinovaných ropných produktů "]
[]
[20,null,null,"Výroba chemických látek a chemických přípravků"]
[]
[null,"20.1",null,"Výroba základních chemických látek, hnojiv a dusíkatých sloučenin, plastů a syntetického kaučuku v primárních formách"]
[null,null,"20.11","Výroba technických plynů"]
[null,null,"20.12","Výroba barviv a pigmentů"]
[null,null,"20.13","Výroba jiných základních anorganických chemických látek"]
[null,null,"20.14","Výroba jiných základních organických chemických látek"]
[null,null,"20.14.1","Výroba bioetanolu (biolihu) pro pohon motorů a pro výrobu směsí a komponent paliv pro pohon motorů"]
[null,null,"20.14.9","Výroba ostatních základních organických chemických látek"]
[null,null,"20.15","Výroba hnojiv a dusíkatých sloučenin"]
[null,null,"20.16","Výroba plastů v primárních formách"]
[null,null,"20.17","Výroba syntetického kaučuku v primárních formách"]
[]
[null,"20.2",null,"Výroba pesticidů a jiných agrochemických přípravků"]
[null,null,"20.20","Výroba pesticidů a jiných agrochemických přípravků"]
[]
[null,"20.3",null,"Výroba nátěrových barev, laků a jiných nátěrových materiálů, tiskařských barev a tmelů"]
[null,null,"20.30","Výroba nátěrových barev, laků a jiných nátěrových materiálů, tiskařských barev a tmelů"]
[]
[null,"20.4",null,"Výroba mýdel a detergentů, čisticích a lešticích prostředků, parfémů a toaletních přípravků"]
[null,null,"20.41","Výroba mýdel a detergentů, čisticích a lešticích prostředků"]
[null,null,"20.42","Výroba parfémů a toaletních přípravků"]
[]
[null,"20.5",null,"Výroba ostatních chemických výrobků"]
[null,null,"20.51","Výroba výbušnin"]
[null,null,"20.52","Výroba klihů "]
[null,null,"20.53","Výroba vonných silic "]
[null,null,"20.59","Výroba ostatních chemických výrobků j. n."]
[null,null,"20.59.1","Výroba metylesterů a etylesterů mastných kyselin pro pohon motorů a pro výrobu směsí paliv pro pohon motorů"]
[null,null,"20.59.9","Výroba jiných chemických výrobků j. n."]
[]
[null,"20.6",null,"Výroba chemických vláken"]
[null,null,"20.60","Výroba chemických vláken"]
[]
[21,null,null,"Výroba základních farmaceutických výrobků a farmaceutických přípravků"]
[]
[null,"21.1",null,"Výroba základních farmaceutických výrobků"]
[null,null,"21.10","Výroba základních farmaceutických výrobků"]
[]
[null,"21.2",null,"Výroba farmaceutických přípravků "]
[null,null,"21.20","Výroba farmaceutických přípravků "]
[]
[22,null,null,"Výroba pryžových a plastových výrobků"]
[]
[null,"22.1",null,"Výroba pryžových výrobků"]
[null,null,"22.11","Výroba pryžových plášťů a duší; protektorování pneumatik"]
[null,null,"22.19","Výroba ostatních pryžových výrobků"]
[]
[null,"22.2",null,"Výroba plastových výrobků"]
[null,null,"22.21","Výroba plastových desek, fólií, hadic, trubek a profilů"]
[null,null,"22.22","Výroba plastových obalů"]
[null,null,"22.23","Výroba plastových výrobků pro stavebnictví"]
[null,null,"22.29","Výroba ostatních plastových výrobků"]
[]
[23,null,null,"Výroba ostatních nekovových minerálních výrobků"]
[]
[null,"23.1",null,"Výroba skla a skleněných výrobků"]
[null,null,"23.11","Výroba plochého skla"]
[null,null,"23.12","Tvarování a zpracování plochého skla"]
[null,null,"23.13","Výroba dutého skla"]
[null,null,"23.14","Výroba skleněných vláken"]
[null,null,"23.19","Výroba a zpracování ostatního skla vč. technického"]
[]
[null,"23.2",null,"Výroba žáruvzdorných výrobků"]
[null,null,"23.20","Výroba žáruvzdorných výrobků"]
[]
[null,"23.3",null,"Výroba stavebních výrobků z jílovitých materiálů "]
[null,null,"23.31","Výroba keramických obkládaček a dlaždic"]
[null,null,"23.32","Výroba pálených zdicích materiálů, tašek, dlaždic a podobných výrobků"]
[]
[null,"23.4",null,"Výroba ostatních porcelánových a keramických výrobků "]
[null,null,"23.41","Výroba keramických a porcelánových výrobků převážně pro domácnost a ozdobných předmětů"]
[null,null,"23.42","Výroba keramických sanitárních výrobků"]
[null,null,"23.43","Výroba keramických izolátorů a izolačního příslušenství"]
[null,null,"23.44","Výroba ostatních technických keramických výrobků"]
[null,null,"23.49","Výroba ostatních keramických výrobků"]
[]
[null,"23.5",null,"Výroba cementu, vápna a sádry"]
[null,null,"23.51","Výroba cementu"]
[null,null,"23.52","Výroba vápna a sádry"]
[]
[null,"23.6",null,"Výroba betonových, cementových a sádrových výrobků"]
[null,null,"23.61","Výroba betonových výrobků pro stavební účely"]
[null,null,"23.62","Výroba sádrových výrobků pro stavební účely"]
[null,null,"23.63","Výroba betonu připraveného k lití"]
[null,null,"23.64","Výroba malt "]
[null,null,"23.65","Výroba vláknitých cementů"]
[null,null,"23.69","Výroba ostatních betonových, cementových a sádrových výrobků "]
[]
[null,"23.7",null,"Řezání, tvarování a konečná úprava kamenů "]
[null,null,"23.70","Řezání, tvarování a konečná úprava kamenů "]
[]
[null,"23.9",null,"Výroba brusiv a ostatních nekovových minerálních výrobků j. n."]
[null,null,"23.91","Výroba brusiv"]
[null,null,"23.99","Výroba ostatních nekovových minerálních výrobků j. n."]
[]
[24,null,null,"Výroba základních kovů, hutní zpracování kovů; slévárenství"]
[]
[null,"24.1",null,"Výroba surového železa, oceli a feroslitin, plochých výrobků (kromě pásky za studena), tváření výrobků za tepla  "]
[null,null,"24.10","Výroba surového železa, oceli a feroslitin, plochých výrobků (kromě pásky za studena), tváření výrobků za tepla  "]
[null,null,"24.10.1","Výroba surového železa, oceli a feroslitin"]
[null,null,"24.10.2","Výroba plochých výrobků (kromě pásky za studena)"]
[null,null,"24.10.3","Tváření výrobků za tepla  "]
[]
[null,"24.2",null,"Výroba ocelových trub, trubek, dutých profilů a souvisejících potrubních tvarovek"]
[null,null,"24.20","Výroba ocelových trub, trubek, dutých profilů a souvisejících potrubních tvarovek"]
[]
[null,"24.3",null,"Výroba ostatních výrobků získaných jednostupňovým zpracováním oceli"]
[null,null,"24.31","Tažení tyčí za studena"]
[null,null,"24.32","Válcování ocelových úzkých pásů za studena"]
[null,null,"24.33","Tváření ocelových profilů za studena "]
[null,null,"24.34","Tažení ocelového drátu za studena"]
[]
[null,"24.4",null,"Výroba a hutní zpracování drahých a neželezných kovů"]
[null,null,"24.41","Výroba a hutní zpracování drahých kovů"]
[null,null,"24.42","Výroba a hutní zpracování hliníku"]
[null,null,"24.43","Výroba a hutní zpracování olova, zinku a cínu"]
[null,null,"24.44","Výroba a hutní zpracování mědi"]
[null,null,"24.45","Výroba a hutní zpracování ostatních neželezných kovů"]
[null,null,"24.46","Zpracování jaderného paliva"]
[]
[null,"24.5",null,"Slévárenství"]
[null,null,"24.51","Výroba odlitků z litiny"]
[null,null,"24.51.1","Výroba odlitků z litiny s lupínkovým grafitem"]
[null,null,"24.51.2","Výroba odlitků z litiny s kuličkovým grafitem"]
[null,null,"24.51.9","Výroba ostatních odlitků z litiny"]
[null,null,"24.52","Výroba odlitků z oceli"]
[null,null,"24.52.1","Výroba odlitků z uhlíkatých ocelí"]
[null,null,"24.52.2","Výroba odlitků z legovaných ocelí"]
[null,null,"24.53","Výroba odlitků z lehkých neželezných kovů"]
[null,null,"24.54","Výroba odlitků z ostatních neželezných kovů"]
[]
[25,null,null,"Výroba kovových konstrukcí a kovodělných výrobků, kromě strojů a zařízení"]
[]
[null,"25.1",null,"Výroba konstrukčních kovových výrobků"]
[null,null,"25.11","Výroba kovových konstrukcí a jejich dílů"]
[null,null,"25.12","Výroba kovových dveří a oken"]
[]
[null,"25.2",null,"Výroba radiátorů a kotlů k ústřednímu topení, kovových nádrží a zásobníků "]
[null,null,"25.21","Výroba radiátorů a kotlů k ústřednímu topení"]
[null,null,"25.29","Výroba kovových nádrží a zásobníků"]
[]
[null,"25.3",null,"Výroba parních kotlů, kromě kotlů pro ústřední topení"]
[null,null,"25.30","Výroba parních kotlů, kromě kotlů pro ústřední topení"]
[]
[null,"25.4",null,"Výroba zbraní a střeliva"]
[null,null,"25.40","Výroba zbraní a střeliva"]
[]
[null,"25.5",null,"Kování, lisování, ražení, válcování a protlačování kovů; prášková metalurgie"]
[null,null,"25.50","Kování, lisování, ražení, válcování a protlačování kovů; prášková metalurgie"]
[]
[null,"25.6",null,"Povrchová úprava a zušlechťování kovů; obrábění"]
[null,null,"25.61","Povrchová úprava a zušlechťování kovů"]
[null,null,"25.62","Obrábění"]
[]
[null,"25.7",null,"Výroba nožířských výrobků, nástrojů a železářských výrobků "]
[null,null,"25.71","Výroba nožířských výrobků"]
[null,null,"25.72","Výroba zámků a kování"]
[null,null,"25.73","Výroba nástrojů a nářadí"]
[]
[null,"25.9",null,"Výroba ostatních kovodělných výrobků"]
[null,null,"25.91","Výroba ocelových sudů a podobných nádob"]
[null,null,"25.92","Výroba drobných kovových obalů"]
[null,null,"25.93","Výroba drátěných výrobků, řetězů a pružin"]
[null,null,"25.94","Výroba spojovacích materiálů a spojovacích výrobků se závity"]
[null,null,"25.99","Výroba ostatních kovodělných výrobků j. n."]
[null,null," "]
[26,null,null,"Výroba počítačů, elektronických a optických přístrojů a zařízení"]
[]
[null,"26.1",null,"Výroba elektronických součástek a desek"]
[null,null,"26.11","Výroba elektronických součástek "]
[null,null,"26.12","Výroba osazených elektronických desek"]
[]
[null,"26.2",null,"Výroba počítačů a periferních zařízení"]
[null,null,"26.20","Výroba počítačů a periferních zařízení"]
[]
[null,"26.3",null,"Výroba komunikačních zařízení"]
[null,null,"26.30","Výroba komunikačních zařízení"]
[]
[null,"26.4",null,"Výroba spotřební elektroniky "]
[null,null,"26.40","Výroba spotřební elektroniky "]
[]
[null,"26.5",null,"Výroba měřicích, zkušebních a navigačních přístrojů; výroba časoměrných přístrojů"]
[null,null,"26.51","Výroba měřicích, zkušebních a navigačních přístrojů "]
[null,null,"26.52","Výroba časoměrných přístrojů"]
[]
[null,"26.6",null,"Výroba ozařovacích, elektroléčebných a elektroterapeutických přístrojů"]
[null,null,"26.60","Výroba ozařovacích, elektroléčebných a elektroterapeutických přístrojů"]
[]
[null,"26.7",null,"Výroba optických a fotografických přístrojů a zařízení"]
[null,null,"26.70","Výroba optických a fotografických přístrojů a zařízení"]
[]
[null,"26.8",null,"Výroba magnetických a optických médií"]
[null,null,"26.80","Výroba magnetických a optických médií"]
[]
[27,null,null,"Výroba elektrických zařízení"]
[]
[null,"27.1",null,"Výroba elektrických motorů, generátorů, transformátorů a elektrických rozvodných a kontrolních zařízení"]
[null,null,"27.11","Výroba elektrických motorů, generátorů a transformátorů"]
[null,null,"27.12","Výroba elektrických rozvodných a kontrolních zařízení"]
[]
[null,"27.2",null,"Výroba baterií a akumulátorů "]
[null,null,"27.20","Výroba baterií a akumulátorů "]
[]
[null,"27.3",null,"Výroba optických a elektrických kabelů, elektrických vodičů a elektroinstalačních zařízení "]
[null,null,"27.31","Výroba optických kabelů "]
[null,null,"27.32","Výroba elektrických vodičů a kabelů j. n."]
[null,null,"27.33","Výroba elektroinstalačních zařízení"]
[]
[null,"27.4",null,"Výroba elektrických osvětlovacích zařízení "]
[null,null,"27.40","Výroba elektrických osvětlovacích zařízení "]
[]
[null,"27.5",null,"Výroba spotřebičů převážně pro domácnost"]
[null,null,"27.51","Výroba elektrických spotřebičů převážně pro domácnost"]
[null,null,"27.52","Výroba neelektrických spotřebičů převážně pro domácnost"]
[]
[null,"27.9",null,"Výroba ostatních elektrických zařízení"]
[null,null,"27.90","Výroba ostatních elektrických zařízení"]
[]
[28,null,null,"Výroba strojů a zařízení j. n."]
[]
[null,"28.1",null,"Výroba strojů a zařízení pro všeobecné účely"]
[null,null,"28.11","Výroba motorů a turbín, kromě motorů pro letadla, automobily a motocykly"]
[null,null,"28.12","Výroba hydraulických a pneumatických zařízení "]
[null,null,"28.13","Výroba ostatních čerpadel a kompresorů"]
[null,null,"28.14","Výroba ostatních potrubních armatur"]
[null,null,"28.15","Výroba ložisek, ozubených kol, převodů a hnacích prvků"]
[]
[null,"28.2",null,"Výroba ostatních strojů a zařízení pro všeobecné účely"]
[null,null,"28.21","Výroba pecí a hořáků pro topeniště"]
[null,null,"28.22","Výroba zdvihacích a manipulačních zařízení"]
[null,null,"28.23","Výroba kancelářských strojů a zařízení, kromě počítačů a periferních zařízení"]
[null,null,"28.24","Výroba ručních mechanizovaných nástrojů"]
[null,null,"28.25","Výroba průmyslových chladicích a klimatizačních zařízení"]
[null,null,"28.29","Výroba ostatních strojů a zařízení pro všeobecné účely j. n."]
[]
[null,"28.3",null,"Výroba zemědělských a lesnických strojů"]
[null,null,"28.30","Výroba zemědělských a lesnických strojů"]
[]
[null,"28.4",null,"Výroba kovoobráběcích a ostatních obráběcích strojů "]
[null,null,"28.41","Výroba kovoobráběcích strojů "]
[null,null,"28.49","Výroba ostatních obráběcích strojů"]
[]
[null,"28.9",null,"Výroba ostatních strojů pro speciální účely"]
[null,null,"28.91","Výroba strojů pro metalurgii"]
[null,null,"28.92","Výroba strojů pro těžbu, dobývání a stavebnictví"]
[null,null,"28.93","Výroba strojů na výrobu potravin, nápojů a zpracování tabáku"]
[null,null,"28.94","Výroba strojů na výrobu textilu, oděvních výrobků a výrobků z usní"]
[null,null,"28.95","Výroba strojů a přístrojů na výrobu papíru a lepenky"]
[null,null,"28.96","Výroba strojů na výrobu plastů a pryže"]
[null,null,"28.99","Výroba ostatních strojů pro speciální účely j. n."]
[]
[29,null,null,"Výroba motorových vozidel (kromě motocyklů), přívěsů a návěsů"]
[]
[null,"29.1",null,"Výroba motorových vozidel a jejich motorů"]
[null,null,"29.10","Výroba motorových vozidel a jejich motorů"]
[]
[null,"29.2",null,"Výroba karoserií motorových vozidel; výroba přívěsů a návěsů"]
[null,null,"29.20","Výroba karoserií motorových vozidel; výroba přívěsů a návěsů"]
[]
[null,"29.3",null,"Výroba dílů a příslušenství pro motorová vozidla a jejich motory"]
[null,null,"29.31","Výroba elektrického a elektronického zařízení pro motorová vozidla"]
[null,null,"29.32","Výroba ostatních dílů a příslušenství pro motorová vozidla"]
[]
[30,null,null,"Výroba ostatních dopravních prostředků a zařízení"]
[]
[null,"30.1",null,"Stavba lodí a člunů"]
[null,null,"30.11","Stavba lodí a plavidel"]
[null,null,"30.12","Stavba rekreačních a sportovních člunů"]
[]
[null,"30.2",null,"Výroba železničních lokomotiv a vozového parku"]
[null,null,"30.20","Výroba železničních lokomotiv a vozového parku"]
[]
[null,"30.3",null,"Výroba letadel a jejich motorů, kosmických lodí a souvisejících zařízení"]
[null,null,"30.30","Výroba letadel a jejich motorů, kosmických lodí a souvisejících zařízení"]
[]
[null,"30.4",null,"Výroba vojenských bojových vozidel"]
[null,null,"30.40","Výroba vojenských bojových vozidel"]
[]
[null,"30.9",null,"Výroba dopravních prostředků a zařízení j. n."]
[null,null,"30.91","Výroba motocyklů"]
[null,null,"30.92","Výroba jízdních kol a vozíků pro invalidy"]
[null,null,"30.99","Výroba ostatních dopravních prostředků a zařízení j. n."]
[]
[31,null,null,"Výroba nábytku"]
[]
[null,"31.0",null,"Výroba nábytku"]
[null,null,"31.01","Výroba kancelářského nábytku a zařízení obchodů"]
[null,null,"31.02","Výroba kuchyňského nábytku"]
[null,null,"31.03","Výroba matrací"]
[null,null,"31.09","Výroba ostatního nábytku"]
[]
[32,null,null,"Ostatní zpracovatelský průmysl"]
[]
[null,"32.1",null,"Výroba klenotů, bižuterie a příbuzných výrobků"]
[null,null,"32.11","Ražení mincí"]
[null,null,"32.12","Výroba klenotů a příbuzných výrobků"]
[null,null,"32.13","Výroba bižuterie a příbuzných výrobků"]
[]
[null,"32.2",null,"Výroba hudebních nástrojů"]
[null,null,"32.20","Výroba hudebních nástrojů"]
[]
[null,"32.3",null,"Výroba sportovních potřeb"]
[null,null,"32.30","Výroba sportovních potřeb"]
[]
[null,"32.4",null,"Výroba her a hraček"]
[null,null,"32.40","Výroba her a hraček"]
[]
[null,"32.5",null,"Výroba lékařských a dentálních nástrojů a potřeb"]
[null,null,"32.50","Výroba lékařských a dentálních nástrojů a potřeb"]
[]
[null,"32.9",null,"Zpracovatelský průmysl j. n."]
[null,null,"32.91","Výroba košťat a kartáčnických výrobků"]
[null,null,"32.99","Ostatní zpracovatelský průmysl j. n. "]
[]
[33,null,null,"Opravy a instalace strojů a zařízení"]
[]
[null,"33.1",null,"Opravy kovodělných výrobků, strojů a zařízení"]
[null,null,"33.11","Opravy kovodělných výrobků"]
[null,null,"33.12","Opravy strojů"]
[null,null,"33.13","Opravy elektronických a optických přístrojů a zařízení"]
[null,null,"33.14","Opravy elektrických zařízení"]
[null,null,"33.15","Opravy a údržba lodí a člunů"]
[null,null,"33.16","Opravy a údržba letadel a kosmických lodí"]
[null,null,"33.17","Opravy a údržba ostatních dopravních prostředků a zařízení j. n. "]
[null,null,"33.17.1","Opravy a údržba kolejových vozidel"]
[null,null,"33.17.9","Opravy a údržba ostatních dopravních prostředků a zařízení j. n. kromě kolejových vozidel"]
[null,null,"33.19","Opravy ostatních zařízení"]
[]
[null,"33.2",null,"Instalace průmyslových strojů a zařízení"]
[null,null,"33.20","Instalace průmyslových strojů a zařízení"]
[]
[]
[{"$nulls":3},"SEKCE D – VÝROBA A ROZVOD ELEKTŘINY, PLYNU, TEPLA A KLIMATIZOVANÉHO VZDUCHU"]
[]
[35,null,null,"Výroba a rozvod elektřiny, plynu, tepla a klimatizovaného vzduchu"]
[]
[null," 35.1",null,"Výroba, přenos a rozvod elektřiny"]
[null,null,"35.11","Výroba elektřiny "]
[null,null,"35.12","Přenos elektřiny "]
[null,null,"35.13","Rozvod elektřiny "]
[null,null,"35.14","Obchod s elektřinou "]
[]
[null,"35.2",null,"Výroba plynu; rozvod plynných paliv prostřednictvím sítí"]
[null,null,"35.21","Výroba plynu"]
[null,null,"35.22","Rozvod plynných paliv prostřednictvím sítí"]
[null,null,"35.23","Obchod s plynem prostřednictvím sítí"]
[]
[null,"35.3",null,"Výroba a rozvod tepla a klimatizovaného vzduchu, výroba ledu "]
[null,null,"35.30","Výroba a rozvod tepla a klimatizovaného vzduchu, výroba ledu"]
[null,null,"35.30.1","Výroba tepla"]
[null,null,"35.30.2","Rozvod tepla"]
[null,null,"35.30.3","Výroba klimatizovaného vzduchu"]
[null,null,"35.30.4","Rozvod klimatizovaného vzduchu"]
[null,null,"35.30.5","Výroba chladicí vody"]
[null,null,"35.30.6","Rozvod chladicí vody"]
[null,null,"35.30.7","Výroba ledu"]
[]
[null,null," "]
[{"$nulls":3},"SEKCE E – ZÁSOBOVÁNÍ VODOU; ČINNOSTI SOUVISEJÍCÍ S ODPADNÍMI VODAMI, ODPADY A SANACEMI"]
[]
[36,null,null,"Shromažďování, úprava a rozvod vody "]
[]
[null,"36.0",null,"Shromažďování, úprava a rozvod vody "]
[null,null,"36.00","Shromažďování, úprava a rozvod vody "]
[]
[37,null,null,"Činnosti související s odpadními vodami"]
[]
[null,"37.0",null,"Činnosti související s odpadními vodami"]
[null,null,"37.00","Činnosti související s odpadními vodami"]
[]
[38,null,null,"Shromažďování, sběr a odstraňování odpadů, úprava odpadů k dalšímu využití"]
[]
[null,"38.1",null,"Shromažďování a sběr odpadů"]
[null,null,"38.11","Shromažďování a sběr odpadů, kromě nebezpečných"]
[null,null,"38.12","Shromažďování a sběr nebezpečných odpadů"]
[]
[null,"38.2",null,"Odstraňování odpadů"]
[null,null,"38.21","Odstraňování odpadů, kromě nebezpečných"]
[null,null,"38.22","Odstraňování nebezpečných odpadů"]
[]
[null,"38.3",null,"Úprava odpadů k dalšímu využití"]
[null,null,"38.31","Demontáž vraků a vyřazených strojů a zařízení pro účely recyklace"]
[null,null,"38.32","Úprava odpadů k dalšímu využití, kromě demontáže vraků, strojů a zařízení"]
[]
[39,null,null,"Sanace a jiné činnosti související s odpady"]
[]
[null,"39.0",null,"Sanace a jiné činnosti související s odpady"]
[null,null,"39.00","Sanace a jiné činnosti související s odpady"]
[]
[]
[{"$nulls":3},"SEKCE F - STAVEBNICTVÍ"]
[]
[41,null,null,"Výstavba budov"]
[]
[null,"41.1",null,"Developerská činnost "]
[null,null,"41.10","Developerská činnost"]
[]
[null,"41.2",null,"Výstavba bytových a nebytových budov"]
[null,null,"41.20","Výstavba bytových a nebytových budov"]
[null,null,"41.20.1","Výstavba bytových budov"]
[null,null,"41.20.2","Výstavba nebytových budov"]
[]
[42,null,null,"Inženýrské stavitelství"]
[]
[null,"42.1",null,"Výstavba silnic a železnic"]
[null,null,"42.11","Výstavba silnic a dálnic"]
[null,null,"42.12","Výstavba železnic a podzemních drah"]
[null,null,"42.13","Výstavba mostů a tunelů"]
[]
[null,"42.2",null,"Výstavba inženýrských sítí"]
[null,null,"42.21","Výstavba inženýrských sítí pro kapaliny a plyny"]
[null,null,"42.21.1","Výstavba inženýrských sítí pro kapaliny"]
[null,null,"42.21.2","Výstavba inženýrských sítí pro plyny"]
[null,null,"42.22","Výstavba inženýrských sítí pro elektřinu a telekomunikace"]
[]
[null,"42.9",null,"Výstavba ostatních staveb"]
[null,null,"42.91","Výstavba vodních děl"]
[null,null,"42.99","Výstavba ostatních staveb j. n."]
[]
[43,null,null,"Specializované stavební činnosti "]
[]
[null,"43.1",null,"Demolice a příprava staveniště"]
[null,null,"43.11","Demolice"]
[null,null,"43.12","Příprava staveniště"]
[null,null,"43.13","Průzkumné vrtné práce"]
[]
[null,"43.2",null,"Elektroinstalační, instalatérské a ostatní stavebně instalační práce"]
[null,null,"43.21","Elektrické instalace"]
[null,null,"43.22","Instalace vody, odpadu, plynu, topení a klimatizace"]
[null,null,"43.29","Ostatní stavební instalace"]
[]
[null,"43.3",null,"Kompletační a dokončovací práce"]
[null,null,"43.31","Omítkářské práce"]
[null,null,"43.32","Truhlářské práce"]
[null,null,"43.33","Obkládání stěn a pokládání podlahových krytin"]
[null,null,"43.34","Sklenářské, malířské a natěračské práce"]
[null,null,"43.34.1","Sklenářské práce"]
[null,null,"43.34.2","Malířské a natěračské práce"]
[null,null,"43.39","Ostatní kompletační a dokončovací práce"]
[]
[null,"43.9",null,"Ostatní specializované stavební činnosti "]
[null,null,"43.91","Pokrývačské práce"]
[null,null,"43.99","Ostatní specializované stavební činnosti j. n."]
[null,null,"43.99.1","Montáž a demontáž lešení a bednění"]
[null,null,"43.99.9","Jiné specializované stavební činnosti j. n."]
[]
[]
[{"$nulls":3},"SEKCE G - VELKOOBCHOD A MALOOBCHOD; OPRAVY A ÚDRŽBA MOTOROVÝCH VOZIDEL "]
[]
[45,null,null,"Velkoobchod, maloobchod a opravy motorových vozidel "]
[]
[null,"45.1",null,"Obchod s motorovými vozidly, kromě motocyklů"]
[null,null,"45.11","Obchod s automobily a jinými lehkými motorovými vozidly"]
[null,null,"45.19","Obchod s ostatními motorovými vozidly, kromě motocyklů"]
[]
[null,"45.2",null,"Opravy a údržba motorových vozidel, kromě motocyklů"]
[null,null,"45.20","Opravy a údržba motorových vozidel, kromě motocyklů"]
[]
[null,"45.3",null,"Obchod s díly a příslušenstvím pro motorová vozidla, kromě motocyklů"]
[null,null,"45.31","Velkoobchod s díly a příslušenstvím pro motorová vozidla, kromě motocyklů"]
[null,null,"45.32","Maloobchod s díly a příslušenstvím pro motorová vozidla, kromě motocyklů"]
[]
[null,"45.4",null,"Obchod, opravy a údržba motocyklů, jejich dílů a příslušenství"]
[null,null,"45.40","Obchod, opravy a údržba motocyklů, jejich dílů a příslušenství"]
[null,null," "]
[46,null,null,"Velkoobchod, kromě motorových vozidel "]
[]
[null,"46.1",null,"Zprostředkování velkoobchodu a velkoobchod v zastoupení "]
[null,null,"46.11","Zprostředkování velkoobchodu a velkoobchod v zastoupení se základními zemědělskými produkty, živými zvířaty, textilními surovinami a polotovary "]
[null,null,"46.12","Zprostředkování velkoobchodu a velkoobchod v zastoupení s palivy, rudami, kovy a průmyslovými chemikáliemi "]
[null,null,"46.13","Zprostředkování velkoobchodu a velkoobchod v zastoupení se dřevem a stavebními materiály"]
[null,null,"46.14","Zprostředkování velkoobchodu a velkoobchod v zastoupení se stroji, průmyslovým zařízením, loděmi a letadly"]
[null,null,"46.15","Zprostředkování velkoobchodu a velkoobchod v zastoupení s nábytkem, železářským zbožím a potřebami převážně pro domácnost"]
[null,null,"46.16","Zprostředkování velkoobchodu a velkoobchod v zastoupení s textilem, oděvy, kožešinami, obuví a koženými výrobky"]
[null,null,"46.17","Zprostředkování velkoobchodu a velkoobchod v zastoupení s potravinami, nápoji, tabákem a tabákovými výrobky"]
[null,null,"46.18","Zprostředkování specializovaného velkoobchodu a specializovaný velkoobchod v zastoupení s ostatními výrobky"]
[null,null,"46.18.1","Zprostředkování velkoobchodu a velkoobchod v zastoupení s papírenskými výrobky"]
[null,null,"46.18.9","Zprostředkování specializovaného velkoobchodu a velkoobchod v zastoupení s ostatními výrobky j. n."]
[null,null,"46.19","Zprostředkování nespecializovaného velkoobchodu a nespecializovaný velkoobchod v zastoupení"]
[]
[null,"46.2",null,"Velkoobchod se základními zemědělskými produkty a živými zvířaty"]
[null,null,"46.21","Velkoobchod s obilím, surovým tabákem, osivy a krmivy"]
[null,null,"46.22","Velkoobchod s květinami a jinými rostlinami"]
[null,null,"46.23","Velkoobchod s živými zvířaty"]
[null,null,"46.24","Velkoobchod se surovými kůžemi, kožešinami a usněmi"]
[]
[null,"46.3",null,"Velkoobchod s potravinami, nápoji a tabákovými výrobky"]
[null,null,"46.31","Velkoobchod s ovocem a zeleninou "]
[null,null,"46.32","Velkoobchod s masem a masnými výrobky"]
[null,null,"46.33","Velkoobchod s mléčnými výrobky, vejci, jedlými oleji a tuky"]
[null,null,"46.34","Velkoobchod s nápoji"]
[null,null,"46.35","Velkoobchod s tabákovými výrobky"]
[null,null,"46.36","Velkoobchod s cukrem, čokoládou a cukrovinkami"]
[null,null,"46.37","Velkoobchod s kávou, čajem, kakaem a kořením"]
[null,null,"46.38","Specializovaný velkoobchod s jinými potravinami, včetně ryb, korýšů a měkkýšů"]
[null,null,"46.39","Nespecializovaný velkoobchod s potravinami, nápoji a tabákovými výrobky"]
[]
[null,"46.4",null,"Velkoobchod s výrobky převážně pro domácnost"]
[null,null,"46.41","Velkoobchod s textilem"]
[null,null,"46.42","Velkoobchod s oděvy a obuví"]
[null,null,"46.42.1","Velkoobchod s oděvy"]
[null,null,"46.42.2","Velkoobchod s obuví"]
[null,null,"46.43","Velkoobchod s elektrospotřebiči a elektronikou "]
[null,null,"46.44","Velkoobchod s porcelánovými, keramickými a skleněnými výrobky a čisticími prostředky"]
[null,null,"46.44.1","Velkoobchod s porcelánovými, keramickými a skleněnými výrobky"]
[null,null,"46.44.2","Velkoobchod s pracími a čisticími prostředky"]
[null,null,"46.45","Velkoobchod s kosmetickými výrobky"]
[null,null,"46.46","Velkoobchod s farmaceutickými výrobky"]
[null,null,"46.47","Velkoobchod s nábytkem, koberci a svítidly"]
[null,null,"46.48","Velkoobchod s hodinami, hodinkami a klenoty"]
[null,null,"46.49","Velkoobchod s ostatními výrobky převážně pro domácnost"]
[]
[null,"46.5",null,"Velkoobchod s počítačovým a komunikačním zařízením"]
[null,null,"46.51","Velkoobchod s počítači, počítačovým periferním zařízením a softwarem"]
[null,null,"46.52","Velkoobchod s elektronickým a telekomunikačním zařízením a jeho díly"]
[]
[null,"46.6",null,"Velkoobchod s ostatními stroji, strojním zařízením a příslušenstvím"]
[null,null,"46.61","Velkoobchod se zemědělskými stroji, strojním zařízením a příslušenstvím"]
[null,null,"46.62","Velkoobchod s obráběcími stroji"]
[null,null,"46.63","Velkoobchod s těžebními a stavebními stroji a zařízením"]
[null,null,"46.64","Velkoobchod se strojním zařízením pro textilní průmysl, šicími a pletacími stroji"]
[null,null,"46.65","Velkoobchod s kancelářským nábytkem"]
[null,null,"46.66","Velkoobchod s ostatními kancelářskými stroji a zařízením"]
[null,null,"46.69","Velkoobchod s ostatními stroji a zařízením"]
[]
[null,"46.7",null,"Ostatní specializovaný velkoobchod"]
[null,null,"46.71","Velkoobchod s pevnými, kapalnými a plynnými palivy a příbuznými výrobky"]
[null,null,"46.71.1","Velkoobchod s pevnými palivy a příbuznými výrobky"]
[null,null,"46.71.2","Velkoobchod s kapalnými palivy a příbuznými výrobky"]
[null,null,"46.71.3","Velkoobchod s plynnými palivy a příbuznými výrobky"]
[null,null,"46.72","Velkoobchod s rudami, kovy a hutními výrobky"]
[null,null,"46.73","Velkoobchod se dřevem, stavebními materiály a sanitárním vybavením"]
[null,null,"46.74","Velkoobchod s železářským zbožím, instalatérskými a topenářskými potřebami"]
[null,null,"46.75","Velkoobchod s chemickými výrobky"]
[null,null,"46.76","Velkoobchod s ostatními meziprodukty"]
[null,null,"46.76.1","Velkoobchod s papírenskými meziprodukty"]
[null,null,"46.76.9","Velkoobchod s ostatními meziprodukty j. n."]
[null,null,"46.77","Velkoobchod s odpadem a šrotem"]
[]
[null,"46.9",null,"Nespecializovaný velkoobchod"]
[null,null,"46.90","Nespecializovaný velkoobchod"]
[]
[47,null,null,"Maloobchod, kromě motorových vozidel "]
[]
[null,"47.1",null,"Maloobchod v nespecializovaných prodejnách"]
[null,null,"47.11","Maloobchod s převahou potravin, nápojů a tabákových výrobků v nespecializovaných prodejnách"]
[null,null,"47.19","Ostatní maloobchod v nespecializovaných prodejnách"]
[]
[null,"47.2",null,"Maloobchod s potravinami, nápoji a tabákovými výrobky ve specializovaných prodejnách"]
[null,null,"47.21","Maloobchod s ovocem a zeleninou "]
[null,null,"47.22","Maloobchod s masem a masnými výrobky "]
[null,null,"47.23","Maloobchod s rybami, korýši a měkkýši "]
[null,null,"47.24","Maloobchod s chlebem, pečivem, cukrářskými výrobky a cukrovinkami "]
[null,null,"47.25","Maloobchod s nápoji "]
[null,null,"47.26","Maloobchod s tabákovými výrobky "]
[null,null,"47.29","Ostatní maloobchod s potravinami ve specializovaných prodejnách"]
[]
[null,"47.3",null,"Maloobchod s pohonnými hmotami ve specializovaných prodejnách"]
[null,null,"47.30","Maloobchod s pohonnými hmotami ve specializovaných prodejnách"]
[]
[null,"47.4",null,"Maloobchod s počítačovým a komunikačním zařízením ve specializovaných prodejnách"]
[null,null,"47.41","Maloobchod s počítači, počítačovým periferním zařízením a softwarem "]
[null,null,"47.42","Maloobchod s telekomunikačním zařízením "]
[null,null,"47.43","Maloobchod s audio- a videozařízením "]
[]
[null,"47.5",null,"Maloobchod s ostatními výrobky převážně pro domácnost ve specializovaných prodejnách"]
[null,null,"47.51","Maloobchod s textilem "]
[null,null,"47.52","Maloobchod s železářským zbožím, barvami, sklem a potřebami pro kutily "]
[null,null,"47.53","Maloobchod s koberci, podlahovými krytinami a nástěnnými obklady "]
[null,null,"47.54","Maloobchod s elektrospotřebiči a elektronikou "]
[null,null,"47.59","Maloobchod s nábytkem, svítidly a ostatními výrobky převážně pro domácnost ve specializovaných prodejnách"]
[]
[null,"47.6",null,"Maloobchod s výrobky pro kulturní rozhled a rekreaci ve specializovaných prodejnách"]
[null,null,"47.61","Maloobchod s knihami "]
[null,null,"47.62","Maloobchod s novinami, časopisy a papírnickým zbožím "]
[null,null,"47.63","Maloobchod s audio- a videozáznamy "]
[null,null,"47.64","Maloobchod se sportovním vybavením "]
[null,null,"47.65","Maloobchod s hrami a hračkami "]
[]
[null,"47.7",null,"Maloobchod s ostatním zbožím ve specializovaných prodejnách"]
[null,null,"47.71","Maloobchod s oděvy "]
[null,null,"47.72","Maloobchod s obuví a koženými výrobky "]
[null,null,"47.73","Maloobchod s farmaceutickými přípravky "]
[null,null,"47.74","Maloobchod se zdravotnickými a ortopedickými výrobky "]
[null,null,"47.75","Maloobchod s kosmetickými a toaletními výrobky "]
[null,null,"47.76","Maloobchod s květinami, rostlinami, osivy, hnojivy, zvířaty pro zájmový chov a krmivy pro ně "]
[null,null,"47.77","Maloobchod s hodinami, hodinkami a klenoty "]
[null,null,"47.78","Ostatní maloobchod s novým zbožím ve specializovaných prodejnách"]
[null,null,"47.78.1","Maloobchod s fotografickým a optickým zařízením a potřebami"]
[null,null,"47.78.2","Maloobchod s pevnými palivy"]
[null,null,"47.78.3","Maloobchod s kapalnými palivy (kromě pohonných hmot)"]
[null,null,"47.78.4","Maloobchod s plynnými palivy (kromě pohonných hmot)"]
[null,null,"47.78.9","Ostatní maloobchod s novým zbožím ve specializovaných prodejnách j. n."]
[null,null,"47.79","Maloobchod s použitým zbožím v prodejnách"]
[]
[null,"47.8",null,"Maloobchod ve stáncích a na trzích"]
[null,null,"47.81","Maloobchod s potravinami, nápoji a tabákovými výrobky ve stáncích a na trzích"]
[null,null,"47.82","Maloobchod s textilem, oděvy a obuví ve stáncích a na trzích "]
[null,null,"47.89","Maloobchod s ostatním zbožím ve stáncích a na trzích "]
[]
[null,"47.9",null,"Maloobchod mimo prodejny, stánky a trhy"]
[null,null,"47.91","Maloobchod prostřednictvím internetu nebo zásilkové služby "]
[null,null,"47.91.1","Maloobchod prostřednictvím internetu"]
[null,null,"47.91.2","Maloobchod prostřednictvím zásilkové služby (jiný než prostřednictvím internetu)"]
[null,null,"47.99","Ostatní maloobchod mimo prodejny, stánky a trhy"]
[]
[]
[{"$nulls":3},"SEKCE H - DOPRAVA A SKLADOVÁNÍ"]
[]
[49,null,null,"Pozemní a potrubní doprava"]
[]
[null,"49.1",null,"Železniční osobní doprava meziměstská"]
[null,null,"49.10","Železniční osobní doprava meziměstská"]
[]
[null,"49.2",null,"Železniční nákladní doprava"]
[null,null,"49.20","Železniční nákladní doprava"]
[null,null," "]
[null,"49.3",null,"Ostatní pozemní osobní doprava "]
[null,null,"49.31","Městská a příměstská pozemní osobní doprava"]
[null,null,"49.32","Taxislužba a pronájem osobních vozů s řidičem"]
[null,null,"49.39","Ostatní pozemní osobní doprava j. n."]
[null,null,"49.39.1","Meziměstská pravidelná pozemní osobní doprava"]
[null,null,"49.39.2","Osobní doprava lanovkou nebo vlekem"]
[null,null,"49.39.3","Nepravidelná pozemní osobní doprava"]
[null,null,"49.39.9","Jiná pozemní osobní doprava j. n."]
[]
[null,"49.4",null,"Silniční nákladní doprava a stěhovací služby"]
[null,null,"49.41","Silniční nákladní doprava"]
[null,null,"49.42","Stěhovací služby"]
[]
[null,"49.5",null,"Potrubní doprava"]
[null,null,"49.50","Potrubní doprava"]
[null,null,"49.50.1","Potrubní doprava ropovodem"]
[null,null,"49.50.2","Potrubní doprava plynovodem"]
[null,null,"49.50.9","Potrubní doprava ostatní"]
[]
[50,null,null,"Vodní doprava"]
[]
[null,"50.1",null,"Námořní a pobřežní osobní doprava"]
[null,null,"50.10","Námořní a pobřežní osobní doprava"]
[]
[null,"50.2",null,"Námořní a pobřežní nákladní doprava"]
[null,null,"50.20","Námořní a pobřežní nákladní doprava"]
[]
[null,"50.3",null,"Vnitrozemská vodní osobní doprava"]
[null,null,"50.30","Vnitrozemská vodní osobní doprava"]
[]
[null,"50.4",null,"Vnitrozemská vodní nákladní doprava"]
[null,null,"50.40","Vnitrozemská vodní nákladní doprava"]
[]
[51,null,null,"Letecká doprava"]
[]
[null,"51.1",null,"Letecká osobní doprava"]
[null,null,"51.10","Letecká osobní doprava"]
[null,null,"51.10.1","Vnitrostátní pravidelná letecká osobní doprava"]
[null,null,"51.10.2","Vnitrostátní nepravidelná letecká osobní doprava"]
[null,null,"51.10.3","Mezinárodní pravidelná letecká osobní doprava"]
[null,null,"51.10.4","Mezinárodní nepravidelná letecká osobní doprava"]
[null,null,"51.10.9","Ostatní letecká osobní doprava"]
[]
[null,"51.2",null,"Letecká nákladní doprava a kosmická doprava"]
[null,null,"51.21","Letecká nákladní doprava"]
[null,null,"51.22","Kosmická doprava"]
[]
[52,null,null,"Skladování a vedlejší činnosti v dopravě"]
[]
[null,"52.1",null,"Skladování"]
[null,null,"52.10","Skladování"]
[]
[null,"52.2",null,"Vedlejší činnosti v dopravě"]
[null,null,"52.21","Činnosti související s pozemní dopravou "]
[null,null,"52.22","Činnosti související s vodní dopravou "]
[null,null,"52.23","Činnosti související s leteckou dopravou "]
[null,null,"52.24","Manipulace s nákladem"]
[null,null,"52.29","Ostatní vedlejší činnosti v dopravě"]
[]
[53,null,null,"Poštovní a kurýrní činnosti"]
[]
[null,"53.1",null,"Základní poštovní služby poskytované na základě poštovní licence"]
[null,null,"53.10","Základní poštovní služby poskytované na základě poštovní licence"]
[]
[null,"53.2",null,"Ostatní poštovní a kurýrní činnosti"]
[null,null,"53.20","Ostatní poštovní a kurýrní činnosti"]
[]
[]
[{"$nulls":3},"SEKCE I - UBYTOVÁNÍ, STRAVOVÁNÍ A POHOSTINSTVÍ "]
[]
[55,null,null,"Ubytování"]
[]
[null,"55.1",null,"Ubytování v hotelích a podobných ubytovacích zařízeních"]
[null,null,"55.10","Ubytování v hotelích a podobných ubytovacích zařízeních"]
[null,null,"55.10.1","Hotely"]
[null,null,"55.10.2","Motely, botely"]
[null,null,"55.10.9","Ostatní podobná ubytovací zařízení"]
[]
[null,"55.2",null,"Rekreační a ostatní krátkodobé ubytování"]
[null,null,"55.20","Rekreační a ostatní krátkodobé ubytování"]
[]
[null,"55.3",null,"Kempy a tábořiště "]
[null,null,"55.30","Kempy a tábořiště "]
[]
[null,"55.9",null,"Ostatní ubytování"]
[null,null,"55.90","Ostatní ubytování"]
[null,null,"55.90.1","Ubytování v zařízených pronájmech "]
[null,null,"55.90.2","Ubytování ve vysokoškolských kolejích, domovech mládeže"]
[null,null,"55.90.9","Ostatní ubytování j. n. "]
[]
[56,null,null,"Stravování a pohostinství"]
[]
[null,"56.1",null,"Stravování v restauracích, u stánků a v mobilních zařízeních"]
[null,null,"56.10","Stravování v restauracích, u stánků a v mobilních zařízeních"]
[]
[null,"56.2",null,"Poskytování cateringových a ostatních stravovacích služeb"]
[null,null,"56.21","Poskytování cateringových služeb"]
[null,null,"56.29","Poskytování ostatních stravovacích služeb"]
[null,null,"56.29.1","Stravování v závodních kuchyních"]
[null,null,"56.29.2","Stravování ve školních zařízeních, menzách"]
[null,null,"56.29.9","Poskytování jiných stravovacích služeb j. n."]
[]
[null,"56.3",null,"Pohostinství"]
[null,null,"56.30","Pohostinství"]
[]
[]
[{"$nulls":3},"SEKCE J - INFORMAČNÍ A KOMUNIKAČNÍ ČINNOSTI"]
[]
[58,null,null,"Vydavatelské činnosti"]
[]
[null,"58.1",null,"Vydávání knih, periodických publikací a ostatní vydavatelské činnosti"]
[null,null,"58.11","Vydávání knih"]
[null,null,"58.12","Vydávání adresářů a jiných seznamů "]
[null,null,"58.13","Vydávání novin"]
[null,null,"58.14","Vydávání časopisů a ostatních periodických publikací"]
[null,null,"58.19","Ostatní vydavatelské činnosti"]
[]
[null,"58.2",null,"Vydávání softwaru"]
[null,null,"58.21","Vydávání počítačových her"]
[null,null,"58.29","Ostatní vydávání softwaru"]
[]
[59,null,null,"Činnosti v oblasti filmů, videozáznamů a televizních programů, pořizování zvukových nahrávek a hudební vydavatelské činnosti"]
[]
[null,"59.1",null,"Činnosti v oblasti filmů, videozáznamů a televizních programů "]
[null,null,"59.11","Produkce filmů, videozáznamů a televizních programů"]
[null,null,"59.12","Postprodukce filmů, videozáznamů a televizních programů"]
[null,null,"59.13","Distribuce filmů, videozáznamů a televizních programů"]
[null,null,"59.14","Promítání filmů "]
[]
[null,"59.2",null,"Pořizování zvukových nahrávek a hudební vydavatelské činnosti"]
[null,null,"59.20","Pořizování zvukových nahrávek a hudební vydavatelské činnosti"]
[]
[60,null,null,"Tvorba programů a vysílání"]
[]
[null,"60.1",null,"Rozhlasové vysílání"]
[null,null,"60.10","Rozhlasové vysílání"]
[]
[null,"60.2",null,"Tvorba televizních programů a televizní vysílání"]
[null,null,"60.20","Tvorba televizních programů a televizní vysílání"]
[]
[]
[61,null,null,"Telekomunikační činnosti"]
[]
[null,"61.1",null,"Činnosti související s pevnou telekomunikační sítí"]
[null,null,"61.10","Činnosti související s pevnou telekomunikační sítí"]
[null,null,"61.10.1","Poskytování hlasových služeb přes pevnou telekomunikační síť"]
[null,null,"61.10.2","Pronájem pevné telekomunikační sítě"]
[null,null,"61.10.3","Přenos dat přes pevnou telekomunikační síť"]
[null,null,"61.10.4","Poskytování přístupu k internetu přes pevnou telekomunikační síť"]
[null,null,"61.10.9","Ostatní činnosti související s pevnou telekomunikační sítí"]
[]
[null,"61.2",null,"Činnosti související s bezdrátovou telekomunikační sítí"]
[null,null,"61.20","Činnosti související s bezdrátovou telekomunikační sítí"]
[null,null,"61.20.1","Poskytování hlasových služeb přes bezdrátovou telekomunikační síť"]
[null,null,"61.20.2","Pronájem bezdrátové telekomunikační sítě"]
[null,null,"61.20.3","Přenos dat přes bezdrátovou telekomunikační síť"]
[null,null,"61.20.4","Poskytování přístupu k internetu přes bezdrátovou telekomunikační síť"]
[null,null,"61.20.9","Ostatní činnosti související s bezdrátovou telekomunikační sítí"]
[]
[null,"61.3",null,"Činnosti související se satelitní telekomunikační sítí"]
[null,null,"61.30","Činnosti související se satelitní telekomunikační sítí"]
[]
[null,"61.9",null,"Ostatní telekomunikační činnosti"]
[null,null,"61.90","Ostatní telekomunikační činnosti"]
[]
[]
[62,null,null,"Činnosti v oblasti informačních technologií"]
[]
[null,"62.0",null,"Činnosti v oblasti informačních technologií"]
[null,null,"62.01","Programování"]
[null,null,"62.02","Poradenství v oblasti informačních technologií"]
[null,null,"62.03","Správa počítačového vybavení"]
[null,null,"62.09","Ostatní činnosti v oblasti informačních technologií"]
[]
[]
[63,null,null,"Informační činnosti"]
[]
[null,"63.1",null,"Činnosti související se zpracováním dat a hostingem; činnosti související s webovými portály"]
[null,null,"63.11","Činnosti související se zpracováním dat a hostingem"]
[null,null,"63.12","Činnosti související s webovými portály"]
[]
[null,"63.9",null,"Ostatní informační činnosti "]
[null,null,"63.91","Činnosti zpravodajských tiskových kanceláří a agentur"]
[null,null,"63.99","Ostatní informační činnosti j. n."]
[]
[]
[{"$nulls":3},"SEKCE K - PENĚŽNICTVÍ A POJIŠŤOVNICTVÍ"]
[]
[64,null,null,"Finanční zprostředkování, kromě pojišťovnictví a penzijního financování"]
[]
[null,"64.1",null,"Peněžní zprostředkování"]
[null,null,"64.11","Centrální bankovnictví"]
[null,null,"64.19","Ostatní peněžní zprostředkování"]
[]
[null,"64.2",null,"Činnosti holdingových společností"]
[null,null,"64.20","Činnosti holdingových společností"]
[]
[null,"64.3",null,"Činnosti trustů, fondů a podobných finančních subjektů"]
[null,null,"64.30","Činnosti trustů, fondů a podobných finančních subjektů"]
[]
[null,"64.9",null,"Ostatní finanční zprostředkování"]
[null,null,"64.91","Finanční leasing"]
[null,null,"64.92","Ostatní poskytování úvěrů"]
[null,null,"64.92.1","Poskytování úvěrů společnostmi, které nepřijímají vklady"]
[null,null,"64.92.2","Poskytování obchodních úvěrů"]
[null,null,"64.92.3","Činnosti zastaváren"]
[null,null,"64.92.9","Ostatní poskytování úvěrů j. n."]
[null,null,"64.99","Ostatní finanční zprostředkování j. n."]
[null,null,"64.99.1","Faktoringové činnosti"]
[null,null,"64.99.2","Obchodování s cennými papíry na vlastní účet"]
[null,null,"64.99.9","Jiné finanční zprostředkování j. n."]
[]
[65,null,null,"Pojištění, zajištění a penzijní financování, kromě povinného sociálního zabezpečení"]
[]
[null,"65.1",null,"Pojištění"]
[null,null,"65.11","Životní pojištění"]
[null,null,"65.12","Neživotní pojištění"]
[]
[null,"65.2",null,"Zajištění"]
[null,null,"65.20","Zajištění"]
[]
[null,"65.3",null,"Penzijní financování"]
[null,null,"65.30","Penzijní financování"]
[]
[66,null,null,"Ostatní finanční činnosti"]
[]
[null,"66.1",null,"Pomocné činnosti související s finančním zprostředkováním, kromě pojišťovnictví a penzijního financování"]
[null,null,"66.11","Řízení a správa finančních trhů"]
[null,null,"66.12","Obchodování s cennými papíry a komoditami na burzách"]
[null,null,"66.19","Ostatní pomocné činnosti související s finančním zprostředkováním"]
[]
[null,"66.2",null,"Pomocné činnosti související s pojišťovnictvím a penzijním financováním"]
[null,null,"66.21","Vyhodnocování rizik a škod"]
[null,null,"66.22","Činnosti zástupců pojišťovny a makléřů"]
[null,null,"66.29","Ostatní pomocné činnosti související s pojišťovnictvím a penzijním financováním"]
[]
[null,"66.3",null,"Správa fondů"]
[null,null,"66.30","Správa fondů"]
[]
[]
[{"$nulls":3},"SEKCE L - ČINNOSTI V OBLASTI NEMOVITOSTÍ"]
[]
[68,null,null,"Činnosti v oblasti nemovitostí"]
[]
[null,"68.1",null,"Nákup a následný prodej vlastních nemovitostí"]
[null,null,"68.10","Nákup a následný prodej vlastních nemovitostí"]
[]
[null,"68.2",null,"Pronájem a správa vlastních nebo pronajatých nemovitostí"]
[null,null,"68.20","Pronájem a správa vlastních nebo pronajatých nemovitostí"]
[null,null,"68.20.1","Pronájem vlastních nebo pronajatých nemovitostí s bytovými prostory"]
[null,null,"68.20.2","Pronájem vlastních nebo pronajatých nemovitostí s nebytovými prostory"]
[null,null,"68.20.3","Správa vlastních nebo pronajatých nemovitostí s bytovými prostory "]
[null,null,"68.20.4 ","Správa vlastních nebo pronajatých nemovitostí s nebytovými prostory"]
[]
[null,"68.3",null,"Činnosti v oblasti nemovitostí na základě smlouvy nebo dohody"]
[null,null,"68.31","Zprostředkovatelské činnosti realitních agentur"]
[null,null,"68.32","Správa nemovitostí na základě smlouvy"]
[]
[]
[]
[{"$nulls":3},"SEKCE M - PROFESNÍ, VĚDECKÉ A TECHNICKÉ ČINNOSTI"]
[]
[69,null,null,"Právní a účetnické činnosti"]
[]
[null,"69.1",null,"Právní činnosti"]
[null,null,"69.10","Právní činnosti"]
[]
[null,"69.2",null,"Účetnické a auditorské činnosti; daňové poradenství"]
[null,null,"69.20","Účetnické a auditorské činnosti; daňové poradenství"]
[]
[70,null,null,"Činnosti vedení podniků; poradenství v oblasti řízení"]
[]
[null,"70.1",null,"Činnosti vedení podniků"]
[null,null,"70.10","Činnosti vedení podniků"]
[]
[null,"70.2",null,"Poradenství v oblasti řízení"]
[null,null,"70.21","Poradenství v oblasti vztahů s veřejností a komunikace"]
[null,null,"70.22","Ostatní poradenství v oblasti podnikání a řízení"]
[]
[71,null,null,"Architektonické a inženýrské činnosti; technické zkoušky a analýzy"]
[]
[null,"71.1",null,"Architektonické a inženýrské činnosti a související technické poradenství"]
[null,null,"71.11","Architektonické činnosti"]
[null,null,"71.12","Inženýrské činnosti a související technické poradenství"]
[null,null,"71.12.1","Geologický průzkum"]
[null,null,"71.12.2","Zeměměřické a kartografické činnosti"]
[null,null,"71.12.3","Hydrometeorologické a meteorologické činnosti"]
[null,null,"71.12.9","Ostatní inženýrské činnosti a související technické poradenství j. n."]
[]
[null,"71.2",null,"Technické zkoušky a analýzy"]
[null,null,"71.20","Technické zkoušky a analýzy"]
[null,null,"71.20.1  ","Zkoušky a analýzy vyhrazených technických zařízení"]
[null,null,"71.20.9   ","Ostatní technické zkoušky a analýzy"]
[]
[72,null,null,"Výzkum a vývoj"]
[]
[null,"72.1",null,"Výzkum a vývoj v oblasti přírodních a technických věd"]
[null,null,"72.11","Výzkum a vývoj v oblasti biotechnologie"]
[null,null,"72.19","Ostatní výzkum a vývoj v oblasti přírodních a technických věd"]
[null,null,"72.19.1 ","Výzkum a vývoj v oblasti lékařských věd "]
[null,null,"72.19.2","Výzkum a vývoj v oblasti technických věd"]
[null,null,"72.19.9","Výzkum a vývoj v oblasti jiných přírodních věd"]
[]
[null,"72.2",null,"Výzkum a vývoj v oblasti společenských a humanitních věd"]
[null,null,"72.20","Výzkum a vývoj v oblasti společenských a humanitních věd"]
[]
[73,null,null,"Reklama a průzkum trhu"]
[]
[null,"73.1",null,"Reklamní činnosti"]
[null,null,"73.11","Činnosti reklamních agentur"]
[null,null,"73.12","Zastupování médií při prodeji reklamního času a prostoru"]
[]
[null,"73.2",null,"Průzkum trhu a veřejného mínění"]
[null,null,"73.20","Průzkum trhu a veřejného mínění"]
[]
[74,null,null,"Ostatní profesní, vědecké a technické činnosti"]
[]
[null,"74.1",null,"Specializované návrhářské činnosti "]
[null,null,"74.10","Specializované návrhářské činnosti "]
[]
[null,"74.2",null,"Fotografické činnosti"]
[null,null,"74.20","Fotografické činnosti"]
[]
[null,"74.3",null,"Překladatelské a tlumočnické činnosti"]
[null,null,"74.30","Překladatelské a tlumočnické činnosti"]
[]
[null,"74.9",null,"Ostatní profesní, vědecké a technické činnosti j. n."]
[null,null,"74.90","Ostatní profesní, vědecké a technické činnosti j. n."]
[null,null,"74.90.1","Poradenství v oblasti bezpečnosti a ochrany zdraví při práci"]
[null,null,"74.90.2","Poradenství v oblasti požární ochrany"]
[null,null,"74.90.9","Jiné profesní, vědecké a technické činnosti j. n."]
[]
[75,null,null,"Veterinární činnosti"]
[]
[null,"75.0",null,"Veterinární činnosti"]
[null,null,"75.00","Veterinární činnosti"]
[]
[]
[{"$nulls":3},"SEKCE N - ADMINISTRATIVNÍ A PODPŮRNÉ ČINNOSTI"]
[]
[77,null,null,"Činnosti v oblasti pronájmu a operativního leasingu"]
[]
[null," 77.1",null,"Pronájem a leasing motorových vozidel, kromě motocyklů"]
[null,null,"77.11","Pronájem a leasing automobilů a jiných lehkých motorových vozidel, kromě motocyklů"]
[null,null,"77.12","Pronájem a leasing nákladních automobilů"]
[]
[null,"77.2",null,"Pronájem a leasing výrobků pro osobní potřebu a převážně pro domácnost"]
[null,null,"77.21","Pronájem a leasing rekreačních a sportovních potřeb"]
[null,null,"77.22","Pronájem videokazet a disků"]
[null,null,"77.29","Pronájem a leasing ostatních výrobků pro osobní potřebu a převážně pro domácnost"]
[]
[null,"77.3",null,"Pronájem a leasing ostatních strojů, zařízení a výrobků "]
[null,null,"77.31","Pronájem a leasing zemědělských strojů a zařízení"]
[null,null,"77.32","Pronájem a leasing stavebních strojů a zařízení "]
[null,null,"77.33","Pronájem a leasing kancelářských strojů a zařízení, včetně počítačů"]
[null,null,"77.34","Pronájem a leasing vodních dopravních prostředků"]
[null,null,"77.35","Pronájem a leasing leteckých dopravních prostředků"]
[null,null,"77.39","Pronájem a leasing ostatních strojů, zařízení a výrobků j. n."]
[]
[null,"77.4",null,"Leasing duševního vlastnictví a podobných produktů, kromě děl chráněných autorským právem"]
[null,null,"77.40","Leasing duševního vlastnictví a podobných produktů, kromě děl chráněných autorským právem"]
[]
[78,null,null,"Činnosti související se zaměstnáním"]
[]
[null,"78.1",null,"Činnosti agentur zprostředkujících zaměstnání"]
[null,null,"78.10","Činnosti agentur zprostředkujících zaměstnání"]
[]
[null,"78.2",null,"Činnosti agentur zprostředkujících práci na přechodnou dobu"]
[null,null,"78.20","Činnosti agentur zprostředkujících práci na přechodnou dobu"]
[]
[null,"78.3",null,"Ostatní poskytování lidských zdrojů "]
[null,null,"78.30","Ostatní poskytování lidských zdrojů"]
[]
[79,null,null,"Činnosti cestovních agentur, kanceláří a jiné rezervační a související činnosti"]
[]
[null,"79.1",null,"Činnosti cestovních agentur a cestovních kanceláří"]
[null,null,"79.11","Činnosti cestovních agentur "]
[null,null,"79.12","Činnosti cestovních kanceláří"]
[]
[null,"79.9",null,"Ostatní rezervační a související činnosti"]
[null,null,"79.90","Ostatní rezervační a související činnosti"]
[null,null,"79.90.1","Průvodcovské činnosti"]
[null,null,"79.90.9","Ostatní rezervační a související činnosti j. n."]
[]
[80,null,null,"Bezpečnostní a pátrací činnosti"]
[]
[null,"80.1",null,"Činnosti soukromých bezpečnostních agentur"]
[null,null,"80.10","Činnosti soukromých bezpečnostních agentur"]
[]
[null,"80.2",null,"Činnosti související s provozem bezpečnostních systémů"]
[null,null,"80.20","Činnosti související s provozem bezpečnostních systémů"]
[]
[null,"80.3",null,"Pátrací činnosti"]
[null,null,"80.30","Pátrací činnosti "]
[]
[81,null,null,"Činnosti související se stavbami a úpravou krajiny "]
[]
[null,"81.1",null,"Kombinované pomocné činnosti "]
[null,null,"81.10","Kombinované pomocné činnosti "]
[]
[null,"81.2",null,"Úklidové činnosti"]
[null,null,"81.21","Všeobecný úklid budov"]
[null,null,"81.22","Specializované čištění a úklid budov a průmyslových zařízení"]
[null,null,"81.29","Ostatní úklidové činnosti"]
[]
[null,"81.3",null,"Činnosti související s úpravou krajiny "]
[null,null,"81.30","Činnosti související s úpravou krajiny"]
[]
[82,null,null,"Administrativní, kancelářské a jiné podpůrné činnosti pro podnikání"]
[]
[null,"82.1",null,"Administrativní a kancelářské činnosti"]
[null,null,"82.11","Univerzální administrativní činnosti "]
[null,null,"82.19","Kopírování, příprava dokumentů a ostatní specializované kancelářské podpůrné činnosti "]
[]
[null,"82.2",null,"Činnosti zprostředkovatelských středisek"]
[{"$nulls":3},"po telefonu"]
[null,null,"82.20","Činnosti zprostředkovatelských středisek po telefonu"]
[]
[null,"82.3",null,"Pořádání konferencí a hospodářských výstav"]
[null,null,"82.30","Pořádání konferencí a hospodářských výstav"]
[]
[null,"82.9",null,"Podpůrné činnosti pro podnikání j. n."]
[null,null,"82.91","Inkasní činnosti, ověřování solventnosti zákazníka"]
[null,null,"82.92","Balicí činnosti"]
[null,null,"82.99","Ostatní podpůrné činnosti pro podnikání j. n."]
[]
[]
[{"$nulls":3},"SEKCE O - VEŘEJNÁ SPRÁVA A OBRANA; POVINNÉ SOCIÁLNÍ ZABEZPEČENÍ"]
[]
[84,null,null,"Veřejná správa a obrana; povinné sociální zabezpečení"]
[]
[null,"84.1",null,"Veřejná správa a hospodářská a sociální politika"]
[null,null,"84.11","Všeobecné činnosti veřejné správy"]
[null,null,"84.12","Regulace činností souvisejících s poskytováním zdravotní péče, vzděláváním, kulturou a sociální péčí, kromě sociálního zabezpečení"]
[null,null,"84.13","Regulace a podpora podnikatelského prostředí"]
[]
[null,"84.2",null,"Činnosti pro společnost jako celek"]
[null,null,"84.21","Činnosti v oblasti zahraničních věcí"]
[null,null,"84.21.1","Pomoc cizím zemím při katastrofách nebo v nouzových situacích přímo nebo prostřednictvím mezinárodních organizací"]
[null,null,"84.21.2","Rozvíjení vzájemného přátelství a porozumění mezi národy"]
[null,null,"84.21.9","Ostatní činnosti v oblasti zahraničních věcí"]
[null,null,"84.22","Činnosti v oblasti obrany"]
[null,null,"84.23","Činnosti v oblasti spravedlnosti a soudnictví"]
[null,null,"84.24","Činnosti v oblasti veřejného pořádku a bezpečnosti "]
[null,null,"84.25","Činnosti v oblasti protipožární ochrany"]
[]
[null," 84.3",null,"Činnosti v oblasti povinného sociálního zabezpečení"]
[null,null,"84.30","Činnosti v oblasti povinného sociálního zabezpečení"]
[]
[]
[{"$nulls":3},"SEKCE P – VZDĚLÁVÁNÍ"]
[]
[85,null,null,"Vzdělávání"]
[]
[null,"85.1",null,"Předškolní vzdělávání"]
[null,null,"85.10","Předškolní vzdělávání"]
[]
[null,"85.2",null,"Primární vzdělávání"]
[null,null,"85.20","Primární vzdělávání"]
[]
[null,"85.3",null,"Sekundární vzdělávání"]
[null,null,"85.31","Sekundární všeobecné vzdělávání"]
[null,null,"85.31.1","Základní vzdělávání na druhém stupni základních škol"]
[null,null,"85.31.2","Střední všeobecné vzdělávání"]
[null,null,"85.32","Sekundární odborné vzdělávání"]
[null,null,"85.32.1","Střední odborné vzdělávání na učilištích"]
[null,null,"85.32.2","Střední odborné vzdělávání na středních odborných školách"]
[]
[null,"85.4",null,"Postsekundární vzdělávání"]
[null,null,"85.41","Postsekundární nikoli terciární vzdělávání"]
[null,null,"85.42","Terciární vzdělávání"]
[]
[null,"85.5",null,"Ostatní vzdělávání"]
[null,null,"85.51","Sportovní a rekreační vzdělávání"]
[null,null,"85.52","Umělecké vzdělávání"]
[null,null,"85.53","Činnosti autoškol a jiných škol řízení"]
[null,null,"85.53.1","Činnosti autoškol"]
[null,null,"85.53.2","Činnosti leteckých škol"]
[null,null,"85.53.9","Činnosti ostatních škol řízení"]
[null,null,"85.59","Ostatní vzdělávání j. n."]
[null,null,"85.59.1","Vzdělávání v jazykových školách"]
[null,null,"85.59.2","Environmentální vzdělávání"]
[null,null,"85.59.3","Inovační vzdělávání"]
[null,null,"85.59.9","Jiné vzdělávání j. n."]
[]
[null,"85.6",null,"Podpůrné činnosti ve vzdělávání"]
[null,null,"85.60","Podpůrné činnosti ve vzdělávání"]
[]
[]
[{"$nulls":3},"SEKCE Q - ZDRAVOTNÍ A SOCIÁLNÍ PÉČE"]
[]
[86,null,null,"Zdravotní péče"]
[]
[null,"86.1",null,"Ústavní zdravotní péče"]
[null,null,"86.10","Ústavní zdravotní péče"]
[]
[null,"86.2",null,"Ambulantní a zubní zdravotní péče"]
[null,null,"86.21","Všeobecná ambulantní zdravotní péče"]
[null,null,"86.22","Specializovaná ambulantní zdravotní péče"]
[null,null,"86.23","Zubní péče"]
[]
[null,"86.9",null,"Ostatní činnosti související se zdravotní péčí"]
[null,null,"86.90","Ostatní činnosti související se zdravotní péčí"]
[null,null,"86.90.1","Činnosti související s ochranou veřejného zdraví"]
[null,null,"86.90.9","Ostatní činnosti související se zdravotní péčí j. n."]
[]
[87,null,null,"Pobytové služby sociální péče"]
[]
[null,"87.1",null,"Sociální péče ve zdravotnických zařízeních ústavní péče"]
[null,null,"87.10","Sociální péče ve zdravotnických zařízeních ústavní péče"]
[]
[null,"87.2",null,"Sociální péče v zařízeních pro osoby s chronickým duševním onemocněním a osoby závislé na návykových látkách"]
[null,null,"87.20","Sociální péče v zařízeních pro osoby s chronickým duševním onemocněním a osoby závislé na návykových látkách"]
[null,null,"87.20.1","Sociální péče v zařízeních pro osoby s chronickým duševním onemocněním"]
[null,null,"87.20.2","Sociální péče v zařízeních pro osoby závislé na návykových látkách"]
[]
[null,"87.3",null,"Sociální péče v domovech pro seniory a osoby se zdravotním postižením"]
[null,null,"87.30","Sociální péče v domovech pro seniory a osoby se zdravotním postižením"]
[null,null,"87.30.1","Sociální péče v domovech pro seniory"]
[null,null,"87.30.2","Sociální péče v domovech pro osoby se zdravotním postižením"]
[]
[null,"87.9",null,"Ostatní pobytové služby sociální péče"]
[null,null,"87.90","Ostatní pobytové služby sociální péče"]
[]
[88,null,null,"Ambulantní nebo terénní sociální služby"]
[]
[null,"88.1",null,"Ambulantní nebo terénní sociální služby pro seniory a osoby se zdravotním postižením"]
[null,null,"88.10","Ambulantní nebo terénní sociální služby pro seniory a osoby se zdravotním postižením"]
[null,null,"88.10.1","Ambulantní nebo terénní sociální služby pro seniory"]
[null,null,"88.10.2","Ambulantní nebo terénní sociální služby pro osoby se zdravotním postižením"]
[]
[null,"88.9",null,"Ostatní ambulantní nebo terénní sociální služby"]
[null,null,"88.91","Sociální služby poskytované dětem"]
[null,null,"88.99","Ostatní ambulantní nebo terénní sociální služby j. n."]
[null,null,"88.99.1","Sociální služby pro uprchlíky, oběti katastrof"]
[null,null,"88.99.2","Sociální prevence"]
[null,null,"88.99.3","Sociální rehabilitace"]
[null,null,"88.99.9","Jiné ambulantní nebo terénní sociální služby j. n."]
[]
[]
[{"$nulls":3},"SEKCE R - KULTURNÍ, ZÁBAVNÍ A REKREAČNÍ ČINNOSTI"]
[]
[90,null,null,"Tvůrčí, umělecké a zábavní činnosti"]
[]
[null,"90.0",null,"Tvůrčí, umělecké a zábavní činnosti"]
[null,null,"90.01","Scénická umění"]
[null,null,"90.02","Podpůrné činnosti pro scénická umění"]
[null,null,"90.03","Umělecká tvorba"]
[null,null,"90.04","Provozování kulturních zařízení"]
[]
[91,null,null,"Činnosti knihoven, archivů, muzeí a jiných kulturních zařízení"]
[]
[null,"91.0",null,"Činnosti knihoven, archivů, muzeí a jiných kulturních zařízení"]
[null,null,"91.01","Činnosti knihoven a archivů"]
[null,null,"91.02","Činnosti muzeí"]
[null,null,"91.03","Provozování kulturních památek, historických staveb a obdobných turistických zajímavostí"]
[null,null,"91.04","Činnosti botanických a zoologických zahrad, přírodních rezervací a národních parků"]
[null,null,"91.04.1","Činnosti botanických a zoologických zahrad"]
[null,null,"91.04.2","Činnosti přírodních rezervací a národních parků"]
[]
[92,null,null,"Činnosti heren, kasin a sázkových kanceláří"]
[]
[null,"92.0",null,"Činnosti heren, kasin a sázkových kanceláří"]
[null,null,"92.00","Činnosti heren, kasin a sázkových kanceláří"]
[]
[93,null,null,"Sportovní, zábavní a rekreační činnosti "]
[]
[null,"93.1",null,"Sportovní činnosti"]
[null,null,"93.11","Provozování sportovních zařízení"]
[null,null,"93.12","Činnosti sportovních klubů"]
[null,null,"93.13","Činnosti fitcenter"]
[null,null,"93.19","Ostatní sportovní činnosti"]
[]
[null,"93.2",null,"Ostatní zábavní a rekreační činnosti"]
[null,null,"93.21","Činnosti lunaparků a zábavních parků"]
[null,null,"93.29","Ostatní zábavní a rekreační činnosti j. n."]
[]
[]
[{"$nulls":3},"SEKCE S - OSTATNÍ ČINNOSTI"]
[]
[94,null,null,"Činnosti organizací sdružujících osoby za účelem prosazování společných zájmů"]
[]
[null,"94.1",null,"Činnosti podnikatelských, zaměstnavatelských a profesních organizací"]
[null,null,"94.11","Činnosti podnikatelských a zaměstnavatelských organizací"]
[null,null,"94.12","Činnosti profesních organizací"]
[]
[null,"94.2",null,"Činnosti odborových svazů"]
[null,null,"94.20","Činnosti odborových svazů"]
[]
[null,"94.9",null,"Činnosti ostatních organizací sdružujících osoby za účelem prosazování společných zájmů"]
[null,null,"94.91","Činnosti náboženských organizací"]
[null,null,"94.92","Činnosti politických stran a organizací"]
[null,null,"94.99","Činnosti ostatních organizací sdružujících osoby za účelem prosazování společných zájmů j. n."]
[null,null,"94.99.1","Činnosti organizací dětí a mládeže "]
[null,null,"94.99.2","Činnosti organizací na podporu kulturní činnosti"]
[null,null,"94.99.3","Činnosti organizací na podporu rekreační a zájmové činnosti"]
[null,null,"94.99.4","Činnosti spotřebitelských organizací"]
[null,null,"94.99.5","Činnosti environmentálních a ekologických hnutí"]
[null,null,"94.99.6","Činnosti organizací na ochranu a zlepšení postavení etnických, menšinových a jiných speciálních skupin"]
[null,null,"94.99.7","Činnosti občanských iniciativ, protestních hnutí"]
[null,null,"94.99.9","Činnosti ostatních organizací j. n."]
[]
[95,null,null,"Opravy počítačů a výrobků pro osobní potřebu a převážně pro domácnost"]
[]
[null,"95.1",null,"Opravy počítačů a komunikačních zařízení"]
[null,null,"95.11","Opravy počítačů a periferních zařízení"]
[null,null,"95.12","Opravy komunikačních zařízení"]
[]
[null,"95.2",null,"Opravy výrobků pro osobní potřebu a převážně pro domácnost"]
[null,null,"95.21","Opravy spotřební elektroniky "]
[null,null,"95.22","Opravy přístrojů a zařízení převážně pro domácnost, dům a zahradu"]
[null,null,"95.23","Opravy obuvi a kožených výrobků"]
[null,null,"95.24","Opravy nábytku a bytového zařízení"]
[null,null,"95.25","Opravy hodin, hodinek a klenotnických výrobků"]
[null,null,"95.29","Opravy ostatních výrobků pro osobní potřebu a převážně pro domácnost"]
[]
[96,null,null,"Poskytování ostatních osobních služeb"]
[]
[null,"96.0",null,"Poskytování ostatních osobních služeb"]
[null,null,"96.01","Praní a chemické čištění textilních a kožešinových výrobků"]
[null,null,"96.02","Kadeřnické, kosmetické a podobné činnosti "]
[null,null,"96.03","Pohřební a související činnosti "]
[null,null,"96.04","Činnosti pro osobní a fyzickou pohodu"]
[null,null,"96.09","Poskytování ostatních osobních služeb j. n."]
[]
[]
[{"$nulls":3},"SEKCE T - ČINNOSTI DOMÁCNOSTÍ JAKO ZAMĚSTNAVATELŮ; ČINNOSTI DOMÁCNOSTÍ PRODUKUJÍCÍCH BLÍŽE NEURČENÉ VÝROBKY A SLUŽBY PRO VLASTNÍ POTŘEBU"]
[]
[97,null,null,"Činnosti domácností jako zaměstnavatelů domácího personálu "]
[]
[null,"97.0",null,"Činnosti domácností jako zaměstnavatelů domácího personálu "]
[null,null,"97.00","Činnosti domácností jako zaměstnavatelů domácího personálu "]
[]
[98,null,null,"Činnosti domácností produkujících blíže neurčené výrobky a služby pro vlastní potřebu"]
[]
[null," 98.1",null,"Činnosti domácností produkujících blíže neurčené výrobky pro vlastní potřebu"]
[null,null,"98.10","Činnosti domácností produkujících blíže neurčené výrobky pro vlastní potřebu"]
[]
[null,"98.2",null,"Činnosti domácností poskytujících blíže neurčené služby pro vlastní potřebu"]
[null,null,"98.20","Činnosti domácností poskytujících blíže neurčené služby pro vlastní potřebu"]
[]
[]
[{"$nulls":3},"SEKCE U - ČINNOSTI EXTERITORIÁLNÍCH ORGANIZACÍ A ORGÁNŮ"]
[]
[99,null,null,"Činnosti exteritoriálních organizací a orgánů"]
[]
[null,"99.0",null,"Činnosti exteritoriálních organizací a orgánů"]
[null,null,"99.00","Činnosti exteritoriálních organizací a orgánů"]

{"sheet":"Číselník 2","index":14,"n_rows":252,"n_cols":2,"rows_kept":252,"hidden":true,"merged":[[0,0,0,2]]}
["Číselník 2"]
["Název","Kód"]
["AD","Andorrské knížectví"]
["AE","Spojené arabské emiráty"]
["AF","Afghánistán"]
["AG","Antigua a Barbuda"]
["AI","Anguilla"]
["AL","Albánská republika"]
["AM","Arménská republika"]
["AO","Angolská republika"]
["AQ","Antarktida"]
["AR","Argentinská republika"]
["AS","Americká Samoa"]
["AT","Rakouská republika"]
["AU","Austrálie"]
["AW","Aruba"]
["AX","Alandské ostrovy"]
["AZ","Azerbajdžánská republika"]
["BA","Bosna a Hercegovina"]
["BB","Barbados"]
["BD","Bangladéšská lidová republika"]
["BE","Belgické království"]
["BF","Burkina Faso"]
["BG","Bulharská republika"]
["BH","Bahrajnské království"]
["BI","Burundská republika"]
["BJ","Beninská republika"]
["BL","Svatý Bartoloměj"]
["BM","Bermudy (brit.)"]
["BN","Brunej Darussalam"]
["BO","Bolivijská republika"]
["BQ","Bonaire,Svatý Eustach a Saba"]
["BR","Brazilská federativní republika"]
["BS","Bahamské společenství"]
["BT","Bhútánské království"]
["BV","Bouvetův ostrov"]
["BW","Botswanská republika"]
["BY","Běloruská republika"]
["BZ","Belize"]
["CA","Kanada"]
["CC","Kokosové ostrovy"]
["CD","Konžská demokratická republika"]
["CF","Středoafrická republika"]
["CG","Konžská republika"]
["CH","Švýcarská konfederace"]
["CI","Republika Pobřeží slonoviny"]
["CK","Cookovy ostrovy"]
["CL","Chilská republika"]
["CM","Kamerunská republika"]
["CN","Čínská lidová republika"]
["CO","Kolumbijská republika"]
["CR","Kostarická republika"]
["CU","Kubánská republika"]
["CV","Kapverdská republika"]
["CW","Curaçao"]
["CX","Vánoční ostrov"]
["CY","Kyperská republika"]
["CZ","Česká republika"]
["DE","Spolková republika Německo"]
["DJ","Džibutská republika"]
["DK","Dánské království"]
["DM","Dominické společenství"]
["DO","Dominikánská republika"]
["DZ","Alžírská lidová demokratická republika"]
["EC","Ekvádorská republika"]
["EE","Estonská republika"]
["EG","Egyptská arabská republika"]
["EH","Západní Sahara"]
["ER","Eritrea"]
["ES","Španělské království"]
["ET","Etiopská federativní demokratická republika"]
["FI","Finská republika"]
["FJ","Republika Fidžijské ostrovy"]
["FK","Falklandy (Malvíny)"]
["FM","Federativní státy Mikronésie"]
["FO","Faerské ostrovy"]
["FR","Francouzská republika"]
["GA","Gabonská republika"]
["GB","Spojené království Velké Británie a Severního Irska"]
["GD","Grenada"]
["GE","Gruzie"]
["GF","Francouzská Guyana"]
["GG","Guernsey, C.I."]
["GH","Ghanská republika"]
["GI","Gibraltar (brit.)"]
["GL","Grónsko"]
["GM","Gambijská republika"]
["GN","Guinejská republika"]
["GP","Guadeloupe"]
["GQ","Republika Rovníková Guinea"]
["GR","Řecká republika"]
["GS","Jižní Georgie a Jižní Sandwichovy ostrovy"]
["GT","Guatemalská republika"]
["GU","Guam"]
["GW","Republika Guinea - Bissau"]
["GY","Guayanská republika"]
["HK","Zvláštní administr. oblast Čínské lidové republiky Hongkong"]
["HM","Heardův ostrov a McDonaldovy ostrovy"]
["HN","Honduraská republika"]
["HR","Chorvatská republika"]
["HT","Haitská republika"]
["HU","Maďarská republika"]
["ID","Indonéská republika"]
["IE","Irsko"]
["IL","Izraelský stát"]
["IM","Ostrov Man"]
["IN","Indická republika"]
["IO","Britské indickooceánské území"]
["IQ","Irácká republika"]
["IR","Íránská islámská republika"]
["IS","Islandská republika"]
["IT","Italská republika"]
["JE","Jersey, C.I."]
["JM","Jamajka"]
["JO","Jordánské hášimovské království"]
["JP","Japonsko"]
["KE","Keňská republika"]
["KG","Republika Kyrgyzstán"]
["KH","Kambodžské království"]
["KI","Republika Kiribati"]
["KM","Komorský svaz"]
["KN","Svatý Kryštof a Nevis"]
["KP","Korejská lidově demokratická republika"]
["KR","Korejská republika"]
["KW","Kuvajtský stát"]
["KY","Kajmanské ostrovy (brit.)"]
["KZ","Kazašská republika"]
["LA","Laoská lidově demokratická republika"]
["LB","Libanonská republika"]
["LC","Svatá Lucie"]
["LI","Lichtenštejnské knížectví"]
["LK","Srílanská demokratická socialistická republika"]
["LR","Liberijská republika"]
["LS","Lesothské království"]
["LT","Litevská republika"]
["LU","Lucemburské velkovévodství"]
["LV","Lotyšská republika"]
["LY","Libyjská arabská lidová socialistická džamahírije"]
["MA","Marocké království"]
["MC","Monacké knížectví"]
["MD","Moldavská republika"]
["ME","Republika Černá Hora"]
["MF","Svatý Martin"]
["MG","Madagaskarská republika"]
["MH","Republika Marshallovy ostrovy"]
["MK","Bývalá jugoslávská republika Makedonie"]
["ML","Malijská republika"]
["MM","Myanmarský svaz"]
["MN","Mongolsko"]
["MO","Zvláštní adminstr. oblast Čínské lidové republiky, Macao"]
["MP","Společenství Severních Marian"]
["MQ","Martinik"]
["MR","Mauritánská islámská republika"]
["MS","Montserrat (brit.)"]
["MT","Maltská republika"]
["MU","Mauricijská republika"]
["MV","Maledivská republika"]
["MW","Malawská republika"]
["MX","Spojené státy mexické"]
["MY","Malajsie"]
["MZ","Mosambická republika"]
["NA","Namibijská republika"]
["NC","Nová Kaledonie"]
["NE","Nigerská republika"]
["NF","Norfolk"]
["NG","Nigerijská federativní republika"]
["NI","Nikaragujská republika"]
["NL","Nizozemské království"]
["NO","Norské království"]
["NP","Nepálské království"]
["NR","Nauruská republika"]
["NU","Niue"]
["NZ","Nový Zéland"]
["OM","Sultanát Omán"]
["PA","Panamská republika"]
["PE","Peruánská republika"]
["PF","Francouzská Polynésie"]
["PG","Papua Nová Guinea"]
["PH","Filipínská republika"]
["PK","Pákistánská islámská republika"]
["PL","Polská republika"]
["PM","Saint Pierre a Miquelon"]
["PN","Pitcairn"]
["PR","Portoriko"]
["PS","Stát Palestina"]
["PT","Portugalská republika"]
["PW","Palauská republika"]
["PY","Paraguayská republika"]
["QA","Stát Katar"]
["RE","Réunion"]
["RO","Rumunsko"]
["RS","Republika Srbsko"]
["RU","Ruská federace"]
["RW","Rwandská republika"]
["SA","Saúdskoarabské království"]
["SB","Šalamounovy ostrovy"]
["SC","Seychelská republika"]
["SD","Súdánská republika"]
["SE","Švédské království"]
["SG","Singapurská republika"]
["SH","Svatá Helena"]
["SI","Slovinská republika"]
["SJ","Svalbard a ostrov Jan Mayen"]
["SK","Slovenská republika"]
["SL","Republika Sierra Leone"]
["SM","Sanmarinská republika"]
["SN","Senegalská republika"]
["SO","Somálská republika"]
["SR","Surinamská republika"]
["SS","Jižní Súdán"]
["ST","Demokratická republika Svatý Tomáš a Princovův ostrov"]
["SV","Salvadorská republika"]
["SX","Svatý Martin (nizozemská část)"]
["SY","Syrská arabská republika"]
["SZ","Svazijské království"]
["TC","Turks a Caicos (brit.)"]
["TD","Čadská republika"]
["TF","Francouzská jižní území"]
["TG","Tožská republika"]
["TH","Thajské království"]
["TJ","Republika Tadžikistán"]
["TK","Tokelau"]
["TL","Timor - Leste"]
["TM","Turkmenistán"]
["TN","Tuniská republika"]
["TO","Království Tonga"]
["TR","Turecká republika"]
["TT","Republika Trinidad a Tobago"]
["TV","Tuvalu"]
["TW","Tchaj-wan, čínská provincie"]
["TZ","Sjednocená republika Tanzanie"]
["UA","Ukrajina"]
["UG","Ugandská republika"]
["UM","Menší odlehlé ostrovy USA"]
["US","Spojené státy americké"]
["UY","Uruguayská východní republika"]
["UZ","Republika Uzbekistán"]
["VA","Svatý stolec (Vatikánský městký stát)"]
["VC","Svatý Vincenc a Grenadiny"]
["VE","Bolívarovská republika Venezuela"]
["VG","Britské Panenské ostrovy"]
["VI","Americké Panenské ostrovy"]
["VN","Vietnamská socialistická republika"]
["VU","Vanuatská republika"]
["WF","Wallis a Futuna"]
["WS","Nezávislý stát Západní Samoa"]
["XK","Kosovská republika"]
["YE","Jemenská republika"]
["YT","Mayotte"]
["ZA","Jihoafrická republika"]
["ZM","Zambijská republika"]
["ZW","Republika Zimbabwe"]

{"sheet":"Úvěry a vklady","index":15,"n_rows":25,"n_cols":4,"rows_kept":25,"merged":[[0,0,1,3],[2,0,2,2],[3,0,4,2],[5,0,5,2],[6,0,6,2],[7,0,7,2],[8,0,8,2],[9,0,9,2],[10,0,10,2],[11,0,11,2],[13,0,14,3],[15,0,15,2],[16,0,17,2],[18,0,18,2],[19,0,19,2],[20,0,20,2],[21,0,21,2],[22,0,22,2],[23,0,23,2],[24,0,24,2]]}
["Úvěry a pohledávky podle sektorů"]
[]
["Informace platné k datu",null,null,{"$f":"Obsah!C4","v":"2025-06-30"}]
["(v tis. Kč)",null,null,"K ultimu vykazovaného období"]
[{"$nulls":3},{"$f":"D3","v":"2025-06-30"}]
["Úvěry a pohledávky celkem",null,null,{"v":74709763.43119,"d":"74,709,763"}]
["   Centrální banky (rezidenti a nerezidenti) ",null,null,{"v":4429913.74394,"d":"4,429,914"}]
["   Vládní instituce (rezid. a nerezid.) a ostat. mez. instituce ",null,null,{"v":6889.642559999999,"d":"6,890"}]
["   Úvěrové instituce (rezid. a nerezidenti) a mez. rozv. banky ",null,null,{"v":13668.98251,"d":"13,669"}]
["   Ostatní finační instituce bez  nez. ist. sloužící domácnostem (rezidenti a nerezidenti)",null,null,{"v":15401.696759999999,"d":"15,402"}]
["   Nefinanční podniky (rezidenti a nerezidenti) ",null,null,{"v":4096903.31444,"d":"4,096,903"}]
["   Domácnosti, SVJ a neziskové instituce sloužící domácnostem (Rez. + Ner.)",null,null,{"v":66146986.050979994,"d":"66,146,986"}]
[]
["Vklady podle protistran"]
[]
["Informace platné k datu",null,null,{"$f":"D3","v":"2025-06-30"}]
["(v tis. Kč)",null,null,"K ultimu vykazovaného období"]
[{"$nulls":3},{"$f":"D5","v":"2025-06-30"}]
["Vklady celkem",null,null,{"v":70884383.18717,"d":"70,884,383"}]
["   Vklady centrálních bank ",null,null,0]
["   Vklady vládních institucí ",null,null,{"v":65168.722129999995,"d":"65,169"}]
["   Vklady úvěrových institucí ",null,null,{"v":13586074.13,"d":"13,586,074"}]
["   Vklady ostatních finančních institucí ",null,null,{"v":309791.66668,"d":"309,792"}]
["   Vklady nefinančních podniků ",null,null,{"v":67006.18342,"d":"67,006"}]
["   Vklady domácností ",null,null,{"v":56856342.48493999,"d":"56,856,342"}]